Body Name,Body,Organisational unit,Service division,Expenditure category,Date,Transacton number,Net amount,Supplier,Narrative
Tendring DC,http://statistics.data.gov.uk/id/local-authority-district/22UN,Corporate Services,1620 - IT Section Service Unit,3300 - Public Transport - Officers,25/11/2014,1061791-1,32,REDACTED PERSONAL DATA,REDACTED PERSONAL DATA
Tendring DC,http://statistics.data.gov.uk/id/local-authority-district/22UN,Corporate Services,1620 - IT Section Service Unit,3300 - Public Transport - Officers,18/11/2014,2117006-1,16,REDACTED PERSONAL DATA,REDACTED PERSONAL DATA
Tendring DC,http://statistics.data.gov.uk/id/local-authority-district/22UN,Corporate Services,1620 - IT Section Service Unit,3300 - Public Transport - Officers,04/11/2014,7015597-1,16,REDACTED PERSONAL DATA,REDACTED PERSONAL DATA
Tendring DC,http://statistics.data.gov.uk/id/local-authority-district/22UN,Corporate Services,1620 - IT Section Service Unit,3300 - Public Transport - Officers,04/11/2014,7015598-1,16,REDACTED PERSONAL DATA,REDACTED PERSONAL DATA
Tendring DC,http://statistics.data.gov.uk/id/local-authority-district/22UN,Corporate Services,1950 - Transport,3062 - Running Costs - Petrol,11/11/2014,7015809-1,168.21,2101825 - Allstar Business Solutions Ltd,COURIER FUEL
Tendring DC,http://statistics.data.gov.uk/id/local-authority-district/22UN,Corporate Services,1815 - Personnel and Human Resources Issues,4459 - External Legal Advice,11/11/2014,7015756-1,1125,2113036 - Aquabridge Law LLP,LEGAL ADVICE
Tendring DC,http://statistics.data.gov.uk/id/local-authority-district/22UN,Corporate Services,1320 - Print Unit Service Unit,4302 - External Print Unit Expenses,25/11/2014,7016165-1,209,2100069 - Autoprint,JOB 419
Tendring DC,http://statistics.data.gov.uk/id/local-authority-district/22UN,Corporate Services,1320 - Print Unit Service Unit,4302 - External Print Unit Expenses,25/11/2014,7016166-1,79,2100069 - Autoprint,JOB 424
Tendring DC,http://statistics.data.gov.uk/id/local-authority-district/22UN,Corporate Services,1100 - Corporate Director (Corporate Services) and Admin Service Unit,4300 - Printing & Stationery,18/11/2014,1061658-1,325,2100111 - Banner Business Supplies Ltd,STATIONERY
Tendring DC,http://statistics.data.gov.uk/id/local-authority-district/22UN,Corporate Services,1100 - Corporate Director (Corporate Services) and Admin Service Unit,4300 - Printing & Stationery,18/11/2014,1061659-1,12.32,2100111 - Banner Business Supplies Ltd,A4 LAMINATING POUCHES
Tendring DC,http://statistics.data.gov.uk/id/local-authority-district/22UN,Corporate Services,7240 - Electoral Registration Expenses,4300 - Printing & Stationery,04/11/2014,7015571-1,90.02,2100111 - Banner Business Supplies Ltd,"ELECTORAL PAPER, & POUCHES"
Tendring DC,http://statistics.data.gov.uk/id/local-authority-district/22UN,Corporate Services,1100 - Corporate Director (Corporate Services) and Admin Service Unit,4300 - Printing & Stationery,04/11/2014,7015572-1,40.68,2100111 - Banner Business Supplies Ltd,LAMINATOR / BATTERIES
Tendring DC,http://statistics.data.gov.uk/id/local-authority-district/22UN,Corporate Services,7240 - Electoral Registration Expenses,4300 - Printing & Stationery,04/11/2014,7015573-1,128.78,2100111 - Banner Business Supplies Ltd,ENVS & PAPER
Tendring DC,http://statistics.data.gov.uk/id/local-authority-district/22UN,Corporate Services,1100 - Corporate Director (Corporate Services) and Admin Service Unit,4300 - Printing & Stationery,04/11/2014,7015573-2,42.36,2100111 - Banner Business Supplies Ltd,ENVS & PAPER
Tendring DC,http://statistics.data.gov.uk/id/local-authority-district/22UN,Corporate Services,6560 - Other Democratic Costs,4110 - General Provisions,11/11/2014,7015834-1,26.24,2100111 - Banner Business Supplies Ltd,MISC ITEMS
Tendring DC,http://statistics.data.gov.uk/id/local-authority-district/22UN,Corporate Services,1100 - Corporate Director (Corporate Services) and Admin Service Unit,4300 - Printing & Stationery,11/11/2014,7015834-2,21.39,2100111 - Banner Business Supplies Ltd,MISC ITEMS
Tendring DC,http://statistics.data.gov.uk/id/local-authority-district/22UN,Corporate Services,1320 - Print Unit Service Unit,4080 - Materials & Consumables,25/11/2014,7016164-1,92.09,2100111 - Banner Business Supplies Ltd,ENVELOPES
Tendring DC,http://statistics.data.gov.uk/id/local-authority-district/22UN,Corporate Services,1100 - Corporate Director (Corporate Services) and Admin Service Unit,1710 - Training - Central Department Budget,04/11/2014,2116983-1,75,2106181 - Bond International Software (UK) Ltd,Payroll & HR UG Delegate x 1
Tendring DC,http://statistics.data.gov.uk/id/local-authority-district/22UN,Corporate Services,1180 - Benefit Fraud Investigation Service Unit,4880 - Subscriptions Paid,18/11/2014,7015942-1,50.5,2102227 - Brighton & Hove City Council,NAFN CHARGES
Tendring DC,http://statistics.data.gov.uk/id/local-authority-district/22UN,Corporate Services,1180 - Benefit Fraud Investigation Service Unit,4880 - Subscriptions Paid,18/11/2014,7015942-2,246.61,2102227 - Brighton & Hove City Council,NAFN CHARGES
Tendring DC,http://statistics.data.gov.uk/id/local-authority-district/22UN,Corporate Services,1760 - IT Direct Service Costs,4715 - Data Communication Charge,04/11/2014,2116897-1,186,2100168 - British Telecommunications plc,31444 oct 14
Tendring DC,http://statistics.data.gov.uk/id/local-authority-district/22UN,Corporate Services,4680 - Abandoned Vehicles,4597 - Hired Services - Payments to Contractors,04/11/2014,7015659-1,87.6,2100168 - British Telecommunications plc,ONE BILL AUG 14
Tendring DC,http://statistics.data.gov.uk/id/local-authority-district/22UN,Corporate Services,5360 - HRA - Sheltered Units,4710 - Telephones - Charges,04/11/2014,7015659-10,37.7,2100168 - British Telecommunications plc,ONE BILL AUG 14
Tendring DC,http://statistics.data.gov.uk/id/local-authority-district/22UN,Corporate Services,5360 - HRA - Sheltered Units,4710 - Telephones - Charges,04/11/2014,7015659-11,37.7,2100168 - British Telecommunications plc,ONE BILL AUG 14
Tendring DC,http://statistics.data.gov.uk/id/local-authority-district/22UN,Corporate Services,5360 - HRA - Sheltered Units,4710 - Telephones - Charges,04/11/2014,7015659-12,157.18,2100168 - British Telecommunications plc,ONE BILL AUG 14
Tendring DC,http://statistics.data.gov.uk/id/local-authority-district/22UN,Corporate Services,5360 - HRA - Sheltered Units,4710 - Telephones - Charges,04/11/2014,7015659-13,102.09,2100168 - British Telecommunications plc,ONE BILL AUG 14
Tendring DC,http://statistics.data.gov.uk/id/local-authority-district/22UN,Corporate Services,5360 - HRA - Sheltered Units,4710 - Telephones - Charges,04/11/2014,7015659-14,77.82,2100168 - British Telecommunications plc,ONE BILL AUG 14
Tendring DC,http://statistics.data.gov.uk/id/local-authority-district/22UN,Corporate Services,5360 - HRA - Sheltered Units,4710 - Telephones - Charges,04/11/2014,7015659-15,37.67,2100168 - British Telecommunications plc,ONE BILL AUG 14
Tendring DC,http://statistics.data.gov.uk/id/local-authority-district/22UN,Corporate Services,5360 - HRA - Sheltered Units,4710 - Telephones - Charges,04/11/2014,7015659-16,54.16,2100168 - British Telecommunications plc,ONE BILL AUG 14
Tendring DC,http://statistics.data.gov.uk/id/local-authority-district/22UN,Corporate Services,5360 - HRA - Sheltered Units,4710 - Telephones - Charges,04/11/2014,7015659-17,49.4,2100168 - British Telecommunications plc,ONE BILL AUG 14
Tendring DC,http://statistics.data.gov.uk/id/local-authority-district/22UN,Corporate Services,5360 - HRA - Sheltered Units,4710 - Telephones - Charges,04/11/2014,7015659-18,107.22,2100168 - British Telecommunications plc,ONE BILL AUG 14
Tendring DC,http://statistics.data.gov.uk/id/local-authority-district/22UN,Corporate Services,6480 - Emergency Planning,4710 - Telephones - Charges,04/11/2014,7015659-19,72.75,2100168 - British Telecommunications plc,ONE BILL AUG 14
Tendring DC,http://statistics.data.gov.uk/id/local-authority-district/22UN,Corporate Services,1880 - Office Accommodation Expenses,4632 - Security,04/11/2014,7015659-2,529.9,2100168 - British Telecommunications plc,ONE BILL AUG 14
Tendring DC,http://statistics.data.gov.uk/id/local-authority-district/22UN,Corporate Services,6740 - Careline,4710 - Telephones - Charges,04/11/2014,7015659-20,204.82,2100168 - British Telecommunications plc,ONE BILL AUG 14
Tendring DC,http://statistics.data.gov.uk/id/local-authority-district/22UN,Corporate Services,7620 - Air Show,4710 - Telephones - Charges,04/11/2014,7015659-21,161.72,2100168 - British Telecommunications plc,ONE BILL AUG 14
Tendring DC,http://statistics.data.gov.uk/id/local-authority-district/22UN,Corporate Services,6740 - Careline,4710 - Telephones - Charges,04/11/2014,7015659-22,37.7,2100168 - British Telecommunications plc,ONE BILL AUG 14
Tendring DC,http://statistics.data.gov.uk/id/local-authority-district/22UN,Corporate Services,6740 - Careline,4710 - Telephones - Charges,04/11/2014,7015659-23,37.7,2100168 - British Telecommunications plc,ONE BILL AUG 14
Tendring DC,http://statistics.data.gov.uk/id/local-authority-district/22UN,Corporate Services,6740 - Careline,4710 - Telephones - Charges,04/11/2014,7015659-24,37.7,2100168 - British Telecommunications plc,ONE BILL AUG 14
Tendring DC,http://statistics.data.gov.uk/id/local-authority-district/22UN,Corporate Services,6740 - Careline,4710 - Telephones - Charges,04/11/2014,7015659-25,37.7,2100168 - British Telecommunications plc,ONE BILL AUG 14
Tendring DC,http://statistics.data.gov.uk/id/local-authority-district/22UN,Corporate Services,6740 - Careline,4710 - Telephones - Charges,04/11/2014,7015659-26,37.7,2100168 - British Telecommunications plc,ONE BILL AUG 14
Tendring DC,http://statistics.data.gov.uk/id/local-authority-district/22UN,Corporate Services,"1580 - Benefits, Revenues and Customer Contact SU",4718 - Fixed Communication Lines,04/11/2014,7015659-27,141.36,2100168 - British Telecommunications plc,ONE BILL AUG 14
Tendring DC,http://statistics.data.gov.uk/id/local-authority-district/22UN,Corporate Services,6740 - Careline,4718 - Fixed Communication Lines,04/11/2014,7015659-28,64.52,2100168 - British Telecommunications plc,ONE BILL AUG 14
Tendring DC,http://statistics.data.gov.uk/id/local-authority-district/22UN,Corporate Services,6740 - Careline,4718 - Fixed Communication Lines,04/11/2014,7015659-29,37.71,2100168 - British Telecommunications plc,ONE BILL AUG 14
Tendring DC,http://statistics.data.gov.uk/id/local-authority-district/22UN,Corporate Services,1661 - Other Apportionable Overheads - Corporate Support,4700 - Postage,04/11/2014,7015659-3,38.17,2100168 - British Telecommunications plc,ONE BILL AUG 14
Tendring DC,http://statistics.data.gov.uk/id/local-authority-district/22UN,Corporate Services,1040 - Regeneration Service Unit,4730 - Fax Machine,04/11/2014,7015659-30,38.38,2100168 - British Telecommunications plc,ONE BILL AUG 14
Tendring DC,http://statistics.data.gov.uk/id/local-authority-district/22UN,Corporate Services,1840 - Central Telephone Service,4710 - Telephones - Charges,04/11/2014,7015659-31,300,2100168 - British Telecommunications plc,ONE BILL AUG 14
Tendring DC,http://statistics.data.gov.uk/id/local-authority-district/22UN,Corporate Services,4720 - Dog Warden,4080 - Materials & Consumables,04/11/2014,7015659-32,73.5,2100168 - British Telecommunications plc,ONE BILL AUG 14
Tendring DC,http://statistics.data.gov.uk/id/local-authority-district/22UN,Corporate Services,6740 - Careline,4716 - Mobile Telephone Costs,04/11/2014,7015659-33,1805.65,2100168 - British Telecommunications plc,ONE BILL AUG 14
Tendring DC,http://statistics.data.gov.uk/id/local-authority-district/22UN,Corporate Services,6740 - Careline,4716 - Mobile Telephone Costs,04/11/2014,7015659-34,12.44,2100168 - British Telecommunications plc,ONE BILL AUG 14
Tendring DC,http://statistics.data.gov.uk/id/local-authority-district/22UN,Corporate Services,1320 - Print Unit Service Unit,4710 - Telephones - Charges,04/11/2014,7015659-4,38.05,2100168 - British Telecommunications plc,ONE BILL AUG 14
Tendring DC,http://statistics.data.gov.uk/id/local-authority-district/22UN,Corporate Services,1560 - Cashiers Service Unit,4710 - Telephones - Charges,04/11/2014,7015659-5,-131.94,2100168 - British Telecommunications plc,ONE BILL AUG 14
Tendring DC,http://statistics.data.gov.uk/id/local-authority-district/22UN,Corporate Services,1670 - Engineering Services Management,4710 - Telephones - Charges,04/11/2014,7015659-6,36.36,2100168 - British Telecommunications plc,ONE BILL AUG 14
Tendring DC,http://statistics.data.gov.uk/id/local-authority-district/22UN,Corporate Services,1840 - Central Telephone Service,4710 - Telephones - Charges,04/11/2014,7015659-7,113.55,2100168 - British Telecommunications plc,ONE BILL AUG 14
Tendring DC,http://statistics.data.gov.uk/id/local-authority-district/22UN,Corporate Services,4780 - Rodent & Pest Control,4710 - Telephones - Charges,04/11/2014,7015659-8,177.15,2100168 - British Telecommunications plc,ONE BILL AUG 14
Tendring DC,http://statistics.data.gov.uk/id/local-authority-district/22UN,Corporate Services,5360 - HRA - Sheltered Units,4710 - Telephones - Charges,04/11/2014,7015659-9,37.75,2100168 - British Telecommunications plc,ONE BILL AUG 14
Tendring DC,http://statistics.data.gov.uk/id/local-authority-district/22UN,Corporate Services,9900 - General Fund Balance Sheet,B879 - Charges made by Merchant Acquirer,10/11/2014,7800653-9,39.78,2100202 - Capita Business Services Ltd,CAPITA - October 2014
Tendring DC,http://statistics.data.gov.uk/id/local-authority-district/22UN,Corporate Services,1100 - Corporate Director (Corporate Services) and Admin Service Unit,1710 - Training - Central Department Budget,18/11/2014,7016024-1,276.25,2109394 - CIPFA Business Ltd,INTRODUCTION TO AUDIT COURSE
Tendring DC,http://statistics.data.gov.uk/id/local-authority-district/22UN,Corporate Services,6640 - Treasury Management,5192 - Brokerage,01/11/2014,7800704-1,224,2100269 - Co operative Bank plc,FD Invoice - Nov 2014
Tendring DC,http://statistics.data.gov.uk/id/local-authority-district/22UN,Corporate Services,6620 - Corporate Management - General,5190 - Bank Commission Charges,01/11/2014,7800704-2,266,2100269 - Co operative Bank plc,FD Invoice - Nov 2014
Tendring DC,http://statistics.data.gov.uk/id/local-authority-district/22UN,Corporate Services,"1580 - Benefits, Revenues and Customer Contact SU",5186 - Paypoint/post office charges,01/11/2014,7800704-3,1577.68,2100269 - Co operative Bank plc,FD Invoice - Nov 2014
Tendring DC,http://statistics.data.gov.uk/id/local-authority-district/22UN,Corporate Services,"1580 - Benefits, Revenues and Customer Contact SU",5186 - Paypoint/post office charges,01/11/2014,7800704-4,2818.42,2100269 - Co operative Bank plc,FD Invoice - Nov 2014
Tendring DC,http://statistics.data.gov.uk/id/local-authority-district/22UN,Corporate Services,1760 - IT Direct Service Costs,4753 - Computer - Application Software,04/11/2014,7800661-4,184.95,2100304 - CO-OP Bank,Zoom Text JH June  14
Tendring DC,http://statistics.data.gov.uk/id/local-authority-district/22UN,Corporate Services,"1580 - Benefits, Revenues and Customer Contact SU",4461 - Court Fees,03/11/2014,7800662-0,2137,2100304 - CO-OP Bank,HM Courts/WWW Gov JB Oct 14
Tendring DC,http://statistics.data.gov.uk/id/local-authority-district/22UN,Corporate Services,6620 - Corporate Management - General,5190 - Bank Commission Charges,03/11/2014,7800663-4,2,2100304 - CO-OP Bank,RB Oct Credit card
Tendring DC,http://statistics.data.gov.uk/id/local-authority-district/22UN,Corporate Services,1760 - IT Direct Service Costs,4715 - Data Communication Charge,04/11/2014,2116895-1,6386.1,2106704 - Daisy  Updata Communications Ltd,daisy oct 14
Tendring DC,http://statistics.data.gov.uk/id/local-authority-district/22UN,Corporate Services,9890 - Collection Fund - NDR,R125 - NDR - Central Government,04/11/2014,7800702-5,1293616,2100432 - DCLG,NNDR and RSG - Nov 2014
Tendring DC,http://statistics.data.gov.uk/id/local-authority-district/22UN,Corporate Services,8984 - Business Rates Tariff and Levy,6990 - Business Rate Tariff,04/11/2014,7800702-6,544964,2100432 - DCLG,NNDR and RSG - Nov 2014
Tendring DC,http://statistics.data.gov.uk/id/local-authority-district/22UN,Corporate Services,9890 - Collection Fund - NDR,R135 - NDR - Transitional Relief Settlement,04/11/2014,7800702-7,-7964,2100432 - DCLG,NNDR and RSG - Nov 2014
Tendring DC,http://statistics.data.gov.uk/id/local-authority-district/22UN,Corporate Services,9890 - Collection Fund - NDR,R134 - NDR - Surplus/Deficit - Govt,04/11/2014,7800702-8,2411,2100432 - DCLG,NNDR and RSG - Nov 2014
Tendring DC,http://statistics.data.gov.uk/id/local-authority-district/22UN,Corporate Services,1760 - IT Direct Service Costs,4751 - Hardware & Service Maintenance,04/11/2014,7015624-1,226.38,2102545 - Dell Corporation Ltd,APC BASIC RACK MOUNT PDU
Tendring DC,http://statistics.data.gov.uk/id/local-authority-district/22UN,Corporate Services,1760 - IT Direct Service Costs,4751 - Hardware & Service Maintenance,04/11/2014,7015626-1,47.72,2102545 - Dell Corporation Ltd,3 - 7 M PDU INPUT POWER CORD
Tendring DC,http://statistics.data.gov.uk/id/local-authority-district/22UN,Corporate Services,7100 - Community Health/Safety,5164 - Project Expenses,04/11/2014,2116981-1,81,2100404 - Easy Tigernet,TDCRP Website DOmain Names & Hosting
Tendring DC,http://statistics.data.gov.uk/id/local-authority-district/22UN,Corporate Services,6620 - Corporate Management - General,5180 - External Audit Fees,25/11/2014,7016168-1,24117,2112514 - Ernst & Young,INSTALMENT 2
Tendring DC,http://statistics.data.gov.uk/id/local-authority-district/22UN,Corporate Services,1800 - Qualification and Other Training,1700 - Training - Courses,11/11/2014,7015831-1,250,2100498 - Essex County Council,BA APPRENTICE C RUSSELL
Tendring DC,http://statistics.data.gov.uk/id/local-authority-district/22UN,Corporate Services,1800 - Qualification and Other Training,1700 - Training - Courses,11/11/2014,7015832-1,250,2100498 - Essex County Council,LEON WOODROW
Tendring DC,http://statistics.data.gov.uk/id/local-authority-district/22UN,Corporate Services,8971 - MIRS - Contributions Payable to the Pension Scheme,1810 - Superannuation - Financial Strain/Added Years,11/11/2014,7015844-3,17447.9,2100419 - Essex County Council,Pension 00013
Tendring DC,http://statistics.data.gov.uk/id/local-authority-district/22UN,Corporate Services,8971 - MIRS - Contributions Payable to the Pension Scheme,1822 - Superannuation - Port Health Pensions etc.,11/11/2014,7015845-2,826.37,2100419 - Essex County Council,Port Health Authority
Tendring DC,http://statistics.data.gov.uk/id/local-authority-district/22UN,Corporate Services,7100 - Community Health/Safety,5164 - Project Expenses,18/11/2014,7016023-1,500,2100498 - Essex County Council,MOBILE CLIMBING WALL
Tendring DC,http://statistics.data.gov.uk/id/local-authority-district/22UN,Corporate Services,9880 - Collection Fund - Council Tax,R100 - Precept - ECC,17/11/2014,7800686-5,4724602,2100409 - Essex County Council,Essex CC precept Nov 14
Tendring DC,http://statistics.data.gov.uk/id/local-authority-district/22UN,Corporate Services,9880 - Collection Fund - Council Tax,R110 - Council Tax Balance - ECC,17/11/2014,7800686-6,154977,2100409 - Essex County Council,Essex CC precept Nov 14
Tendring DC,http://statistics.data.gov.uk/id/local-authority-district/22UN,Corporate Services,9890 - Collection Fund - NDR,R127 - NDR - Essex County Retention,17/11/2014,7800686-7,221763,2100409 - Essex County Council,Essex CC precept Nov 14
Tendring DC,http://statistics.data.gov.uk/id/local-authority-district/22UN,Corporate Services,9890 - Collection Fund - NDR,R132 - NDR - Surplus/Deficit - ECC,17/11/2014,7800686-8,413,2100409 - Essex County Council,Essex CC precept Nov 14
Tendring DC,http://statistics.data.gov.uk/id/local-authority-district/22UN,Corporate Services,6683 - Council Tax Sharing Agreement with Major Preceptors,8109 - Technical  Discount Scheme - ECC Contribution,17/11/2014,7800686-9,-53463,2100409 - Essex County Council,Essex CC precept Nov 14
Tendring DC,http://statistics.data.gov.uk/id/local-authority-district/22UN,Corporate Services,7100 - Community Health/Safety,5164 - Project Expenses,04/11/2014,7015625-1,4000,2108768 - Essex County Fire & Rescue Service,CONTRIBUTION FOR CLACTON FIRECADET
Tendring DC,http://statistics.data.gov.uk/id/local-authority-district/22UN,Corporate Services,6420 - Cost Of Council Tax Collection,8124 - Contribution - Collection Investment/Hardship Admin.,17/11/2014,7800684-10,-733,2100469 - Essex Fire Authority,Essex Fire Precept Nov 2014
Tendring DC,http://statistics.data.gov.uk/id/local-authority-district/22UN,Corporate Services,9880 - Collection Fund - Council Tax,R101 - Precept - Essex Fire,17/11/2014,7800684-5,288758,2100469 - Essex Fire Authority,Essex Fire Precept Nov 2014
Tendring DC,http://statistics.data.gov.uk/id/local-authority-district/22UN,Corporate Services,9880 - Collection Fund - Council Tax,R111 - Council Tax Balance - Essex Fire,17/11/2014,7800684-6,9472,2100469 - Essex Fire Authority,Essex Fire Precept Nov 2014
Tendring DC,http://statistics.data.gov.uk/id/local-authority-district/22UN,Corporate Services,9890 - Collection Fund - NDR,R133 - NDR - Surplus/Deficit - Fire,17/11/2014,7800684-7,46,2100469 - Essex Fire Authority,Essex Fire Precept Nov 2014
Tendring DC,http://statistics.data.gov.uk/id/local-authority-district/22UN,Corporate Services,9890 - Collection Fund - NDR,R128 - NDR - Fire Retention,17/11/2014,7800684-8,24640,2100469 - Essex Fire Authority,Essex Fire Precept Nov 2014
Tendring DC,http://statistics.data.gov.uk/id/local-authority-district/22UN,Corporate Services,6683 - Council Tax Sharing Agreement with Major Preceptors,8109 - Technical  Discount Scheme - ECC Contribution,17/11/2014,7800684-9,-3268,2100469 - Essex Fire Authority,Essex Fire Precept Nov 2014
Tendring DC,http://statistics.data.gov.uk/id/local-authority-district/22UN,Corporate Services,9880 - Collection Fund - Council Tax,R102 - Precept - Essex Police,17/11/2014,7800685-1,627208,2100500 - Essex Police Authority,Essex Police Precept Nov 2014
Tendring DC,http://statistics.data.gov.uk/id/local-authority-district/22UN,Corporate Services,9880 - Collection Fund - Council Tax,R112 - Council Tax Balance - Essex Police,17/11/2014,7800685-2,20176,2100500 - Essex Police Authority,Essex Police Precept Nov 2014
Tendring DC,http://statistics.data.gov.uk/id/local-authority-district/22UN,Corporate Services,6683 - Council Tax Sharing Agreement with Major Preceptors,8109 - Technical  Discount Scheme - ECC Contribution,17/11/2014,7800685-3,-6960,2100500 - Essex Police Authority,Essex Police Precept Nov 2014
Tendring DC,http://statistics.data.gov.uk/id/local-authority-district/22UN,Corporate Services,1660 - Other Apportionable Overheads,4609 - Child Care Vouchers Management Fee,04/11/2014,1061518-2,51.74,2104459 - Fideliti Ltd,Nov-14
Tendring DC,http://statistics.data.gov.uk/id/local-authority-district/22UN,Corporate Services,7100 - Community Health/Safety,5164 - Project Expenses,11/11/2014,7015690-1,600,2114465 - Fish Lips Sushi Ltd,BUFFET FOR OPCC
Tendring DC,http://statistics.data.gov.uk/id/local-authority-district/22UN,Corporate Services,8540 - Leisure Centre Clacton,2904 - Premises Licensing - Other,27/11/2014,7800701-0,300.53,2107806 - Fitness Professionals Ltd,Body Training System - Nov 2014
Tendring DC,http://statistics.data.gov.uk/id/local-authority-district/22UN,Corporate Services,1760 - IT Direct Service Costs,4751 - Hardware & Service Maintenance,04/11/2014,7015632-1,530.88,2113822 - Fujitsu (FTS) Ltd,2 X 1 G-Bit CU intel 1350 - T2
Tendring DC,http://statistics.data.gov.uk/id/local-authority-district/22UN,Corporate Services,8540 - Leisure Centre Clacton,2900 - Premises Licensing - Public Entertainment,14/11/2014,7800700-2,50,2110331 - GMS Recordings,Music Broadcasting - Lifestyles - Nov 2014
Tendring DC,http://statistics.data.gov.uk/id/local-authority-district/22UN,Corporate Services,1120 - Accountancy Service Unit,4040 - Equipment & Tools,25/11/2014,7016158-1,1277,2103196 - Gunnebo UK,SAFE
Tendring DC,http://statistics.data.gov.uk/id/local-authority-district/22UN,Corporate Services,8540 - Leisure Centre Clacton,5160 - Advertising,10/11/2014,7800665-3,63,2111275 - hibu (UK) Ltd,Yell Ad 10/11/14
Tendring DC,http://statistics.data.gov.uk/id/local-authority-district/22UN,Corporate Services,1300 - Legal Services Service Unit,4466 - Land Registry Fees,30/11/2014,7800703-0,73,2100636 - HM Land Registry,Land Registry Enquiries - Nov 2014
Tendring DC,http://statistics.data.gov.uk/id/local-authority-district/22UN,Corporate Services,4660 - Public Health,5500 - Miscellaneous Expenses,30/11/2014,7800703-1,27,2100636 - HM Land Registry,Land Registry Enquiries - Nov 2014
Tendring DC,http://statistics.data.gov.uk/id/local-authority-district/22UN,Corporate Services,"1580 - Benefits, Revenues and Customer Contact SU",4466 - Land Registry Fees,30/11/2014,7800703-2,207,2100636 - HM Land Registry,Land Registry Enquiries - Nov 2014
Tendring DC,http://statistics.data.gov.uk/id/local-authority-district/22UN,Corporate Services,1520 - Head of Planning and Customer Services,4624 - Hired Services - Land Registry,30/11/2014,7800703-3,21,2100636 - HM Land Registry,Land Registry Enquiries - Nov 2014
Tendring DC,http://statistics.data.gov.uk/id/local-authority-district/22UN,Corporate Services,1930 - Asset Management Service Unit,4469 - Other Non - Legal Professional Services,30/11/2014,7800703-4,63,2100636 - HM Land Registry,Land Registry Enquiries - Nov 2014
Tendring DC,http://statistics.data.gov.uk/id/local-authority-district/22UN,Corporate Services,H920 - Disabled Facilities Grants,C400 - Grant payments,30/11/2014,7800703-5,99,2100636 - HM Land Registry,Land Registry Enquiries - Nov 2014
Tendring DC,http://statistics.data.gov.uk/id/local-authority-district/22UN,Corporate Services,4750 - Housing Disrepair,4080 - Materials & Consumables,30/11/2014,7800703-6,39,2100636 - HM Land Registry,Land Registry Enquiries - Nov 2014
Tendring DC,http://statistics.data.gov.uk/id/local-authority-district/22UN,Corporate Services,5140 - Homelessness,4680 - Bed & Breakfast Accommodation,30/11/2014,7800703-7,12,2100636 - HM Land Registry,Land Registry Enquiries - Nov 2014
Tendring DC,http://statistics.data.gov.uk/id/local-authority-district/22UN,Corporate Services,9900 - General Fund Balance Sheet,B382 - Rechargeable Works - Other,11/11/2014,1061624-1,13797.8,2114006 - HMRC 245PY00145071,ELECTIONS-OCT 14 245 PY00145071
Tendring DC,http://statistics.data.gov.uk/id/local-authority-district/22UN,Corporate Services,4520 - Land Charges,4753 - Computer - Application Software,18/11/2014,7016005-1,5000,2106643 - Idox Software Ltd,TLC & CONSULTANCY PACKAGE
Tendring DC,http://statistics.data.gov.uk/id/local-authority-district/22UN,Corporate Services,6540 - Members Allowance,5160 - Advertising,18/11/2014,7015997-1,475,2112006 - ILSH Media Ltd,ADVERT - EADT
Tendring DC,http://statistics.data.gov.uk/id/local-authority-district/22UN,Corporate Services,6580 - Member Support Cost,4300 - Printing & Stationery,18/11/2014,7016025-1,34.83,2100782 - Insight Direct (uk) Limited,INK CARTRIDGES
Tendring DC,http://statistics.data.gov.uk/id/local-authority-district/22UN,Corporate Services,C349 - IT Strategic Investment,C276 - Licences for Software,04/11/2014,7015617-1,1250,2113973 - Interact - The Intelligent Intranet,ADDITIONAL LICENSES
Tendring DC,http://statistics.data.gov.uk/id/local-authority-district/22UN,Corporate Services,"1580 - Benefits, Revenues and Customer Contact SU",4635 - Cash Collection Contract,18/11/2014,7016008-1,418,2114129 - Jade Security Services Ltd,CASH COLLECTION OCT 14
Tendring DC,http://statistics.data.gov.uk/id/local-authority-district/22UN,Corporate Services,8025 - Car Parks - Off St,4635 - Cash Collection Contract,18/11/2014,7016008-10,95,2114129 - Jade Security Services Ltd,CASH COLLECTION OCT 14
Tendring DC,http://statistics.data.gov.uk/id/local-authority-district/22UN,Corporate Services,7600 - Tourist Information Centres,4635 - Cash Collection Contract,18/11/2014,7016008-2,95,2114129 - Jade Security Services Ltd,CASH COLLECTION OCT 14
Tendring DC,http://statistics.data.gov.uk/id/local-authority-district/22UN,Corporate Services,1520 - Head of Planning and Customer Services,4635 - Cash Collection Contract,18/11/2014,7016008-3,76,2114129 - Jade Security Services Ltd,CASH COLLECTION OCT 14
Tendring DC,http://statistics.data.gov.uk/id/local-authority-district/22UN,Corporate Services,5800 - Brightlingsea Sports Centre,4635 - Cash Collection Contract,18/11/2014,7016008-4,95,2114129 - Jade Security Services Ltd,CASH COLLECTION OCT 14
Tendring DC,http://statistics.data.gov.uk/id/local-authority-district/22UN,Corporate Services,8540 - Leisure Centre Clacton,4635 - Cash Collection Contract,18/11/2014,7016008-5,266,2114129 - Jade Security Services Ltd,CASH COLLECTION OCT 14
Tendring DC,http://statistics.data.gov.uk/id/local-authority-district/22UN,Corporate Services,8520 - Frinton & Walton Swimming Pool,4635 - Cash Collection Contract,18/11/2014,7016008-6,266,2114129 - Jade Security Services Ltd,CASH COLLECTION OCT 14
Tendring DC,http://statistics.data.gov.uk/id/local-authority-district/22UN,Corporate Services,8510 - Dovercourt Swimming Pool & All Weather Facilities,4635 - Cash Collection Contract,18/11/2014,7016008-7,247,2114129 - Jade Security Services Ltd,CASH COLLECTION OCT 14
Tendring DC,http://statistics.data.gov.uk/id/local-authority-district/22UN,Corporate Services,5820 - Harwich Sports Centre,4635 - Cash Collection Contract,18/11/2014,7016008-8,76,2114129 - Jade Security Services Ltd,CASH COLLECTION OCT 14
Tendring DC,http://statistics.data.gov.uk/id/local-authority-district/22UN,Corporate Services,5860 - Manningtree Sports Centre,4635 - Cash Collection Contract,18/11/2014,7016008-9,76,2114129 - Jade Security Services Ltd,CASH COLLECTION OCT 14
Tendring DC,http://statistics.data.gov.uk/id/local-authority-district/22UN,Corporate Services,1100 - Corporate Director (Corporate Services) and Admin Service Unit,3311 - Travelling Career Track,18/11/2014,1061684-1,27.4,REDACTED PERSONAL DATA,REDACTED PERSONAL DATA
Tendring DC,http://statistics.data.gov.uk/id/local-authority-district/22UN,Corporate Services,1100 - Corporate Director (Corporate Services) and Admin Service Unit,3311 - Travelling Career Track,25/11/2014,1061790-1,23.1,REDACTED PERSONAL DATA,REDACTED PERSONAL DATA
Tendring DC,http://statistics.data.gov.uk/id/local-authority-district/22UN,Corporate Services,1100 - Corporate Director (Corporate Services) and Admin Service Unit,3311 - Travelling Career Track,04/11/2014,7015605-1,28.3,REDACTED PERSONAL DATA,REDACTED PERSONAL DATA
Tendring DC,http://statistics.data.gov.uk/id/local-authority-district/22UN,Corporate Services,6160 - Princes Theatre,4622 - Hired Services - Artistes and Production Companies,17/11/2014,7800667-2,1750,2114408 - Keith Ball (Kenny Ball Jnr),Kenny Ball Junior
Tendring DC,http://statistics.data.gov.uk/id/local-authority-district/22UN,Corporate Services,1815 - Personnel and Human Resources Issues,1610 - Counselling,11/11/2014,7015760-1,280,2114266 - Kim Youpa,COUNSELLING
Tendring DC,http://statistics.data.gov.uk/id/local-authority-district/22UN,Corporate Services,6640 - Treasury Management,5192 - Brokerage,17/11/2014,7800683-2,46.15,2107040 - King & Shaxson Limited,K&S for Tbills deal 2014134
Tendring DC,http://statistics.data.gov.uk/id/local-authority-district/22UN,Corporate Services,8915 - Interest & Investment Income,9600 - External Investment Interest Receivable,17/11/2014,7800683-3,-536.99,2107040 - King & Shaxson Limited,K&S for Tbills deal 2014134
Tendring DC,http://statistics.data.gov.uk/id/local-authority-district/22UN,Corporate Services,1100 - Corporate Director (Corporate Services) and Admin Service Unit,1710 - Training - Central Department Budget,04/11/2014,7015634-1,396,2100884 - LGG Limited,LGG ANNUAL CONFERENCE
Tendring DC,http://statistics.data.gov.uk/id/local-authority-district/22UN,Corporate Services,1300 - Legal Services Service Unit,3300 - Public Transport - Officers,11/11/2014,1061607-1,40.4,REDACTED PERSONAL DATA,REDACTED PERSONAL DATA
Tendring DC,http://statistics.data.gov.uk/id/local-authority-district/22UN,Corporate Services,7100 - Community Health/Safety,5164 - Project Expenses,04/11/2014,2116982-1,340,2111739 - Love To Eat,Buffet
Tendring DC,http://statistics.data.gov.uk/id/local-authority-district/22UN,Corporate Services,1815 - Personnel and Human Resources Issues,1709 - Training - Management Development Courses,18/11/2014,7016021-1,1666.34,2113514 - Marlborough Training and Consultancy Ltd,MANAGEMENT DEVELOPMENT PROGRAMME
Tendring DC,http://statistics.data.gov.uk/id/local-authority-district/22UN,Corporate Services,1100 - Corporate Director (Corporate Services) and Admin Service Unit,4300 - Printing & Stationery,18/11/2014,7016009-1,631.2,2109450 - Monster Merchandise Ltd,SOFTWARE LAUNCH PRODUCTS
Tendring DC,http://statistics.data.gov.uk/id/local-authority-district/22UN,Corporate Services,1930 - Asset Management Service Unit,4469 - Other Non - Legal Professional Services,04/11/2014,7015592-1,139.73,2113536 - Newsquest Media Group,CRAZY GOLF PUBLIC NOTICE
Tendring DC,http://statistics.data.gov.uk/id/local-authority-district/22UN,Corporate Services,1930 - Asset Management Service Unit,4469 - Other Non - Legal Professional Services,04/11/2014,7015593-1,133.54,2113536 - Newsquest Media Group,WILLOW TREE PUBLIC NOTICE
Tendring DC,http://statistics.data.gov.uk/id/local-authority-district/22UN,Corporate Services,1930 - Asset Management Service Unit,4469 - Other Non - Legal Professional Services,11/11/2014,7015810-1,139.73,2113536 - Newsquest Media Group,PUBLIC NOTICE - CRAZY GOLF
Tendring DC,http://statistics.data.gov.uk/id/local-authority-district/22UN,Corporate Services,1930 - Asset Management Service Unit,4469 - Other Non - Legal Professional Services,11/11/2014,7015811-1,133.54,2113536 - Newsquest Media Group,PUBLIC NOTICE - WILLOW TREE
Tendring DC,http://statistics.data.gov.uk/id/local-authority-district/22UN,Corporate Services,1815 - Personnel and Human Resources Issues,1707 - Training - Workforce Development Courses,25/11/2014,1061766-1,28.33,2104612 - OPP Limited,JOB PROFILING KIT
Tendring DC,http://statistics.data.gov.uk/id/local-authority-district/22UN,Corporate Services,1320 - Print Unit Service Unit,4302 - External Print Unit Expenses,04/11/2014,7015621-1,480,2111844 - Optimumprint,JOB 420 / 418 /  416
Tendring DC,http://statistics.data.gov.uk/id/local-authority-district/22UN,Corporate Services,1320 - Print Unit Service Unit,4302 - External Print Unit Expenses,04/11/2014,7015622-1,125,2111844 - Optimumprint,JOB 405
Tendring DC,http://statistics.data.gov.uk/id/local-authority-district/22UN,Corporate Services,1320 - Print Unit Service Unit,4302 - External Print Unit Expenses,04/11/2014,7015623-1,30,2111844 - Optimumprint,JOB 411
Tendring DC,http://statistics.data.gov.uk/id/local-authority-district/22UN,Corporate Services,1320 - Print Unit Service Unit,4302 - External Print Unit Expenses,18/11/2014,7015925-1,180,2111844 - Optimumprint,JOB 434
Tendring DC,http://statistics.data.gov.uk/id/local-authority-district/22UN,Corporate Services,1320 - Print Unit Service Unit,4302 - External Print Unit Expenses,18/11/2014,7015927-1,10,2111844 - Optimumprint,JOB 441
Tendring DC,http://statistics.data.gov.uk/id/local-authority-district/22UN,Corporate Services,1320 - Print Unit Service Unit,4302 - External Print Unit Expenses,25/11/2014,7016167-1,60,2111844 - Optimumprint,JOB 447
Tendring DC,http://statistics.data.gov.uk/id/local-authority-district/22UN,Corporate Services,1930 - Asset Management Service Unit,4469 - Other Non - Legal Professional Services,11/11/2014,7015758-1,416.67,2101066 - Paul Bryan,VALUATION OF CLAY HALL
Tendring DC,http://statistics.data.gov.uk/id/local-authority-district/22UN,Corporate Services,6460 - Career Track,4688 - Career Track Exam Fees,04/11/2014,7015635-1,400,REDACTED PERSONAL DATA,REDACTED PERSONAL DATA
Tendring DC,http://statistics.data.gov.uk/id/local-authority-district/22UN,Corporate Services,6460 - Career Track,4688 - Career Track Exam Fees,11/11/2014,7015761-1,29,REDACTED PERSONAL DATA,REDACTED PERSONAL DATA
Tendring DC,http://statistics.data.gov.uk/id/local-authority-district/22UN,Corporate Services,6460 - Career Track,4688 - Career Track Exam Fees,25/11/2014,7016155-1,14.5,REDACTED PERSONAL DATA,REDACTED PERSONAL DATA
Tendring DC,http://statistics.data.gov.uk/id/local-authority-district/22UN,Corporate Services,6460 - Career Track,4688 - Career Track Exam Fees,25/11/2014,7016156-1,29,REDACTED PERSONAL DATA,REDACTED PERSONAL DATA
Tendring DC,http://statistics.data.gov.uk/id/local-authority-district/22UN,Corporate Services,6540 - Members Allowance,5160 - Advertising,11/11/2014,7015755-1,2393.24,2101097 - Peter Lockyer Advertising Ltd,INDEPENDANT COUNCIL ADVISOR
Tendring DC,http://statistics.data.gov.uk/id/local-authority-district/22UN,Corporate Services,1661 - Other Apportionable Overheads - Corporate Support,4700 - Postage,04/11/2014,7015604-1,5050,2104077 - Pitney Bowes Ltd,RE-CREDIT FRANKING MACHINE CLACTON PBP 10113561
Tendring DC,http://statistics.data.gov.uk/id/local-authority-district/22UN,Corporate Services,1760 - IT Direct Service Costs,4751 - Hardware & Service Maintenance,18/11/2014,7016026-1,137.1,2114428 - Prime Light Electrical Ltd,IMATION LTO CLEANING TAPES
Tendring DC,http://statistics.data.gov.uk/id/local-authority-district/22UN,Corporate Services,9930 - Loans Fund Balance Sheet,B551 - Loans Maturing Within One Year - HRA,24/11/2014,7800676-3,170000,2101162 - Public Works Loan Board,PWLB HRA 500801
Tendring DC,http://statistics.data.gov.uk/id/local-authority-district/22UN,Corporate Services,5760 - HRA - Capital & Interest Charges,9831 - HRA Interest (formerly Item 8),24/11/2014,7800676-4,106717.5,2101162 - Public Works Loan Board,PWLB HRA 500801
Tendring DC,http://statistics.data.gov.uk/id/local-authority-district/22UN,Corporate Services,9900 - General Fund Balance Sheet,B886 - Rail Warrants Allocation Holding Account,07/11/2014,7800654-0,1689.4,2101174 - R S P Ltd,Rail Warrants
Tendring DC,http://statistics.data.gov.uk/id/local-authority-district/22UN,Corporate Services,9900 - General Fund Balance Sheet,B146 - Car Loans - Principal,25/11/2014,1061821-1,2995,REDACTED PERSONAL DATA,REDACTED PERSONAL DATA
Tendring DC,http://statistics.data.gov.uk/id/local-authority-district/22UN,Corporate Services,1760 - IT Direct Service Costs,4350 - Photocopier Hire,04/11/2014,7015627-1,195,2101090 - Ricoh UK Ltd,SECURITY ERASE LEVEL 30
Tendring DC,http://statistics.data.gov.uk/id/local-authority-district/22UN,Corporate Services,7240 - Electoral Registration Expenses,4700 - Postage,18/11/2014,1061656-1,123.52,2101139 - Royal Mail Group Ltd,ELECTORAL POSTAGE
Tendring DC,http://statistics.data.gov.uk/id/local-authority-district/22UN,Corporate Services,7220 - Election Expenses,4486 - Election Expenses,04/11/2014,7015588-1,3361.79,2101139 - Royal Mail Group Ltd,ELECTORAL POSTAGE
Tendring DC,http://statistics.data.gov.uk/id/local-authority-district/22UN,Corporate Services,7240 - Electoral Registration Expenses,4700 - Postage,04/11/2014,7015588-2,627.78,2101139 - Royal Mail Group Ltd,ELECTORAL POSTAGE
Tendring DC,http://statistics.data.gov.uk/id/local-authority-district/22UN,Corporate Services,7220 - Election Expenses,4486 - Election Expenses,04/11/2014,1061166-1,-271.5,2101284 - Shaw & Sons Ltd,CREDIT-GOODS RETURNED
Tendring DC,http://statistics.data.gov.uk/id/local-authority-district/22UN,Corporate Services,7220 - Election Expenses,4486 - Election Expenses,04/11/2014,1061167-1,-84.75,2101284 - Shaw & Sons Ltd,CREDIT-RETURNS
Tendring DC,http://statistics.data.gov.uk/id/local-authority-district/22UN,Corporate Services,1100 - Corporate Director (Corporate Services) and Admin Service Unit,4300 - Printing & Stationery,04/11/2014,7015020-1,75.4,2101284 - Shaw & Sons Ltd,LEGAL ORDER - SHAW & SONS
Tendring DC,http://statistics.data.gov.uk/id/local-authority-district/22UN,Corporate Services,7220 - Election Expenses,4486 - Election Expenses,04/11/2014,7015589-1,1099.35,2101284 - Shaw & Sons Ltd,CLACTON PARLIAMENTARY BY ELECTION
Tendring DC,http://statistics.data.gov.uk/id/local-authority-district/22UN,Corporate Services,7220 - Election Expenses,4300 - Printing & Stationery,04/11/2014,7015590-1,257.75,2101284 - Shaw & Sons Ltd,BRIGHTLINGSEA BY ELECTION
Tendring DC,http://statistics.data.gov.uk/id/local-authority-district/22UN,Corporate Services,1815 - Personnel and Human Resources Issues,1500 - Advertising - Recruitment,25/11/2014,7016157-1,2440,2105423 - SHL Group Ltd,WEB UNIT REBOOSTS
Tendring DC,http://statistics.data.gov.uk/id/local-authority-district/22UN,Corporate Services,1620 - IT Section Service Unit,4880 - Subscriptions Paid,25/11/2014,1061789-1,140,2101296 - SOCITM Limited,SOCITM NOV 14
Tendring DC,http://statistics.data.gov.uk/id/local-authority-district/22UN,Corporate Services,1100 - Corporate Director (Corporate Services) and Admin Service Unit,4880 - Subscriptions Paid,11/11/2014,7015812-1,198,2111821 - The Association of Democratic Services Officers,ADSO MEMBERSHIP
Tendring DC,http://statistics.data.gov.uk/id/local-authority-district/22UN,Corporate Services,1100 - Corporate Director (Corporate Services) and Admin Service Unit,4880 - Subscriptions Paid,18/11/2014,1061657-1,237.5,2104780 - The Association of Electoral Administrators,AEA RENEWALS
Tendring DC,http://statistics.data.gov.uk/id/local-authority-district/22UN,Corporate Services,7100 - Community Health/Safety,5164 - Project Expenses,11/11/2014,1061622-1,21.9,2113523 - THE CONSORTIUM OFFICE,TRAINING BIBS
Tendring DC,http://statistics.data.gov.uk/id/local-authority-district/22UN,Corporate Services,1661 - Other Apportionable Overheads - Corporate Support,5199 - Photocopying Licence Fee,04/11/2014,7015574-1,1250.48,2103547 - The Copyright Licensing Agency Ltd,COPYRIGHT LICENCE
Tendring DC,http://statistics.data.gov.uk/id/local-authority-district/22UN,Corporate Services,5240 - HRA - Managing Tenancies,5248 - Estate Management Expenses,01/11/2014,7800664-0,13.32,2112813 - Three,Dongles x 3 Nov 14
Tendring DC,http://statistics.data.gov.uk/id/local-authority-district/22UN,Corporate Services,1930 - Asset Management Service Unit,4469 - Other Non - Legal Professional Services,11/11/2014,7015757-1,6.23,2111202 - Trade UK,CABLE TIES & FIXINGS
Tendring DC,http://statistics.data.gov.uk/id/local-authority-district/22UN,Corporate Services,1760 - IT Direct Service Costs,6320 - IT Services Agreements Payment,11/11/2014,1061615-1,47898.74,2108077 - Trinity,Nov-14
Tendring DC,http://statistics.data.gov.uk/id/local-authority-district/22UN,Corporate Services,9900 - General Fund Balance Sheet,B339 - Lease Car - TUSKER scheme,18/11/2014,7016002-1,80.87,2114054 - Tuskerdirect Limited,LEASE PAYMENT NOV 14
Tendring DC,http://statistics.data.gov.uk/id/local-authority-district/22UN,Corporate Services,9900 - General Fund Balance Sheet,B339 - Lease Car - TUSKER scheme,18/11/2014,7016002-10,116.99,2114054 - Tuskerdirect Limited,LEASE PAYMENT NOV 14
Tendring DC,http://statistics.data.gov.uk/id/local-authority-district/22UN,Corporate Services,9900 - General Fund Balance Sheet,B339 - Lease Car - TUSKER scheme,18/11/2014,7016002-11,37.4,2114054 - Tuskerdirect Limited,LEASE PAYMENT NOV 14
Tendring DC,http://statistics.data.gov.uk/id/local-authority-district/22UN,Corporate Services,9900 - General Fund Balance Sheet,B339 - Lease Car - TUSKER scheme,18/11/2014,7016002-12,64.41,2114054 - Tuskerdirect Limited,LEASE PAYMENT NOV 14
Tendring DC,http://statistics.data.gov.uk/id/local-authority-district/22UN,Corporate Services,9900 - General Fund Balance Sheet,B339 - Lease Car - TUSKER scheme,18/11/2014,7016002-13,65.65,2114054 - Tuskerdirect Limited,LEASE PAYMENT NOV 14
Tendring DC,http://statistics.data.gov.uk/id/local-authority-district/22UN,Corporate Services,9900 - General Fund Balance Sheet,B339 - Lease Car - TUSKER scheme,18/11/2014,7016002-14,78.79,2114054 - Tuskerdirect Limited,LEASE PAYMENT NOV 14
Tendring DC,http://statistics.data.gov.uk/id/local-authority-district/22UN,Corporate Services,9900 - General Fund Balance Sheet,B339 - Lease Car - TUSKER scheme,18/11/2014,7016002-15,37.4,2114054 - Tuskerdirect Limited,LEASE PAYMENT NOV 14
Tendring DC,http://statistics.data.gov.uk/id/local-authority-district/22UN,Corporate Services,9900 - General Fund Balance Sheet,B339 - Lease Car - TUSKER scheme,18/11/2014,7016002-16,45.42,2114054 - Tuskerdirect Limited,LEASE PAYMENT NOV 14
Tendring DC,http://statistics.data.gov.uk/id/local-authority-district/22UN,Corporate Services,9900 - General Fund Balance Sheet,B339 - Lease Car - TUSKER scheme,18/11/2014,7016002-2,97.06,2114054 - Tuskerdirect Limited,LEASE PAYMENT NOV 14
Tendring DC,http://statistics.data.gov.uk/id/local-authority-district/22UN,Corporate Services,9900 - General Fund Balance Sheet,B339 - Lease Car - TUSKER scheme,18/11/2014,7016002-3,42.85,2114054 - Tuskerdirect Limited,LEASE PAYMENT NOV 14
Tendring DC,http://statistics.data.gov.uk/id/local-authority-district/22UN,Corporate Services,9900 - General Fund Balance Sheet,B339 - Lease Car - TUSKER scheme,18/11/2014,7016002-4,63.42,2114054 - Tuskerdirect Limited,LEASE PAYMENT NOV 14
Tendring DC,http://statistics.data.gov.uk/id/local-authority-district/22UN,Corporate Services,9900 - General Fund Balance Sheet,B339 - Lease Car - TUSKER scheme,18/11/2014,7016002-5,66.67,2114054 - Tuskerdirect Limited,LEASE PAYMENT NOV 14
Tendring DC,http://statistics.data.gov.uk/id/local-authority-district/22UN,Corporate Services,9900 - General Fund Balance Sheet,B339 - Lease Car - TUSKER scheme,18/11/2014,7016002-6,80.02,2114054 - Tuskerdirect Limited,LEASE PAYMENT NOV 14
Tendring DC,http://statistics.data.gov.uk/id/local-authority-district/22UN,Corporate Services,9900 - General Fund Balance Sheet,B339 - Lease Car - TUSKER scheme,18/11/2014,7016002-7,32.59,2114054 - Tuskerdirect Limited,LEASE PAYMENT NOV 14
Tendring DC,http://statistics.data.gov.uk/id/local-authority-district/22UN,Corporate Services,9900 - General Fund Balance Sheet,B339 - Lease Car - TUSKER scheme,18/11/2014,7016002-8,52.01,2114054 - Tuskerdirect Limited,LEASE PAYMENT NOV 14
Tendring DC,http://statistics.data.gov.uk/id/local-authority-district/22UN,Corporate Services,9900 - General Fund Balance Sheet,B339 - Lease Car - TUSKER scheme,18/11/2014,7016002-9,97.48,2114054 - Tuskerdirect Limited,LEASE PAYMENT NOV 14
Tendring DC,http://statistics.data.gov.uk/id/local-authority-district/22UN,Corporate Services,1760 - IT Direct Service Costs,4751 - Hardware & Service Maintenance,25/11/2014,7016149-1,182.95,2101521 - Videk Limited,PATCH CABLE PINK 3 MTRE
Tendring DC,http://statistics.data.gov.uk/id/local-authority-district/22UN,Corporate Services,1815 - Personnel and Human Resources Issues,1711 - Training - e-Learning,11/11/2014,7015759-1,3500,2112451 - VineHR Ltd,VINE HR ANNUAL PAYMENT
Tendring DC,http://statistics.data.gov.uk/id/local-authority-district/22UN,Corporate Services,1100 - Corporate Director (Corporate Services) and Admin Service Unit,4716 - Mobile Telephone Costs,18/11/2014,7016003-1,199.26,2114085 - Vodafone Limited,VODAFONE BILL
Tendring DC,http://statistics.data.gov.uk/id/local-authority-district/22UN,Corporate Services,1330 - Human Resources Service Unit,4716 - Mobile Telephone Costs,18/11/2014,7016003-2,124.85,2114085 - Vodafone Limited,VODAFONE BILL
Tendring DC,http://statistics.data.gov.uk/id/local-authority-district/22UN,Corporate Services,1300 - Legal Services Service Unit,4716 - Mobile Telephone Costs,18/11/2014,7016003-3,42.59,2114085 - Vodafone Limited,VODAFONE BILL
Tendring DC,http://statistics.data.gov.uk/id/local-authority-district/22UN,Corporate Services,1180 - Benefit Fraud Investigation Service Unit,4716 - Mobile Telephone Costs,18/11/2014,7016003-4,12.4,2114085 - Vodafone Limited,VODAFONE BILL
Tendring DC,http://statistics.data.gov.uk/id/local-authority-district/22UN,Corporate Services,6460 - Career Track,4716 - Mobile Telephone Costs,18/11/2014,7016003-5,160.27,2114085 - Vodafone Limited,VODAFONE BILL
Tendring DC,http://statistics.data.gov.uk/id/local-authority-district/22UN,Corporate Services,1620 - IT Section Service Unit,4716 - Mobile Telephone Costs,18/11/2014,7016003-6,222.08,2114085 - Vodafone Limited,VODAFONE BILL
Tendring DC,http://statistics.data.gov.uk/id/local-authority-district/22UN,Corporate Services,7040 - Civic Ceremonial Expenses,4080 - Materials & Consumables,18/11/2014,7016003-7,36,2114085 - Vodafone Limited,VODAFONE BILL
Tendring DC,http://statistics.data.gov.uk/id/local-authority-district/22UN,Corporate Services,6550 - Members - Other Costs,4716 - Mobile Telephone Costs,18/11/2014,7016003-8,108.55,2114085 - Vodafone Limited,VODAFONE BILL
Tendring DC,http://statistics.data.gov.uk/id/local-authority-district/22UN,Corporate Services,6460 - Career Track,4468 - AGE Grant Training Costs,11/11/2014,7015795-1,1500,REDACTED PERSONAL DATA,REDACTED PERSONAL DATA
Tendring DC,http://statistics.data.gov.uk/id/local-authority-district/22UN,Corporate Services,1760 - IT Direct Service Costs,4350 - Photocopier Hire,25/11/2014,1061764-1,161.8,2101517 - Xerox (UK) Ltd,XEROX 2014
Tendring DC,http://statistics.data.gov.uk/id/local-authority-district/22UN,Corporate Services,1760 - IT Direct Service Costs,4350 - Photocopier Hire,04/11/2014,7015633-1,223.53,2101517 - Xerox (UK) Ltd,XEROX 2014
Tendring DC,http://statistics.data.gov.uk/id/local-authority-district/22UN,Corporate Services,1760 - IT Direct Service Costs,4350 - Photocopier Hire,04/11/2014,2116896-1,156.79,2101527 - Xerox Finance Ltd,planning policy
Tendring DC,http://statistics.data.gov.uk/id/local-authority-district/22UN,Corporate Services,1320 - Print Unit Service Unit,4350 - Photocopier Hire,18/11/2014,7015926-1,1964.1,2101527 - Xerox Finance Ltd,252 RENTAL
Tendring DC,http://statistics.data.gov.uk/id/local-authority-district/22UN,Corporate Services,1320 - Print Unit Service Unit,4350 - Photocopier Hire,25/11/2014,7016200-1,1869.9,2101527 - Xerox Finance Ltd,4127 RENTAL
Tendring DC,http://statistics.data.gov.uk/id/local-authority-district/22UN,Corporate Services,1100 - Corporate Director (Corporate Services) and Admin Service Unit,4300 - Printing & Stationery,04/11/2014,2116978-1,49.73,2107546 - XMA Limited,XMA Order 26/09
Tendring DC,http://statistics.data.gov.uk/id/local-authority-district/22UN,Corporate Services,1100 - Corporate Director (Corporate Services) and Admin Service Unit,4300 - Printing & Stationery,04/11/2014,2116979-1,28.14,2107546 - XMA Limited,XMA Order 26/9
Tendring DC,http://statistics.data.gov.uk/id/local-authority-district/22UN,Corporate Services,1100 - Corporate Director (Corporate Services) and Admin Service Unit,4300 - Printing & Stationery,04/11/2014,7015591-1,18.63,2107546 - XMA Limited,INK CARTRIDGE
Tendring DC,http://statistics.data.gov.uk/id/local-authority-district/22UN,Corporate Services,1100 - Corporate Director (Corporate Services) and Admin Service Unit,4300 - Printing & Stationery,18/11/2014,7016010-1,9.25,2107546 - XMA Limited,INK FOR CAREER TRACK
Tendring DC,http://statistics.data.gov.uk/id/local-authority-district/22UN,Life Opportunities,6160 - Princes Theatre,4597 - Hired Services - Payments to Contractors,25/11/2014,7016057-1,50,2100091 - A Warrender,PIANO TUNING NOV 14
Tendring DC,http://statistics.data.gov.uk/id/local-authority-district/22UN,Life Opportunities,6160 - Princes Theatre,3302 - Car/Cycle Allowances - Officers,11/11/2014,1061546-1,60,REDACTED PERSONAL DATA,REDACTED PERSONAL DATA
Tendring DC,http://statistics.data.gov.uk/id/local-authority-district/22UN,Life Opportunities,8540 - Leisure Centre Clacton,2100 - Building Repairs,18/11/2014,7015986-1,325,2108452 - Access Automation Ltd,FRONT DOOR REPLACE BATTERY
Tendring DC,http://statistics.data.gov.uk/id/local-authority-district/22UN,Life Opportunities,5360 - HRA - Sheltered Units,4300 - Printing & Stationery,04/11/2014,2116961-1,27.8,2114413 - Acoo Review Limited,lanyards for sheltered
Tendring DC,http://statistics.data.gov.uk/id/local-authority-district/22UN,Life Opportunities,1880 - Office Accommodation Expenses,2520 - Sewerage & Environmental Charges,11/11/2014,1061539-1,33.84,2112518 - Affinity Water Ltd (East Region),CLAY HALL WATER APR-OCT 14
Tendring DC,http://statistics.data.gov.uk/id/local-authority-district/22UN,Life Opportunities,1880 - Office Accommodation Expenses,2500 - Water Services - Metered,11/11/2014,1061539-2,87.79,2112518 - Affinity Water Ltd (East Region),CLAY HALL WATER APR-OCT 14
Tendring DC,http://statistics.data.gov.uk/id/local-authority-district/22UN,Life Opportunities,8540 - Leisure Centre Clacton,2510 - Water Services - Unmetered,18/11/2014,1061639-1,992.23,2112518 - Affinity Water Ltd (East Region),OCTOBER
Tendring DC,http://statistics.data.gov.uk/id/local-authority-district/22UN,Life Opportunities,1860 - Depots General,2500 - Water Services - Metered,04/11/2014,2116950-1,172.78,2112518 - Affinity Water Ltd (East Region),northbourne 1st aid room april to sept 14
Tendring DC,http://statistics.data.gov.uk/id/local-authority-district/22UN,Life Opportunities,1860 - Depots General,2520 - Sewerage & Environmental Charges,04/11/2014,2116950-2,206.93,2112518 - Affinity Water Ltd (East Region),northbourne 1st aid room april to sept 14
Tendring DC,http://statistics.data.gov.uk/id/local-authority-district/22UN,Life Opportunities,1860 - Depots General,2500 - Water Services - Metered,18/11/2014,2117042-1,326.3,2112518 - Affinity Water Ltd (East Region),MIll Lane Depot April 14 - 7 Oct 14
Tendring DC,http://statistics.data.gov.uk/id/local-authority-district/22UN,Life Opportunities,1860 - Depots General,2520 - Sewerage & Environmental Charges,18/11/2014,2117042-2,339.02,2112518 - Affinity Water Ltd (East Region),MIll Lane Depot April 14 - 7 Oct 14
Tendring DC,http://statistics.data.gov.uk/id/local-authority-district/22UN,Life Opportunities,1880 - Office Accommodation Expenses,2500 - Water Services - Metered,18/11/2014,2117043-1,35.36,2112518 - Affinity Water Ltd (East Region),Frinton Water April 14 - 7 Oct 14
Tendring DC,http://statistics.data.gov.uk/id/local-authority-district/22UN,Life Opportunities,1880 - Office Accommodation Expenses,2520 - Sewerage & Environmental Charges,18/11/2014,2117043-2,90.66,2112518 - Affinity Water Ltd (East Region),Frinton Water April 14 - 7 Oct 14
Tendring DC,http://statistics.data.gov.uk/id/local-authority-district/22UN,Life Opportunities,1860 - Depots General,2500 - Water Services - Metered,04/11/2014,7015637-1,106.69,2112518 - Affinity Water Ltd (East Region),WORK SHOP NORTHBOURNE APRIL TO OCT 14
Tendring DC,http://statistics.data.gov.uk/id/local-authority-district/22UN,Life Opportunities,1860 - Depots General,2520 - Sewerage & Environmental Charges,04/11/2014,7015637-2,150.94,2112518 - Affinity Water Ltd (East Region),WORK SHOP NORTHBOURNE APRIL TO OCT 14
Tendring DC,http://statistics.data.gov.uk/id/local-authority-district/22UN,Life Opportunities,8510 - Dovercourt Swimming Pool & All Weather Facilities,2510 - Water Services - Unmetered,18/11/2014,7015884-1,400.23,2112518 - Affinity Water Ltd (East Region),AFFINITY WATER - DSP
Tendring DC,http://statistics.data.gov.uk/id/local-authority-district/22UN,Life Opportunities,8520 - Frinton & Walton Swimming Pool,2510 - Water Services - Unmetered,18/11/2014,7015889-1,571.21,2112518 - Affinity Water Ltd (East Region),FWSP - AFFINITY WATER
Tendring DC,http://statistics.data.gov.uk/id/local-authority-district/22UN,Life Opportunities,1880 - Office Accommodation Expenses,2500 - Water Services - Metered,25/11/2014,7016128-1,1613.75,2112518 - Affinity Water Ltd (East Region),WATER TOWN HALL 1.4 - 30.9.14
Tendring DC,http://statistics.data.gov.uk/id/local-authority-district/22UN,Life Opportunities,1880 - Office Accommodation Expenses,2520 - Sewerage & Environmental Charges,25/11/2014,7016128-2,1544.09,2112518 - Affinity Water Ltd (East Region),WATER TOWN HALL 1.4 - 30.9.14
Tendring DC,http://statistics.data.gov.uk/id/local-authority-district/22UN,Life Opportunities,H715 - Measures To Combat Condensation,C200 - Main Contractor,25/11/2014,1061787-1,562.95,REDACTED PERSONAL DATA,REDACTED PERSONAL DATA
Tendring DC,http://statistics.data.gov.uk/id/local-authority-district/22UN,Life Opportunities,H715 - Measures To Combat Condensation,C200 - Main Contractor,25/11/2014,1061788-1,671.4,REDACTED PERSONAL DATA,REDACTED PERSONAL DATA
Tendring DC,http://statistics.data.gov.uk/id/local-authority-district/22UN,Life Opportunities,H715 - Measures To Combat Condensation,C200 - Main Contractor,04/11/2014,2116906-1,275.5,REDACTED PERSONAL DATA,REDACTED PERSONAL DATA
Tendring DC,http://statistics.data.gov.uk/id/local-authority-district/22UN,Life Opportunities,H715 - Measures To Combat Condensation,C200 - Main Contractor,04/11/2014,2116907-1,275.5,REDACTED PERSONAL DATA,REDACTED PERSONAL DATA
Tendring DC,http://statistics.data.gov.uk/id/local-authority-district/22UN,Life Opportunities,H715 - Measures To Combat Condensation,C200 - Main Contractor,04/11/2014,2116908-1,625.5,REDACTED PERSONAL DATA,REDACTED PERSONAL DATA
Tendring DC,http://statistics.data.gov.uk/id/local-authority-district/22UN,Life Opportunities,H715 - Measures To Combat Condensation,C200 - Main Contractor,04/11/2014,2116909-1,247.95,REDACTED PERSONAL DATA,REDACTED PERSONAL DATA
Tendring DC,http://statistics.data.gov.uk/id/local-authority-district/22UN,Life Opportunities,H715 - Measures To Combat Condensation,C200 - Main Contractor,11/11/2014,7015735-1,732.1,REDACTED PERSONAL DATA,REDACTED PERSONAL DATA
Tendring DC,http://statistics.data.gov.uk/id/local-authority-district/22UN,Life Opportunities,H715 - Measures To Combat Condensation,C200 - Main Contractor,11/11/2014,7015736-1,275.5,REDACTED PERSONAL DATA,REDACTED PERSONAL DATA
Tendring DC,http://statistics.data.gov.uk/id/local-authority-district/22UN,Life Opportunities,H715 - Measures To Combat Condensation,C200 - Main Contractor,11/11/2014,7015765-1,1048.42,REDACTED PERSONAL DATA,REDACTED PERSONAL DATA
Tendring DC,http://statistics.data.gov.uk/id/local-authority-district/22UN,Life Opportunities,5480 - HRA - Repair & Maintenance,2017 - Mechanical Equipment /Extract Fans,18/11/2014,7015899-1,642.42,REDACTED PERSONAL DATA,REDACTED PERSONAL DATA
Tendring DC,http://statistics.data.gov.uk/id/local-authority-district/22UN,Life Opportunities,H715 - Measures To Combat Condensation,C200 - Main Contractor,18/11/2014,7016016-1,275.3,REDACTED PERSONAL DATA,REDACTED PERSONAL DATA
Tendring DC,http://statistics.data.gov.uk/id/local-authority-district/22UN,Life Opportunities,H715 - Measures To Combat Condensation,C200 - Main Contractor,25/11/2014,7016125-1,562.95,REDACTED PERSONAL DATA,REDACTED PERSONAL DATA
Tendring DC,http://statistics.data.gov.uk/id/local-authority-district/22UN,Life Opportunities,C021 - Cremator Replacement and Crematorium Car Park,C200 - Main Contractor,18/11/2014,2117039-1,1115,2113215 - Allman Woodcock Limited,Fees 17
Tendring DC,http://statistics.data.gov.uk/id/local-authority-district/22UN,Life Opportunities,C021 - Cremator Replacement and Crematorium Car Park,C200 - Main Contractor,18/11/2014,2117050-1,1115,2113215 - Allman Woodcock Limited,Weeley Crem Feb 16
Tendring DC,http://statistics.data.gov.uk/id/local-authority-district/22UN,Life Opportunities,6740 - Careline,3060 - Running Costs - Diesel,18/11/2014,2117080-1,413.99,2101825 - Allstar Business Solutions Ltd,Oct-14
Tendring DC,http://statistics.data.gov.uk/id/local-authority-district/22UN,Life Opportunities,5480 - HRA - Repair & Maintenance,2058 - Fire Alarms Repairs,11/11/2014,1061536-1,147.25,2114359 - Alpha Fire Alarms Ltd,CROOKED ELMS
Tendring DC,http://statistics.data.gov.uk/id/local-authority-district/22UN,Life Opportunities,6160 - Princes Theatre,4622 - Hired Services - Artistes and Production Companies,25/11/2014,7016137-1,4250,2114459 - AMICK Productions,G4
Tendring DC,http://statistics.data.gov.uk/id/local-authority-district/22UN,Life Opportunities,5860 - Manningtree Sports Centre,4597 - Hired Services - Payments to Contractors,04/11/2014,2116941-1,210,2113500 - Anglia Sports Management Limited,football coaching sept 14
Tendring DC,http://statistics.data.gov.uk/id/local-authority-district/22UN,Life Opportunities,8540 - Leisure Centre Clacton,2100 - Building Repairs,25/11/2014,7016091-1,105,2100096 - Anglia Welding (Fabrications) Co,REPAIR GOAL
Tendring DC,http://statistics.data.gov.uk/id/local-authority-district/22UN,Life Opportunities,5240 - HRA - Managing Tenancies,5242 - Tenant Relations,11/11/2014,1061565-1,10,REDACTED PERSONAL DATA,REDACTED PERSONAL DATA
Tendring DC,http://statistics.data.gov.uk/id/local-authority-district/22UN,Life Opportunities,6740 - Careline,4040 - Equipment & Tools,18/11/2014,2117071-1,273.63,2100048 - Argos Business Solutions,"42"" FHD LED TV/Bracket"
Tendring DC,http://statistics.data.gov.uk/id/local-authority-district/22UN,Life Opportunities,5880 - Management Of Sport & Leisure Facilities,5166 - Marketing and Promotion,04/11/2014,7015564-1,246.86,2100048 - Argos Business Solutions,GIFT CARDS
Tendring DC,http://statistics.data.gov.uk/id/local-authority-district/22UN,Life Opportunities,6740 - Careline,4040 - Equipment & Tools,04/11/2014,7015566-1,3.96,2100048 - Argos Business Solutions,MANUAL ORDER CHARGE
Tendring DC,http://statistics.data.gov.uk/id/local-authority-district/22UN,Life Opportunities,6740 - Careline,4040 - Equipment & Tools,25/11/2014,7016095-1,159.44,2100048 - Argos Business Solutions,AVA COMPACT SOFA CHARCOAL
Tendring DC,http://statistics.data.gov.uk/id/local-authority-district/22UN,Life Opportunities,5860 - Manningtree Sports Centre,4300 - Printing & Stationery,25/11/2014,7016097-1,35.24,2100048 - Argos Business Solutions,SHREDDER
Tendring DC,http://statistics.data.gov.uk/id/local-authority-district/22UN,Life Opportunities,H860 - Disabled Adaptations,C200 - Main Contractor,25/11/2014,1061736-1,1150,REDACTED PERSONAL DATA,REDACTED PERSONAL DATA
Tendring DC,http://statistics.data.gov.uk/id/local-authority-district/22UN,Life Opportunities,H860 - Disabled Adaptations,C200 - Main Contractor,25/11/2014,1061736-2,4430,REDACTED PERSONAL DATA,REDACTED PERSONAL DATA
Tendring DC,http://statistics.data.gov.uk/id/local-authority-district/22UN,Life Opportunities,8520 - Frinton & Walton Swimming Pool,5300 - Resaleable Items,04/11/2014,7015537-1,95.72,2100088 - ASA Merchandising Ltd,FWSP - ASA
Tendring DC,http://statistics.data.gov.uk/id/local-authority-district/22UN,Life Opportunities,"1580 - Benefits, Revenues and Customer Contact SU",5160 - Advertising,11/11/2014,1061595-1,750,2100049 - Authorised Publications,NORTH ESSEX + CHELMS COMM CARE GUIDE
Tendring DC,http://statistics.data.gov.uk/id/local-authority-district/22UN,Life Opportunities,"1580 - Benefits, Revenues and Customer Contact SU",5160 - Advertising,11/11/2014,1061596-1,750,2100049 - Authorised Publications,NORTH ESSEX + CHELMS COMM CARE GUIDE
Tendring DC,http://statistics.data.gov.uk/id/local-authority-district/22UN,Life Opportunities,8520 - Frinton & Walton Swimming Pool,4400 - Maintenance Under Service Agreements,18/11/2014,7015896-1,81.07,2112129 - Autobar Vending Services Ltd,FWSP - AUTOBAR
Tendring DC,http://statistics.data.gov.uk/id/local-authority-district/22UN,Life Opportunities,1880 - Office Accommodation Expenses,4080 - Materials & Consumables,11/11/2014,1061599-1,4.63,2100099 - B & Q Trade Account,MASONRY DRILL BIT
Tendring DC,http://statistics.data.gov.uk/id/local-authority-district/22UN,Life Opportunities,1880 - Office Accommodation Expenses,4080 - Materials & Consumables,11/11/2014,1061628-1,258.1,2100099 - B & Q Trade Account,WALL UNITS & ACCESSORIES
Tendring DC,http://statistics.data.gov.uk/id/local-authority-district/22UN,Life Opportunities,1880 - Office Accommodation Expenses,4080 - Materials & Consumables,18/11/2014,2117045-1,24.05,2100099 - B & Q Trade Account,Various Items
Tendring DC,http://statistics.data.gov.uk/id/local-authority-district/22UN,Life Opportunities,1880 - Office Accommodation Expenses,4080 - Materials & Consumables,18/11/2014,7015915-1,22.92,2100099 - B & Q Trade Account,"TRAP WASHERS, BASIN PLUG"
Tendring DC,http://statistics.data.gov.uk/id/local-authority-district/22UN,Life Opportunities,1880 - Office Accommodation Expenses,4080 - Materials & Consumables,18/11/2014,7015916-1,44.95,2100099 - B & Q Trade Account,"PILLAR TAPS, COMBINED WASTE WITH OVERFLOW"
Tendring DC,http://statistics.data.gov.uk/id/local-authority-district/22UN,Life Opportunities,1880 - Office Accommodation Expenses,4080 - Materials & Consumables,25/11/2014,7016116-1,17.48,2100099 - B & Q Trade Account,IRONMONGERY NOV 14
Tendring DC,http://statistics.data.gov.uk/id/local-authority-district/22UN,Life Opportunities,1880 - Office Accommodation Expenses,2100 - Building Repairs,11/11/2014,1061597-1,685.03,2114305 - Bacon (Specialist Services) Ltd,MAINT LIGHTNING PROTECTION
Tendring DC,http://statistics.data.gov.uk/id/local-authority-district/22UN,Life Opportunities,5480 - HRA - Repair & Maintenance,2065 - Lightening Conductor Servicing,18/11/2014,2117033-1,150,2114305 - Bacon (Specialist Services) Ltd,1-8 Sayers House
Tendring DC,http://statistics.data.gov.uk/id/local-authority-district/22UN,Life Opportunities,5480 - HRA - Repair & Maintenance,2065 - Lightening Conductor Servicing,18/11/2014,2117034-1,150,2114305 - Bacon (Specialist Services) Ltd,24-34 Rochford House
Tendring DC,http://statistics.data.gov.uk/id/local-authority-district/22UN,Life Opportunities,5480 - HRA - Repair & Maintenance,2065 - Lightening Conductor Servicing,18/11/2014,2117035-1,150,2114305 - Bacon (Specialist Services) Ltd,Rivers House
Tendring DC,http://statistics.data.gov.uk/id/local-authority-district/22UN,Life Opportunities,5480 - HRA - Repair & Maintenance,2065 - Lightening Conductor Servicing,18/11/2014,2117036-1,150,2114305 - Bacon (Specialist Services) Ltd,Darcy House
Tendring DC,http://statistics.data.gov.uk/id/local-authority-district/22UN,Life Opportunities,1880 - Office Accommodation Expenses,2100 - Building Repairs,11/11/2014,7015732-1,290,2114305 - Bacon (Specialist Services) Ltd,TOWN HALL LIGHTNING PROTECTION
Tendring DC,http://statistics.data.gov.uk/id/local-authority-district/22UN,Life Opportunities,8540 - Leisure Centre Clacton,5500 - Miscellaneous Expenses,18/11/2014,1061635-1,2.49,2106358 - Baker Ross Ltd,ART MATERIALS
Tendring DC,http://statistics.data.gov.uk/id/local-authority-district/22UN,Life Opportunities,8540 - Leisure Centre Clacton,5500 - Miscellaneous Expenses,18/11/2014,1061635-2,36.55,2106358 - Baker Ross Ltd,ART MATERIALS
Tendring DC,http://statistics.data.gov.uk/id/local-authority-district/22UN,Life Opportunities,5360 - HRA - Sheltered Units,4300 - Printing & Stationery,18/11/2014,2117066-1,23.62,2100111 - Banner Business Supplies Ltd,"Ruler, Clear Pouch, Batteries, Tape"
Tendring DC,http://statistics.data.gov.uk/id/local-authority-district/22UN,Life Opportunities,6160 - Princes Theatre,4300 - Printing & Stationery,18/11/2014,2117066-2,30.09,2100111 - Banner Business Supplies Ltd,"Ruler, Clear Pouch, Batteries, Tape"
Tendring DC,http://statistics.data.gov.uk/id/local-authority-district/22UN,Life Opportunities,7600 - Tourist Information Centres,4300 - Printing & Stationery,18/11/2014,2117067-1,1.33,2100111 - Banner Business Supplies Ltd,A4 Desk Diary
Tendring DC,http://statistics.data.gov.uk/id/local-authority-district/22UN,Life Opportunities,"1580 - Benefits, Revenues and Customer Contact SU",4300 - Printing & Stationery,18/11/2014,2117068-1,33.83,2100111 - Banner Business Supplies Ltd,Pens Markers Notebooks Paper
Tendring DC,http://statistics.data.gov.uk/id/local-authority-district/22UN,Life Opportunities,"1580 - Benefits, Revenues and Customer Contact SU",4300 - Printing & Stationery,18/11/2014,2117069-1,30.45,2100111 - Banner Business Supplies Ltd,Stationery Pier Ave
Tendring DC,http://statistics.data.gov.uk/id/local-authority-district/22UN,Life Opportunities,5240 - HRA - Managing Tenancies,4312 - Tenancy Stationery,18/11/2014,2117070-1,36.27,2100111 - Banner Business Supplies Ltd,Stationery 31/10/14
Tendring DC,http://statistics.data.gov.uk/id/local-authority-district/22UN,Life Opportunities,5820 - Harwich Sports Centre,4300 - Printing & Stationery,04/11/2014,7015561-1,16.79,2100111 - Banner Business Supplies Ltd,STATIONERY
Tendring DC,http://statistics.data.gov.uk/id/local-authority-district/22UN,Life Opportunities,8540 - Leisure Centre Clacton,4300 - Printing & Stationery,04/11/2014,7015562-1,1.62,2100111 - Banner Business Supplies Ltd,STATIONERY
Tendring DC,http://statistics.data.gov.uk/id/local-authority-district/22UN,Life Opportunities,8540 - Leisure Centre Clacton,4300 - Printing & Stationery,04/11/2014,7015563-1,48.54,2100111 - Banner Business Supplies Ltd,STATIONERY
Tendring DC,http://statistics.data.gov.uk/id/local-authority-district/22UN,Life Opportunities,5240 - HRA - Managing Tenancies,4312 - Tenancy Stationery,04/11/2014,7015565-1,81.19,2100111 - Banner Business Supplies Ltd,"BATTERIES, CORRECTION ROLLERS, FOLDBACK CLIPS, STICK NOTES"
Tendring DC,http://statistics.data.gov.uk/id/local-authority-district/22UN,Life Opportunities,8510 - Dovercourt Swimming Pool & All Weather Facilities,4300 - Printing & Stationery,18/11/2014,7015883-1,47,2100111 - Banner Business Supplies Ltd,DOVERCOURT POOL - VARIOUS
Tendring DC,http://statistics.data.gov.uk/id/local-authority-district/22UN,Life Opportunities,1565 - Careline / CCTV Service Unit,4300 - Printing & Stationery,25/11/2014,7016098-1,82.5,2100111 - Banner Business Supplies Ltd,LOOP PAPER & PAPER TRIMMER
Tendring DC,http://statistics.data.gov.uk/id/local-authority-district/22UN,Life Opportunities,8540 - Leisure Centre Clacton,4300 - Printing & Stationery,25/11/2014,7016101-1,91.23,2100111 - Banner Business Supplies Ltd,STATIONERY
Tendring DC,http://statistics.data.gov.uk/id/local-authority-district/22UN,Life Opportunities,5240 - HRA - Managing Tenancies,5242 - Tenant Relations,11/11/2014,1061561-1,10,REDACTED PERSONAL DATA,REDACTED PERSONAL DATA
Tendring DC,http://statistics.data.gov.uk/id/local-authority-district/22UN,Life Opportunities,5820 - Harwich Sports Centre,4597 - Hired Services - Payments to Contractors,18/11/2014,7015976-1,40.56,2105048 - Berendsen UK Ltd,ROLLER TOWEL RENTAL
Tendring DC,http://statistics.data.gov.uk/id/local-authority-district/22UN,Life Opportunities,8540 - Leisure Centre Clacton,2300 - Energy Costs - Fuel Oil,18/11/2014,7015992-1,1610,2112681 - BIRLEM Ltd,2500 LT
Tendring DC,http://statistics.data.gov.uk/id/local-authority-district/22UN,Life Opportunities,8540 - Leisure Centre Clacton,2300 - Energy Costs - Fuel Oil,25/11/2014,7016080-1,1529.04,2112681 - BIRLEM Ltd,2356 LT
Tendring DC,http://statistics.data.gov.uk/id/local-authority-district/22UN,Life Opportunities,8540 - Leisure Centre Clacton,2300 - Energy Costs - Fuel Oil,25/11/2014,7016090-1,1602.5,2112681 - BIRLEM Ltd,2500 LT
Tendring DC,http://statistics.data.gov.uk/id/local-authority-district/22UN,Life Opportunities,"1580 - Benefits, Revenues and Customer Contact SU",4040 - Equipment & Tools,25/11/2014,7016136-1,274.92,2114449 - Birmingham Telecommunications Ltd,HEADSETS & TRAINING WIRES
Tendring DC,http://statistics.data.gov.uk/id/local-authority-district/22UN,Life Opportunities,5860 - Manningtree Sports Centre,4040 - Equipment & Tools,04/11/2014,2116940-1,47.83,2101772 - Bishop Sports and Leisure,dogeballs x 8
Tendring DC,http://statistics.data.gov.uk/id/local-authority-district/22UN,Life Opportunities,5480 - HRA - Repair & Maintenance,2071 - Electric Installation Testing,18/11/2014,1061668-1,101.63,REDACTED PERSONAL DATA,REDACTED PERSONAL DATA
Tendring DC,http://statistics.data.gov.uk/id/local-authority-district/22UN,Life Opportunities,5480 - HRA - Repair & Maintenance,2072 - Planned Partial Refurbishment To Electrical Instal,18/11/2014,1061668-2,119.3,REDACTED PERSONAL DATA,REDACTED PERSONAL DATA
Tendring DC,http://statistics.data.gov.uk/id/local-authority-district/22UN,Life Opportunities,8540 - Leisure Centre Clacton,2700 - Cleaning Materials,18/11/2014,1061647-1,674,2102036 - Bonasystems Europe Ltd,BONAMAIN & BONACLEAN
Tendring DC,http://statistics.data.gov.uk/id/local-authority-district/22UN,Life Opportunities,5140 - Homelessness,4683 - Other Homelessness Expenses,11/11/2014,1061573-1,160,REDACTED PERSONAL DATA,REDACTED PERSONAL DATA
Tendring DC,http://statistics.data.gov.uk/id/local-authority-district/22UN,Life Opportunities,7100 - Community Health/Safety,5164 - Project Expenses,18/11/2014,2117062-1,4.38,2113279 - Booker,Items for Community Health
Tendring DC,http://statistics.data.gov.uk/id/local-authority-district/22UN,Life Opportunities,7100 - Community Health/Safety,5164 - Project Expenses,18/11/2014,2117062-2,34.32,2113279 - Booker,Items for Community Health
Tendring DC,http://statistics.data.gov.uk/id/local-authority-district/22UN,Life Opportunities,"1580 - Benefits, Revenues and Customer Contact SU",4753 - Computer - Application Software,18/11/2014,7015911-1,1076.35,2100116 - Bottomline Technologies,TRANSFORM UNLIMITED OUTPUT PACK
Tendring DC,http://statistics.data.gov.uk/id/local-authority-district/22UN,Life Opportunities,1880 - Office Accommodation Expenses,2100 - Building Repairs,11/11/2014,1061598-1,458,2100117 - Brian Birt Carpets Ltd,CARPET TILES ROOM 131
Tendring DC,http://statistics.data.gov.uk/id/local-authority-district/22UN,Life Opportunities,5480 - HRA - Repair & Maintenance,2008 - Responsive Maintenance - Floor Wall And Ceiling Fi,04/11/2014,2116915-1,235,REDACTED PERSONAL DATA,REDACTED PERSONAL DATA
Tendring DC,http://statistics.data.gov.uk/id/local-authority-district/22UN,Life Opportunities,6160 - Princes Theatre,4622 - Hired Services - Artistes and Production Companies,18/11/2014,2117027-1,1435.64,2100137 - Brian Shaw,Adonis
Tendring DC,http://statistics.data.gov.uk/id/local-authority-district/22UN,Life Opportunities,5340 - HRA - Communal Central Heating,2304 - Energy Costs - Electricity,25/11/2014,1061873-1,1036.64,2106318 - British Gas Business,BG ELEC SEPT 2
Tendring DC,http://statistics.data.gov.uk/id/local-authority-district/22UN,Life Opportunities,5440 - HRA - Communal Electricity,2304 - Energy Costs - Electricity,25/11/2014,1061873-2,749.91,2106318 - British Gas Business,BG ELEC SEPT 2
Tendring DC,http://statistics.data.gov.uk/id/local-authority-district/22UN,Life Opportunities,5440 - HRA - Communal Electricity,2304 - Energy Costs - Electricity,25/11/2014,1061873-3,528.11,2106318 - British Gas Business,BG ELEC SEPT 2
Tendring DC,http://statistics.data.gov.uk/id/local-authority-district/22UN,Life Opportunities,5440 - HRA - Communal Electricity,2304 - Energy Costs - Electricity,25/11/2014,1061873-4,-13.82,2106318 - British Gas Business,BG ELEC SEPT 2
Tendring DC,http://statistics.data.gov.uk/id/local-authority-district/22UN,Life Opportunities,7000 - CCTV,4718 - Fixed Communication Lines,11/11/2014,1061540-1,36.36,2100168 - British Telecommunications plc,EA39488315 & WM38244626
Tendring DC,http://statistics.data.gov.uk/id/local-authority-district/22UN,Life Opportunities,7000 - CCTV,4718 - Fixed Communication Lines,11/11/2014,1061540-2,109.35,2100168 - British Telecommunications plc,EA39488315 & WM38244626
Tendring DC,http://statistics.data.gov.uk/id/local-authority-district/22UN,Life Opportunities,5360 - HRA - Sheltered Units,4710 - Telephones - Charges,11/11/2014,1061541-1,93.5,2100168 - British Telecommunications plc,CHURCHILL CT
Tendring DC,http://statistics.data.gov.uk/id/local-authority-district/22UN,Life Opportunities,6740 - Careline,4710 - Telephones - Charges,25/11/2014,7016062-1,151.78,2100168 - British Telecommunications plc,EA 40190786
Tendring DC,http://statistics.data.gov.uk/id/local-authority-district/22UN,Life Opportunities,6740 - Careline,4710 - Telephones - Charges,25/11/2014,7016147-1,49.89,2100168 - British Telecommunications plc,EA 4148 3824
Tendring DC,http://statistics.data.gov.uk/id/local-authority-district/22UN,Life Opportunities,H815 - Re-roofing,C200 - Main Contractor,18/11/2014,1061667-1,12381.52,REDACTED PERSONAL DATA,REDACTED PERSONAL DATA
Tendring DC,http://statistics.data.gov.uk/id/local-authority-district/22UN,Life Opportunities,H815 - Re-roofing,C200 - Main Contractor,11/11/2014,7015733-1,593,REDACTED PERSONAL DATA,REDACTED PERSONAL DATA
Tendring DC,http://statistics.data.gov.uk/id/local-authority-district/22UN,Life Opportunities,5800 - Brightlingsea Sports Centre,2700 - Cleaning Materials,11/11/2014,1061530-1,135.29,2101624 - Bunzl,CLEANING SUPPLIES
Tendring DC,http://statistics.data.gov.uk/id/local-authority-district/22UN,Life Opportunities,8520 - Frinton & Walton Swimming Pool,2700 - Cleaning Materials,11/11/2014,1061587-1,143.6,2101624 - Bunzl,FWSP-BUNZL
Tendring DC,http://statistics.data.gov.uk/id/local-authority-district/22UN,Life Opportunities,8510 - Dovercourt Swimming Pool & All Weather Facilities,2700 - Cleaning Materials,11/11/2014,1061588-1,79.76,2101624 - Bunzl,DOVERCOURT POOL VARIOUS
Tendring DC,http://statistics.data.gov.uk/id/local-authority-district/22UN,Life Opportunities,8540 - Leisure Centre Clacton,2700 - Cleaning Materials,18/11/2014,1061645-1,296.23,2101624 - Bunzl,CLEANING SUPPLIES
Tendring DC,http://statistics.data.gov.uk/id/local-authority-district/22UN,Life Opportunities,8540 - Leisure Centre Clacton,2700 - Cleaning Materials,18/11/2014,1061646-1,50,2101624 - Bunzl,CLEANING SUPPLIES
Tendring DC,http://statistics.data.gov.uk/id/local-authority-district/22UN,Life Opportunities,8510 - Dovercourt Swimming Pool & All Weather Facilities,2700 - Cleaning Materials,25/11/2014,1061761-1,11.93,2101624 - Bunzl,DOVERCOURT POOL-VARIOUS
Tendring DC,http://statistics.data.gov.uk/id/local-authority-district/22UN,Life Opportunities,5860 - Manningtree Sports Centre,2700 - Cleaning Materials,25/11/2014,1061781-1,181.06,2101624 - Bunzl,CLEANING SUPPLIER
Tendring DC,http://statistics.data.gov.uk/id/local-authority-district/22UN,Life Opportunities,8150 - Office Cleaning,4080 - Materials & Consumables,18/11/2014,2117061-1,125.5,2101624 - Bunzl,Toilet Roll/Hand Towel Crem
Tendring DC,http://statistics.data.gov.uk/id/local-authority-district/22UN,Life Opportunities,8520 - Frinton & Walton Swimming Pool,2700 - Cleaning Materials,04/11/2014,7015538-1,121.35,2101624 - Bunzl,FWSP - BUNZL
Tendring DC,http://statistics.data.gov.uk/id/local-authority-district/22UN,Life Opportunities,5360 - HRA - Sheltered Units,2700 - Cleaning Materials,04/11/2014,7015547-1,64.06,2101624 - Bunzl,BLEACH & FLOOR CLEANER
Tendring DC,http://statistics.data.gov.uk/id/local-authority-district/22UN,Life Opportunities,8150 - Office Cleaning,4080 - Materials & Consumables,18/11/2014,7015878-1,196.79,2101624 - Bunzl,CLEANING EQUIPMENT WEELEY
Tendring DC,http://statistics.data.gov.uk/id/local-authority-district/22UN,Life Opportunities,8150 - Office Cleaning,4080 - Materials & Consumables,18/11/2014,7015879-1,763.6,2101624 - Bunzl,CLEANING EQUIPMENT
Tendring DC,http://statistics.data.gov.uk/id/local-authority-district/22UN,Life Opportunities,8540 - Leisure Centre Clacton,2700 - Cleaning Materials,18/11/2014,7015991-1,123.72,2101624 - Bunzl,CLEANING SUPPLIES
Tendring DC,http://statistics.data.gov.uk/id/local-authority-district/22UN,Life Opportunities,8520 - Frinton & Walton Swimming Pool,2700 - Cleaning Materials,25/11/2014,7016071-1,48.5,2101624 - Bunzl,FWSP - BUNZL
Tendring DC,http://statistics.data.gov.uk/id/local-authority-district/22UN,Life Opportunities,8540 - Leisure Centre Clacton,2700 - Cleaning Materials,25/11/2014,7016077-1,21.08,2101624 - Bunzl,CLEANING SUPPLIES
Tendring DC,http://statistics.data.gov.uk/id/local-authority-district/22UN,Life Opportunities,8540 - Leisure Centre Clacton,2700 - Cleaning Materials,25/11/2014,7016078-1,78.08,2101624 - Bunzl,CLEANING SUPPLIES
Tendring DC,http://statistics.data.gov.uk/id/local-authority-district/22UN,Life Opportunities,8540 - Leisure Centre Clacton,2100 - Building Repairs,11/11/2014,1061554-1,685,2100240 - C & W Fencing Ltd,FENCING REPAIRS
Tendring DC,http://statistics.data.gov.uk/id/local-authority-district/22UN,Life Opportunities,8520 - Frinton & Walton Swimming Pool,2100 - Building Repairs,18/11/2014,7016014-1,1023,2100280 - C H Lindsey & Son Ltd,FWSP - LINDSEY
Tendring DC,http://statistics.data.gov.uk/id/local-authority-district/22UN,Life Opportunities,5800 - Brightlingsea Sports Centre,2100 - Building Repairs,25/11/2014,7016069-1,495.95,2100280 - C H Lindsey & Son Ltd,FWSP
Tendring DC,http://statistics.data.gov.uk/id/local-authority-district/22UN,Life Opportunities,6160 - Princes Theatre,4105 - Bar/Catering Expenses,25/11/2014,7016043-1,180.8,2112687 - Cabana Soft Drinks (Essex) Ltd,DRINKS FOR PRINCES THEATRE
Tendring DC,http://statistics.data.gov.uk/id/local-authority-district/22UN,Life Opportunities,1650 - Building Services Service Unit,4400 - Maintenance Under Service Agreements,18/11/2014,7015961-1,6.01,2100291 - Canon (UK) Ltd,18 X COPIES OCT 14
Tendring DC,http://statistics.data.gov.uk/id/local-authority-district/22UN,Life Opportunities,1650 - Building Services Service Unit,4400 - Maintenance Under Service Agreements,18/11/2014,7015962-1,50.11,2100291 - Canon (UK) Ltd,SERVICE DEC 14
Tendring DC,http://statistics.data.gov.uk/id/local-authority-district/22UN,Life Opportunities,1650 - Building Services Service Unit,4616 - Hired Services - Engineers and Architects Fees,18/11/2014,1061650-1,1050,2104200 - Castons,CONTRACT FEES
Tendring DC,http://statistics.data.gov.uk/id/local-authority-district/22UN,Life Opportunities,H920 - Disabled Facilities Grants,C400 - Grant payments,18/11/2014,2117012-1,4542,REDACTED PERSONAL DATA,REDACTED PERSONAL DATA
Tendring DC,http://statistics.data.gov.uk/id/local-authority-district/22UN,Life Opportunities,8540 - Leisure Centre Clacton,5500 - Miscellaneous Expenses,25/11/2014,7016092-1,108,2100243 - Caterway,BUFFET 28.8.14
Tendring DC,http://statistics.data.gov.uk/id/local-authority-district/22UN,Life Opportunities,8540 - Leisure Centre Clacton,5500 - Miscellaneous Expenses,25/11/2014,7016093-1,546.25,2100243 - Caterway,BUFFET 23.10.14
Tendring DC,http://statistics.data.gov.uk/id/local-authority-district/22UN,Life Opportunities,5240 - HRA - Managing Tenancies,5242 - Tenant Relations,11/11/2014,1061569-1,10,REDACTED PERSONAL DATA,REDACTED PERSONAL DATA
Tendring DC,http://statistics.data.gov.uk/id/local-authority-district/22UN,Life Opportunities,H920 - Disabled Facilities Grants,C400 - Grant payments,18/11/2014,2117010-1,117.6,REDACTED PERSONAL DATA,REDACTED PERSONAL DATA
Tendring DC,http://statistics.data.gov.uk/id/local-authority-district/22UN,Life Opportunities,5260 - HRA - Rent Collection And Accounting,4462 - Bailiffs and Tracing Agent Fees re debt recovery,25/11/2014,1061755-1,1.87,2100244 - Charter Mercantile (uk) ltd,COMMISSION ON MONIES RECOVERED
Tendring DC,http://statistics.data.gov.uk/id/local-authority-district/22UN,Life Opportunities,5260 - HRA - Rent Collection And Accounting,4462 - Bailiffs and Tracing Agent Fees re debt recovery,25/11/2014,1061756-1,5.6,2100244 - Charter Mercantile (uk) ltd,COMMISSION ON MONIES RECOVERED
Tendring DC,http://statistics.data.gov.uk/id/local-authority-district/22UN,Life Opportunities,5260 - HRA - Rent Collection And Accounting,4462 - Bailiffs and Tracing Agent Fees re debt recovery,25/11/2014,1061757-1,3.73,2100244 - Charter Mercantile (uk) ltd,COMMISSION ON MONIES RECOVERED
Tendring DC,http://statistics.data.gov.uk/id/local-authority-district/22UN,Life Opportunities,5260 - HRA - Rent Collection And Accounting,4462 - Bailiffs and Tracing Agent Fees re debt recovery,18/11/2014,2117051-1,1.87,2100244 - Charter Mercantile (uk) ltd,Commission on Monies Recovered
Tendring DC,http://statistics.data.gov.uk/id/local-authority-district/22UN,Life Opportunities,5260 - HRA - Rent Collection And Accounting,4462 - Bailiffs and Tracing Agent Fees re debt recovery,18/11/2014,2117052-1,1.87,2100244 - Charter Mercantile (uk) ltd,Commission on monies recovered
Tendring DC,http://statistics.data.gov.uk/id/local-authority-district/22UN,Life Opportunities,5260 - HRA - Rent Collection And Accounting,4462 - Bailiffs and Tracing Agent Fees re debt recovery,18/11/2014,2117053-1,1.87,2100244 - Charter Mercantile (uk) ltd,
Tendring DC,http://statistics.data.gov.uk/id/local-authority-district/22UN,Life Opportunities,5220 - HRA - Policy & Management,5930 - Business Planning Expenses,04/11/2014,2116898-1,750,2100254 - Chartered Institute of Housing,practice online 1/10/14 to 30/9/15
Tendring DC,http://statistics.data.gov.uk/id/local-authority-district/22UN,Life Opportunities,5140 - Homelessness,9270 - Service Charges to Schools,03/11/2014,1061574-1,75,REDACTED PERSONAL DATA,REDACTED PERSONAL DATA
Tendring DC,http://statistics.data.gov.uk/id/local-authority-district/22UN,Life Opportunities,8510 - Dovercourt Swimming Pool & All Weather Facilities,9279 - Advantage - Cash,11/11/2014,1061575-1,62.5,REDACTED PERSONAL DATA,REDACTED PERSONAL DATA
Tendring DC,http://statistics.data.gov.uk/id/local-authority-district/22UN,Life Opportunities,7000 - CCTV,4400 - Maintenance Under Service Agreements,11/11/2014,1061593-1,1458,2113346 - Chroma Vision Ltd,REPAIRS CAMERA 3
Tendring DC,http://statistics.data.gov.uk/id/local-authority-district/22UN,Life Opportunities,7000 - CCTV,4400 - Maintenance Under Service Agreements,11/11/2014,1061594-1,700,2113346 - Chroma Vision Ltd,INVESTIGATION CAMERA 3
Tendring DC,http://statistics.data.gov.uk/id/local-authority-district/22UN,Life Opportunities,C301 - CCTV Maintenance,C200 - Main Contractor,11/11/2014,7015717-1,676,2113346 - Chroma Vision Ltd,CAMERA 27 CARD REPLACEMENT
Tendring DC,http://statistics.data.gov.uk/id/local-authority-district/22UN,Life Opportunities,C301 - CCTV Maintenance,C200 - Main Contractor,11/11/2014,7015718-1,676,2113346 - Chroma Vision Ltd,CAMERA 9 CARD REPLACEMENT
Tendring DC,http://statistics.data.gov.uk/id/local-authority-district/22UN,Life Opportunities,7000 - CCTV,4400 - Maintenance Under Service Agreements,11/11/2014,7015719-1,4781,2113346 - Chroma Vision Ltd,DOVERCOURT STATION CCTV
Tendring DC,http://statistics.data.gov.uk/id/local-authority-district/22UN,Life Opportunities,C301 - CCTV Maintenance,C200 - Main Contractor,11/11/2014,7015730-1,26914,2113346 - Chroma Vision Ltd,INSTALLATION 9 X RED VISION CAMERAS
Tendring DC,http://statistics.data.gov.uk/id/local-authority-district/22UN,Life Opportunities,5480 - HRA - Repair & Maintenance,2018 - Other Responsive Repairs,04/11/2014,2116917-1,190.17,REDACTED PERSONAL DATA,REDACTED PERSONAL DATA
Tendring DC,http://statistics.data.gov.uk/id/local-authority-district/22UN,Life Opportunities,5800 - Brightlingsea Sports Centre,2100 - Building Repairs,25/11/2014,7016068-1,87.5,2100218 - Clacton Electronics Ltd,CLACTON ELECTRONICS 2 X SPEAKER REPAIRS
Tendring DC,http://statistics.data.gov.uk/id/local-authority-district/22UN,Life Opportunities,5960 - Recreation Grounds,9286 - Leisure Centre Facilities - General Hire & Bookings,25/11/2014,1061795-1,90,2111591 - Clacton Sports Club,
Tendring DC,http://statistics.data.gov.uk/id/local-authority-district/22UN,Life Opportunities,6740 - Careline,5160 - Advertising,25/11/2014,7016045-1,1199,2110780 - Clearchannel UK Ltd,BUS SHELTER ADS
Tendring DC,http://statistics.data.gov.uk/id/local-authority-district/22UN,Life Opportunities,6355 - Community Activity Network,4597 - Hired Services - Payments to Contractors,04/11/2014,2116948-1,300,2108041 - Coastal Golf Academy,active tendring golf july-aug
Tendring DC,http://statistics.data.gov.uk/id/local-authority-district/22UN,Life Opportunities,8540 - Leisure Centre Clacton,4597 - Hired Services - Payments to Contractors,18/11/2014,7015984-1,912,2111358 - Colchester United FC Ltd Youth,SOCCER COACHING SEPT - DEC
Tendring DC,http://statistics.data.gov.uk/id/local-authority-district/22UN,Life Opportunities,8540 - Leisure Centre Clacton,4597 - Hired Services - Payments to Contractors,18/11/2014,7015985-1,592,2111358 - Colchester United FC Ltd Youth,SUMMER HOL SOCCER COACHING
Tendring DC,http://statistics.data.gov.uk/id/local-authority-district/22UN,Life Opportunities,5820 - Harwich Sports Centre,4597 - Hired Services - Payments to Contractors,18/11/2014,7015994-1,840,2111358 - Colchester United FC Ltd Youth,COACHING SESSIONS
Tendring DC,http://statistics.data.gov.uk/id/local-authority-district/22UN,Life Opportunities,6355 - Community Activity Network,4597 - Hired Services - Payments to Contractors,25/11/2014,7016089-1,216,2111358 - Colchester United FC Ltd Youth,OCT HALF TERM
Tendring DC,http://statistics.data.gov.uk/id/local-authority-district/22UN,Life Opportunities,5260 - HRA - Rent Collection And Accounting,4462 - Bailiffs and Tracing Agent Fees re debt recovery,18/11/2014,2117073-1,6.75,2100381 - Collect Services Ltd,Commission on Debt Recovered
Tendring DC,http://statistics.data.gov.uk/id/local-authority-district/22UN,Life Opportunities,5260 - HRA - Rent Collection And Accounting,4462 - Bailiffs and Tracing Agent Fees re debt recovery,18/11/2014,2117074-1,14.25,2100381 - Collect Services Ltd,
Tendring DC,http://statistics.data.gov.uk/id/local-authority-district/22UN,Life Opportunities,"1580 - Benefits, Revenues and Customer Contact SU",4462 - Bailiffs and Tracing Agent Fees re debt recovery,18/11/2014,2117075-1,102,2100381 - Collect Services Ltd,VAT on fees collected NNDR on 40
Tendring DC,http://statistics.data.gov.uk/id/local-authority-district/22UN,Life Opportunities,"1580 - Benefits, Revenues and Customer Contact SU",4462 - Bailiffs and Tracing Agent Fees re debt recovery,18/11/2014,2117075-2,-102,2100381 - Collect Services Ltd,VAT on fees collected NNDR on 40
Tendring DC,http://statistics.data.gov.uk/id/local-authority-district/22UN,Life Opportunities,"1580 - Benefits, Revenues and Customer Contact SU",4462 - Bailiffs and Tracing Agent Fees re debt recovery,18/11/2014,2117076-1,86.2,2100381 - Collect Services Ltd,VAT on fees collected on 5330.30
Tendring DC,http://statistics.data.gov.uk/id/local-authority-district/22UN,Life Opportunities,"1580 - Benefits, Revenues and Customer Contact SU",4462 - Bailiffs and Tracing Agent Fees re debt recovery,18/11/2014,2117076-2,503.02,2100381 - Collect Services Ltd,VAT on fees collected on 5330.30
Tendring DC,http://statistics.data.gov.uk/id/local-authority-district/22UN,Life Opportunities,"1580 - Benefits, Revenues and Customer Contact SU",4462 - Bailiffs and Tracing Agent Fees re debt recovery,18/11/2014,2117076-3,-86.2,2100381 - Collect Services Ltd,VAT on fees collected on 5330.30
Tendring DC,http://statistics.data.gov.uk/id/local-authority-district/22UN,Life Opportunities,"1580 - Benefits, Revenues and Customer Contact SU",4462 - Bailiffs and Tracing Agent Fees re debt recovery,18/11/2014,2117076-4,-503.02,2100381 - Collect Services Ltd,VAT on fees collected on 5330.30
Tendring DC,http://statistics.data.gov.uk/id/local-authority-district/22UN,Life Opportunities,"1580 - Benefits, Revenues and Customer Contact SU",4462 - Bailiffs and Tracing Agent Fees re debt recovery,18/11/2014,2117077-1,191.15,2100381 - Collect Services Ltd,Vat on fees collected on 1128.85
Tendring DC,http://statistics.data.gov.uk/id/local-authority-district/22UN,Life Opportunities,"1580 - Benefits, Revenues and Customer Contact SU",4462 - Bailiffs and Tracing Agent Fees re debt recovery,18/11/2014,2117077-2,-191.15,2100381 - Collect Services Ltd,Vat on fees collected on 1128.85
Tendring DC,http://statistics.data.gov.uk/id/local-authority-district/22UN,Life Opportunities,"1580 - Benefits, Revenues and Customer Contact SU",4462 - Bailiffs and Tracing Agent Fees re debt recovery,18/11/2014,2117078-1,4577.13,2100381 - Collect Services Ltd,Vat on fees collected CT on 8550.22
Tendring DC,http://statistics.data.gov.uk/id/local-authority-district/22UN,Life Opportunities,"1580 - Benefits, Revenues and Customer Contact SU",4462 - Bailiffs and Tracing Agent Fees re debt recovery,18/11/2014,2117078-2,-4577.13,2100381 - Collect Services Ltd,Vat on fees collected CT on 8550.22
Tendring DC,http://statistics.data.gov.uk/id/local-authority-district/22UN,Life Opportunities,"1580 - Benefits, Revenues and Customer Contact SU",4462 - Bailiffs and Tracing Agent Fees re debt recovery,18/11/2014,7015964-1,86.5,2100381 - Collect Services Ltd,VAT ON FEES COLLECTED NNDR ON 1187.21
Tendring DC,http://statistics.data.gov.uk/id/local-authority-district/22UN,Life Opportunities,"1580 - Benefits, Revenues and Customer Contact SU",4462 - Bailiffs and Tracing Agent Fees re debt recovery,18/11/2014,7015964-2,-86.5,2100381 - Collect Services Ltd,VAT ON FEES COLLECTED NNDR ON 1187.21
Tendring DC,http://statistics.data.gov.uk/id/local-authority-district/22UN,Life Opportunities,"1580 - Benefits, Revenues and Customer Contact SU",4462 - Bailiffs and Tracing Agent Fees re debt recovery,18/11/2014,7015965-1,11.25,2100381 - Collect Services Ltd,VAT ON FEES COLLECT ON 5201.96
Tendring DC,http://statistics.data.gov.uk/id/local-authority-district/22UN,Life Opportunities,"1580 - Benefits, Revenues and Customer Contact SU",4462 - Bailiffs and Tracing Agent Fees re debt recovery,18/11/2014,7015965-2,-11.25,2100381 - Collect Services Ltd,VAT ON FEES COLLECT ON 5201.96
Tendring DC,http://statistics.data.gov.uk/id/local-authority-district/22UN,Life Opportunities,"1580 - Benefits, Revenues and Customer Contact SU",4462 - Bailiffs and Tracing Agent Fees re debt recovery,18/11/2014,7015965-3,681.19,2100381 - Collect Services Ltd,VAT ON FEES COLLECT ON 5201.96
Tendring DC,http://statistics.data.gov.uk/id/local-authority-district/22UN,Life Opportunities,"1580 - Benefits, Revenues and Customer Contact SU",4462 - Bailiffs and Tracing Agent Fees re debt recovery,18/11/2014,7015965-4,-681.19,2100381 - Collect Services Ltd,VAT ON FEES COLLECT ON 5201.96
Tendring DC,http://statistics.data.gov.uk/id/local-authority-district/22UN,Life Opportunities,"1580 - Benefits, Revenues and Customer Contact SU",4462 - Bailiffs and Tracing Agent Fees re debt recovery,18/11/2014,7015966-1,206.58,2100381 - Collect Services Ltd,VAT ON FEES COLLECTED NNDR ON 2318.42
Tendring DC,http://statistics.data.gov.uk/id/local-authority-district/22UN,Life Opportunities,"1580 - Benefits, Revenues and Customer Contact SU",4462 - Bailiffs and Tracing Agent Fees re debt recovery,18/11/2014,7015966-2,-206.58,2100381 - Collect Services Ltd,VAT ON FEES COLLECTED NNDR ON 2318.42
Tendring DC,http://statistics.data.gov.uk/id/local-authority-district/22UN,Life Opportunities,"1580 - Benefits, Revenues and Customer Contact SU",4462 - Bailiffs and Tracing Agent Fees re debt recovery,18/11/2014,7015967-1,264.64,2100381 - Collect Services Ltd,VAT ON FEES COLLECTED NNDR ON 264.64
Tendring DC,http://statistics.data.gov.uk/id/local-authority-district/22UN,Life Opportunities,"1580 - Benefits, Revenues and Customer Contact SU",4462 - Bailiffs and Tracing Agent Fees re debt recovery,18/11/2014,7015967-2,-264.64,2100381 - Collect Services Ltd,VAT ON FEES COLLECTED NNDR ON 264.64
Tendring DC,http://statistics.data.gov.uk/id/local-authority-district/22UN,Life Opportunities,"1580 - Benefits, Revenues and Customer Contact SU",4462 - Bailiffs and Tracing Agent Fees re debt recovery,18/11/2014,7015968-1,27.5,2100381 - Collect Services Ltd,VAT ON FEES COLLECT CT ON 7880.76
Tendring DC,http://statistics.data.gov.uk/id/local-authority-district/22UN,Life Opportunities,"1580 - Benefits, Revenues and Customer Contact SU",4462 - Bailiffs and Tracing Agent Fees re debt recovery,18/11/2014,7015968-2,-27.5,2100381 - Collect Services Ltd,VAT ON FEES COLLECT CT ON 7880.76
Tendring DC,http://statistics.data.gov.uk/id/local-authority-district/22UN,Life Opportunities,"1580 - Benefits, Revenues and Customer Contact SU",4462 - Bailiffs and Tracing Agent Fees re debt recovery,18/11/2014,7015968-3,908.55,2100381 - Collect Services Ltd,VAT ON FEES COLLECT CT ON 7880.76
Tendring DC,http://statistics.data.gov.uk/id/local-authority-district/22UN,Life Opportunities,"1580 - Benefits, Revenues and Customer Contact SU",4462 - Bailiffs and Tracing Agent Fees re debt recovery,18/11/2014,7015968-4,-908.55,2100381 - Collect Services Ltd,VAT ON FEES COLLECT CT ON 7880.76
Tendring DC,http://statistics.data.gov.uk/id/local-authority-district/22UN,Life Opportunities,"1580 - Benefits, Revenues and Customer Contact SU",4462 - Bailiffs and Tracing Agent Fees re debt recovery,18/11/2014,7015969-1,5270.39,2100381 - Collect Services Ltd,VAT ON FEES COLLECTED CT ON 10191.56
Tendring DC,http://statistics.data.gov.uk/id/local-authority-district/22UN,Life Opportunities,"1580 - Benefits, Revenues and Customer Contact SU",4462 - Bailiffs and Tracing Agent Fees re debt recovery,18/11/2014,7015969-2,-5270.43,2100381 - Collect Services Ltd,VAT ON FEES COLLECTED CT ON 10191.56
Tendring DC,http://statistics.data.gov.uk/id/local-authority-district/22UN,Life Opportunities,"1580 - Benefits, Revenues and Customer Contact SU",4462 - Bailiffs and Tracing Agent Fees re debt recovery,18/11/2014,7015970-1,11.25,2100381 - Collect Services Ltd,VAT ON FEES COLLECTED CT ON 6406.84
Tendring DC,http://statistics.data.gov.uk/id/local-authority-district/22UN,Life Opportunities,"1580 - Benefits, Revenues and Customer Contact SU",4462 - Bailiffs and Tracing Agent Fees re debt recovery,18/11/2014,7015970-2,-11.25,2100381 - Collect Services Ltd,VAT ON FEES COLLECTED CT ON 6406.84
Tendring DC,http://statistics.data.gov.uk/id/local-authority-district/22UN,Life Opportunities,"1580 - Benefits, Revenues and Customer Contact SU",4462 - Bailiffs and Tracing Agent Fees re debt recovery,18/11/2014,7015970-3,813.71,2100381 - Collect Services Ltd,VAT ON FEES COLLECTED CT ON 6406.84
Tendring DC,http://statistics.data.gov.uk/id/local-authority-district/22UN,Life Opportunities,"1580 - Benefits, Revenues and Customer Contact SU",4462 - Bailiffs and Tracing Agent Fees re debt recovery,18/11/2014,7015970-4,-813.74,2100381 - Collect Services Ltd,VAT ON FEES COLLECTED CT ON 6406.84
Tendring DC,http://statistics.data.gov.uk/id/local-authority-district/22UN,Life Opportunities,"1580 - Benefits, Revenues and Customer Contact SU",4462 - Bailiffs and Tracing Agent Fees re debt recovery,18/11/2014,7015971-1,5275.89,2100381 - Collect Services Ltd,VAT ON FEES COLLECTED  CT ON 10322.02
Tendring DC,http://statistics.data.gov.uk/id/local-authority-district/22UN,Life Opportunities,"1580 - Benefits, Revenues and Customer Contact SU",4462 - Bailiffs and Tracing Agent Fees re debt recovery,18/11/2014,7015971-2,-5275.91,2100381 - Collect Services Ltd,VAT ON FEES COLLECTED  CT ON 10322.02
Tendring DC,http://statistics.data.gov.uk/id/local-authority-district/22UN,Life Opportunities,"1580 - Benefits, Revenues and Customer Contact SU",4462 - Bailiffs and Tracing Agent Fees re debt recovery,18/11/2014,7015972-1,375.79,2100381 - Collect Services Ltd,VAT ON FEES COLLECTED NNDR ON 2454.21
Tendring DC,http://statistics.data.gov.uk/id/local-authority-district/22UN,Life Opportunities,"1580 - Benefits, Revenues and Customer Contact SU",4462 - Bailiffs and Tracing Agent Fees re debt recovery,18/11/2014,7015972-2,-375.79,2100381 - Collect Services Ltd,VAT ON FEES COLLECTED NNDR ON 2454.21
Tendring DC,http://statistics.data.gov.uk/id/local-authority-district/22UN,Life Opportunities,"1580 - Benefits, Revenues and Customer Contact SU",4462 - Bailiffs and Tracing Agent Fees re debt recovery,18/11/2014,7015973-1,4331.72,2100381 - Collect Services Ltd,VAT ON FEES COLLECTED ON 10624.03
Tendring DC,http://statistics.data.gov.uk/id/local-authority-district/22UN,Life Opportunities,"1580 - Benefits, Revenues and Customer Contact SU",4462 - Bailiffs and Tracing Agent Fees re debt recovery,18/11/2014,7015973-2,-4331.72,2100381 - Collect Services Ltd,VAT ON FEES COLLECTED ON 10624.03
Tendring DC,http://statistics.data.gov.uk/id/local-authority-district/22UN,Life Opportunities,"1580 - Benefits, Revenues and Customer Contact SU",4462 - Bailiffs and Tracing Agent Fees re debt recovery,18/11/2014,7015974-1,4464.34,2100381 - Collect Services Ltd,VAT ON FEES COLLECTED CT ON 8741.62
Tendring DC,http://statistics.data.gov.uk/id/local-authority-district/22UN,Life Opportunities,"1580 - Benefits, Revenues and Customer Contact SU",4462 - Bailiffs and Tracing Agent Fees re debt recovery,18/11/2014,7015974-2,-4464.37,2100381 - Collect Services Ltd,VAT ON FEES COLLECTED CT ON 8741.62
Tendring DC,http://statistics.data.gov.uk/id/local-authority-district/22UN,Life Opportunities,"1580 - Benefits, Revenues and Customer Contact SU",5189 - External Debt Recovery Commission,18/11/2014,7015975-1,338.53,2100381 - Collect Services Ltd,15% COMMISSION ON 2256.88
Tendring DC,http://statistics.data.gov.uk/id/local-authority-district/22UN,Life Opportunities,"1580 - Benefits, Revenues and Customer Contact SU",4462 - Bailiffs and Tracing Agent Fees re debt recovery,25/11/2014,7016107-1,102,2100381 - Collect Services Ltd,VAT OF FEES COLLECTED NNDR 902.00 RECOVERED
Tendring DC,http://statistics.data.gov.uk/id/local-authority-district/22UN,Life Opportunities,"1580 - Benefits, Revenues and Customer Contact SU",4462 - Bailiffs and Tracing Agent Fees re debt recovery,25/11/2014,7016107-2,-102,2100381 - Collect Services Ltd,VAT OF FEES COLLECTED NNDR 902.00 RECOVERED
Tendring DC,http://statistics.data.gov.uk/id/local-authority-district/22UN,Life Opportunities,"1580 - Benefits, Revenues and Customer Contact SU",4462 - Bailiffs and Tracing Agent Fees re debt recovery,25/11/2014,7016108-1,74.34,2100381 - Collect Services Ltd,VAT ON FEES COLLECTED NNDR 105.66 RECOVERED
Tendring DC,http://statistics.data.gov.uk/id/local-authority-district/22UN,Life Opportunities,"1580 - Benefits, Revenues and Customer Contact SU",4462 - Bailiffs and Tracing Agent Fees re debt recovery,25/11/2014,7016108-2,-74.34,2100381 - Collect Services Ltd,VAT ON FEES COLLECTED NNDR 105.66 RECOVERED
Tendring DC,http://statistics.data.gov.uk/id/local-authority-district/22UN,Life Opportunities,"1580 - Benefits, Revenues and Customer Contact SU",4462 - Bailiffs and Tracing Agent Fees re debt recovery,25/11/2014,7016109-1,3.12,2100381 - Collect Services Ltd,VAT ON FEES COLLECTED CT 4384.87 RECOVERED
Tendring DC,http://statistics.data.gov.uk/id/local-authority-district/22UN,Life Opportunities,"1580 - Benefits, Revenues and Customer Contact SU",4462 - Bailiffs and Tracing Agent Fees re debt recovery,25/11/2014,7016109-2,-3.12,2100381 - Collect Services Ltd,VAT ON FEES COLLECTED CT 4384.87 RECOVERED
Tendring DC,http://statistics.data.gov.uk/id/local-authority-district/22UN,Life Opportunities,"1580 - Benefits, Revenues and Customer Contact SU",4462 - Bailiffs and Tracing Agent Fees re debt recovery,25/11/2014,7016109-3,543.59,2100381 - Collect Services Ltd,VAT ON FEES COLLECTED CT 4384.87 RECOVERED
Tendring DC,http://statistics.data.gov.uk/id/local-authority-district/22UN,Life Opportunities,"1580 - Benefits, Revenues and Customer Contact SU",4462 - Bailiffs and Tracing Agent Fees re debt recovery,25/11/2014,7016109-4,-543.59,2100381 - Collect Services Ltd,VAT ON FEES COLLECTED CT 4384.87 RECOVERED
Tendring DC,http://statistics.data.gov.uk/id/local-authority-district/22UN,Life Opportunities,"1580 - Benefits, Revenues and Customer Contact SU",4462 - Bailiffs and Tracing Agent Fees re debt recovery,25/11/2014,7016110-1,42.5,2100381 - Collect Services Ltd,VAT ON FEES COLLECTED CT 11052.42 RECOVERED
Tendring DC,http://statistics.data.gov.uk/id/local-authority-district/22UN,Life Opportunities,"1580 - Benefits, Revenues and Customer Contact SU",4462 - Bailiffs and Tracing Agent Fees re debt recovery,25/11/2014,7016110-2,-42.5,2100381 - Collect Services Ltd,VAT ON FEES COLLECTED CT 11052.42 RECOVERED
Tendring DC,http://statistics.data.gov.uk/id/local-authority-district/22UN,Life Opportunities,"1580 - Benefits, Revenues and Customer Contact SU",4462 - Bailiffs and Tracing Agent Fees re debt recovery,25/11/2014,7016110-3,5699.74,2100381 - Collect Services Ltd,VAT ON FEES COLLECTED CT 11052.42 RECOVERED
Tendring DC,http://statistics.data.gov.uk/id/local-authority-district/22UN,Life Opportunities,"1580 - Benefits, Revenues and Customer Contact SU",4462 - Bailiffs and Tracing Agent Fees re debt recovery,25/11/2014,7016110-4,-5699.74,2100381 - Collect Services Ltd,VAT ON FEES COLLECTED CT 11052.42 RECOVERED
Tendring DC,http://statistics.data.gov.uk/id/local-authority-district/22UN,Life Opportunities,9920 - HRA Balance Sheet,B860 - Housing Rents - Cash,04/11/2014,1061516-1,2595.5,REDACTED COMMERCIAL CONFIDENTIALITY,REDACTED COMMERCIAL CONFIDENTIALITY
Tendring DC,http://statistics.data.gov.uk/id/local-authority-district/22UN,Life Opportunities,9900 - General Fund Balance Sheet,B863 - Bailiff Payments Holding Account,11/11/2014,1061621-1,3287,REDACTED COMMERCIAL CONFIDENTIALITY,REDACTED COMMERCIAL CONFIDENTIALITY
Tendring DC,http://statistics.data.gov.uk/id/local-authority-district/22UN,Life Opportunities,9900 - General Fund Balance Sheet,B863 - Bailiff Payments Holding Account,18/11/2014,1061714-1,2864.98,REDACTED COMMERCIAL CONFIDENTIALITY,REDACTED COMMERCIAL CONFIDENTIALITY
Tendring DC,http://statistics.data.gov.uk/id/local-authority-district/22UN,Life Opportunities,9900 - General Fund Balance Sheet,B863 - Bailiff Payments Holding Account,25/11/2014,1061820-1,2396,REDACTED COMMERCIAL CONFIDENTIALITY,REDACTED COMMERCIAL CONFIDENTIALITY
Tendring DC,http://statistics.data.gov.uk/id/local-authority-district/22UN,Life Opportunities,H920 - Disabled Facilities Grants,C400 - Grant payments,25/11/2014,1061794-1,4454.41,REDACTED PERSONAL DATA,REDACTED PERSONAL DATA
Tendring DC,http://statistics.data.gov.uk/id/local-authority-district/22UN,Life Opportunities,H920 - Disabled Facilities Grants,C400 - Grant payments,25/11/2014,1061797-1,5250.48,REDACTED PERSONAL DATA,REDACTED PERSONAL DATA
Tendring DC,http://statistics.data.gov.uk/id/local-authority-district/22UN,Life Opportunities,8510 - Dovercourt Swimming Pool & All Weather Facilities,2100 - Building Repairs,04/11/2014,2116990-1,640.5,2100314 - Cooper & Brome (Plumbing & Heating) Ltd,Dovercourt Pool Water Tanks
Tendring DC,http://statistics.data.gov.uk/id/local-authority-district/22UN,Life Opportunities,1880 - Office Accommodation Expenses,2100 - Building Repairs,04/11/2014,2116991-1,62.5,2100314 - Cooper & Brome (Plumbing & Heating) Ltd,Radiator Repair
Tendring DC,http://statistics.data.gov.uk/id/local-authority-district/22UN,Life Opportunities,5240 - HRA - Managing Tenancies,5242 - Tenant Relations,11/11/2014,1061535-1,10,2100354 - Coppins Hall Community Association,RES MEETING 24/10/14
Tendring DC,http://statistics.data.gov.uk/id/local-authority-district/22UN,Life Opportunities,8510 - Dovercourt Swimming Pool & All Weather Facilities,2308 - Energy Costs - Gas (Including LPG),25/11/2014,1061782-1,2648.64,2104620 - Corona Energy Retail 4 Limited,CORONA OCT
Tendring DC,http://statistics.data.gov.uk/id/local-authority-district/22UN,Life Opportunities,5340 - HRA - Communal Central Heating,2308 - Energy Costs - Gas (Including LPG),18/11/2014,2117081-1,5684.35,2104620 - Corona Energy Retail 4 Limited,Oct-14
Tendring DC,http://statistics.data.gov.uk/id/local-authority-district/22UN,Life Opportunities,8510 - Dovercourt Swimming Pool & All Weather Facilities,2308 - Energy Costs - Gas (Including LPG),04/11/2014,7015535-1,1711.42,2104620 - Corona Energy Retail 4 Limited,CORONA AUG
Tendring DC,http://statistics.data.gov.uk/id/local-authority-district/22UN,Life Opportunities,8510 - Dovercourt Swimming Pool & All Weather Facilities,2308 - Energy Costs - Gas (Including LPG),04/11/2014,7015536-1,2179.64,2104620 - Corona Energy Retail 4 Limited,CORONA SEPT
Tendring DC,http://statistics.data.gov.uk/id/local-authority-district/22UN,Life Opportunities,8520 - Frinton & Walton Swimming Pool,2308 - Energy Costs - Gas (Including LPG),04/11/2014,7015539-1,2628.13,2104620 - Corona Energy Retail 4 Limited,FWSP - CORONA ENERGY
Tendring DC,http://statistics.data.gov.uk/id/local-authority-district/22UN,Life Opportunities,8520 - Frinton & Walton Swimming Pool,2308 - Energy Costs - Gas (Including LPG),18/11/2014,7015887-1,2711.28,2104620 - Corona Energy Retail 4 Limited,FWSP - CORONA ENERGY
Tendring DC,http://statistics.data.gov.uk/id/local-authority-district/22UN,Life Opportunities,8540 - Leisure Centre Clacton,2308 - Energy Costs - Gas (Including LPG),25/11/2014,7016076-1,1335.98,2104620 - Corona Energy Retail 4 Limited,OCTOBER
Tendring DC,http://statistics.data.gov.uk/id/local-authority-district/22UN,Life Opportunities,5240 - HRA - Managing Tenancies,5242 - Tenant Relations,04/11/2014,2116936-1,3630,2104177 - Corporate Document Services Ltd,tenant involvement mailing costs
Tendring DC,http://statistics.data.gov.uk/id/local-authority-district/22UN,Life Opportunities,8510 - Dovercourt Swimming Pool & All Weather Facilities,2100 - Building Repairs,11/11/2014,1061582-1,82.5,2100183 - CR Services,DOVERCOURT POOL REPAIRS
Tendring DC,http://statistics.data.gov.uk/id/local-authority-district/22UN,Life Opportunities,8510 - Dovercourt Swimming Pool & All Weather Facilities,2100 - Building Repairs,11/11/2014,1061583-1,42.5,2100183 - CR Services,DOVERCOURT POOL LIGHT REPAIRS
Tendring DC,http://statistics.data.gov.uk/id/local-authority-district/22UN,Life Opportunities,8510 - Dovercourt Swimming Pool & All Weather Facilities,2100 - Building Repairs,11/11/2014,1061584-1,89,2100183 - CR Services,DOVERCOURT POOL-REPAIRS
Tendring DC,http://statistics.data.gov.uk/id/local-authority-district/22UN,Life Opportunities,8510 - Dovercourt Swimming Pool & All Weather Facilities,2100 - Building Repairs,11/11/2014,1061585-1,901.5,2100183 - CR Services,DOVERCOURT POOL-PUMP REPAIR
Tendring DC,http://statistics.data.gov.uk/id/local-authority-district/22UN,Life Opportunities,8510 - Dovercourt Swimming Pool & All Weather Facilities,2100 - Building Repairs,11/11/2014,1061586-1,781,2100183 - CR Services,DOVERCOURT POOL FAN REPAIR
Tendring DC,http://statistics.data.gov.uk/id/local-authority-district/22UN,Life Opportunities,8510 - Dovercourt Swimming Pool & All Weather Facilities,2100 - Building Repairs,25/11/2014,1061770-1,366,2100183 - CR Services,DOVERCOURT POOL-REPAIRS
Tendring DC,http://statistics.data.gov.uk/id/local-authority-district/22UN,Life Opportunities,8510 - Dovercourt Swimming Pool & All Weather Facilities,2100 - Building Repairs,25/11/2014,1061772-1,42,2100183 - CR Services,DOVERCOURT POOL-REPAIRS
Tendring DC,http://statistics.data.gov.uk/id/local-authority-district/22UN,Life Opportunities,8510 - Dovercourt Swimming Pool & All Weather Facilities,2100 - Building Repairs,25/11/2014,1061773-1,30,2100183 - CR Services,DOVERCOURT POOL-REPAIRS
Tendring DC,http://statistics.data.gov.uk/id/local-authority-district/22UN,Life Opportunities,8530 - Brightlingsea Swimming Pool,2100 - Building Repairs,25/11/2014,1061777-1,140,2100183 - CR Services,REMOVAL OF PUMP BSP
Tendring DC,http://statistics.data.gov.uk/id/local-authority-district/22UN,Life Opportunities,8520 - Frinton & Walton Swimming Pool,2100 - Building Repairs,18/11/2014,7015897-1,83.2,2100183 - CR Services,FWSP - CR SERVICES
Tendring DC,http://statistics.data.gov.uk/id/local-authority-district/22UN,Life Opportunities,8540 - Leisure Centre Clacton,2100 - Building Repairs,18/11/2014,7015989-1,67.5,2100183 - CR Services,REPLACE SOCKET IN GYM
Tendring DC,http://statistics.data.gov.uk/id/local-authority-district/22UN,Life Opportunities,H860 - Disabled Adaptations,C200 - Main Contractor,04/11/2014,2116992-1,5540,2100386 - D A Cant Ltd,37 Merivale  Road
Tendring DC,http://statistics.data.gov.uk/id/local-authority-district/22UN,Life Opportunities,H860 - Disabled Adaptations,C200 - Main Contractor,04/11/2014,2116993-1,720,2100386 - D A Cant Ltd,37 Merivale Road
Tendring DC,http://statistics.data.gov.uk/id/local-authority-district/22UN,Life Opportunities,5360 - HRA - Sheltered Units,4710 - Telephones - Charges,04/11/2014,2116904-1,81.99,2106704 - Daisy  Updata Communications Ltd,daisy oct 14
Tendring DC,http://statistics.data.gov.uk/id/local-authority-district/22UN,Life Opportunities,5360 - HRA - Sheltered Units,4710 - Telephones - Charges,04/11/2014,2116904-2,83.48,2106704 - Daisy  Updata Communications Ltd,daisy oct 14
Tendring DC,http://statistics.data.gov.uk/id/local-authority-district/22UN,Life Opportunities,5360 - HRA - Sheltered Units,4710 - Telephones - Charges,04/11/2014,2116904-3,80.5,2106704 - Daisy  Updata Communications Ltd,daisy oct 14
Tendring DC,http://statistics.data.gov.uk/id/local-authority-district/22UN,Life Opportunities,5360 - HRA - Sheltered Units,4710 - Telephones - Charges,25/11/2014,7016148-1,21.99,2106704 - Daisy  Updata Communications Ltd,DAISY NOV 14
Tendring DC,http://statistics.data.gov.uk/id/local-authority-district/22UN,Life Opportunities,5360 - HRA - Sheltered Units,4710 - Telephones - Charges,25/11/2014,7016148-2,21.99,2106704 - Daisy  Updata Communications Ltd,DAISY NOV 14
Tendring DC,http://statistics.data.gov.uk/id/local-authority-district/22UN,Life Opportunities,5360 - HRA - Sheltered Units,4710 - Telephones - Charges,25/11/2014,7016148-3,21.99,2106704 - Daisy  Updata Communications Ltd,DAISY NOV 14
Tendring DC,http://statistics.data.gov.uk/id/local-authority-district/22UN,Life Opportunities,6160 - Princes Theatre,4597 - Hired Services - Payments to Contractors,18/11/2014,2117063-1,32.66,2100397 - Danes of Colchester Ltd,Dry Cleaning Princes Theatre
Tendring DC,http://statistics.data.gov.uk/id/local-authority-district/22UN,Life Opportunities,9900 - General Fund Balance Sheet,B382 - Rechargeable Works - Other,04/11/2014,1061513-1,680,REDACTED PERSONAL DATA,REDACTED PERSONAL DATA
Tendring DC,http://statistics.data.gov.uk/id/local-authority-district/22UN,Life Opportunities,5480 - HRA - Repair & Maintenance,2071 - Electric Installation Testing,18/11/2014,1061717-1,7208.32,2113648 - David Stagg and Associates Ltd,TEST INSPECT UPGRADE AND REWIRE TO 57 PROPERTIES
Tendring DC,http://statistics.data.gov.uk/id/local-authority-district/22UN,Life Opportunities,5480 - HRA - Repair & Maintenance,2072 - Planned Partial Refurbishment To Electrical Instal,18/11/2014,1061717-2,34049.1,2113648 - David Stagg and Associates Ltd,TEST INSPECT UPGRADE AND REWIRE TO 57 PROPERTIES
Tendring DC,http://statistics.data.gov.uk/id/local-authority-district/22UN,Life Opportunities,H810 - Electrical Re-wiring,C200 - Main Contractor,18/11/2014,1061717-3,3892.26,2113648 - David Stagg and Associates Ltd,TEST INSPECT UPGRADE AND REWIRE TO 57 PROPERTIES
Tendring DC,http://statistics.data.gov.uk/id/local-authority-district/22UN,Life Opportunities,5240 - HRA - Managing Tenancies,5242 - Tenant Relations,11/11/2014,1061568-1,10,REDACTED PERSONAL DATA,REDACTED PERSONAL DATA
Tendring DC,http://statistics.data.gov.uk/id/local-authority-district/22UN,Life Opportunities,8510 - Dovercourt Swimming Pool & All Weather Facilities,2100 - Building Repairs,25/11/2014,1061759-1,194,2100359 - Derek Taylor Engineering,DOVERCOURT POOL-REPAIR
Tendring DC,http://statistics.data.gov.uk/id/local-authority-district/22UN,Life Opportunities,8510 - Dovercourt Swimming Pool & All Weather Facilities,2100 - Building Repairs,04/11/2014,7015542-1,220,2100359 - Derek Taylor Engineering,DOVERCOURT POOL - ASTRO FENCE
Tendring DC,http://statistics.data.gov.uk/id/local-authority-district/22UN,Life Opportunities,7520 - Tourism Publicity Marketing Promotion,4626 - Purchase of Research Data,25/11/2014,7016111-1,1000,2114439 - Destination Research Ltd,PRIME REPORT FOR CLACTION AIR SHOW 14
Tendring DC,http://statistics.data.gov.uk/id/local-authority-district/22UN,Life Opportunities,7620 - Air Show,5160 - Advertising,25/11/2014,7016112-1,190,2111949 - Dodd & Associates,DOMAIN & HOSTING
Tendring DC,http://statistics.data.gov.uk/id/local-authority-district/22UN,Life Opportunities,5480 - HRA - Repair & Maintenance,2068 - Other Minor Equipment Repairs,11/11/2014,1061537-1,110,2100490 - DORMA UK Ltd - Service Division,77-83 BOXTED AVE
Tendring DC,http://statistics.data.gov.uk/id/local-authority-district/22UN,Life Opportunities,5480 - HRA - Repair & Maintenance,2068 - Other Minor Equipment Repairs,04/11/2014,2116953-1,110,REDACTED PERSONAL DATA,REDACTED PERSONAL DATA
Tendring DC,http://statistics.data.gov.uk/id/local-authority-district/22UN,Life Opportunities,5480 - HRA - Repair & Maintenance,2067 - Other Minor Equipment  Servicing (Hoists Etc),18/11/2014,2117037-1,304.35,2100490 - DORMA UK Ltd - Service Division,32 Old School Lane
Tendring DC,http://statistics.data.gov.uk/id/local-authority-district/22UN,Life Opportunities,H820 - Asbestos Management,C200 - Main Contractor,11/11/2014,1061531-1,140,REDACTED PERSONAL DATA,REDACTED PERSONAL DATA
Tendring DC,http://statistics.data.gov.uk/id/local-authority-district/22UN,Life Opportunities,5360 - HRA - Sheltered Units,2304 - Energy Costs - Electricity,25/11/2014,1061822-1,8.64,2107521 - E.On,24 HC
Tendring DC,http://statistics.data.gov.uk/id/local-authority-district/22UN,Life Opportunities,6740 - Careline,2304 - Energy Costs - Electricity,04/11/2014,2116900-1,66.66,2107521 - E.On,0113 9766 4540
Tendring DC,http://statistics.data.gov.uk/id/local-authority-district/22UN,Life Opportunities,5360 - HRA - Sheltered Units,2304 - Energy Costs - Electricity,25/11/2014,7016141-1,80.93,2107644 - E.ON,2 HC
Tendring DC,http://statistics.data.gov.uk/id/local-authority-district/22UN,Life Opportunities,5360 - HRA - Sheltered Units,2304 - Energy Costs - Electricity,25/11/2014,7016142-1,8.64,2107644 - E.ON,14 HC
Tendring DC,http://statistics.data.gov.uk/id/local-authority-district/22UN,Life Opportunities,5360 - HRA - Sheltered Units,2304 - Energy Costs - Electricity,25/11/2014,7016143-1,88.02,2107644 - E.ON,15 HC
Tendring DC,http://statistics.data.gov.uk/id/local-authority-district/22UN,Life Opportunities,5360 - HRA - Sheltered Units,2304 - Energy Costs - Electricity,25/11/2014,7016144-1,65.17,2107644 - E.ON,16 HC
Tendring DC,http://statistics.data.gov.uk/id/local-authority-district/22UN,Life Opportunities,5360 - HRA - Sheltered Units,2304 - Energy Costs - Electricity,25/11/2014,7016145-1,44.6,2107644 - E.ON,19 HC
Tendring DC,http://statistics.data.gov.uk/id/local-authority-district/22UN,Life Opportunities,5360 - HRA - Sheltered Units,2304 - Energy Costs - Electricity,25/11/2014,7016146-1,33.17,2107644 - E.ON,29 HC
Tendring DC,http://statistics.data.gov.uk/id/local-authority-district/22UN,Life Opportunities,H810 - Electrical Re-wiring,C200 - Main Contractor,18/11/2014,1061651-1,617.47,2110229 - East Coast Electrical Contractors Ltd,RETENTION
Tendring DC,http://statistics.data.gov.uk/id/local-authority-district/22UN,Life Opportunities,H810 - Electrical Re-wiring,C200 - Main Contractor,18/11/2014,1061652-1,894.9,2110229 - East Coast Electrical Contractors Ltd,RETENTION
Tendring DC,http://statistics.data.gov.uk/id/local-authority-district/22UN,Life Opportunities,H810 - Electrical Re-wiring,C200 - Main Contractor,18/11/2014,2117054-1,175,2110229 - East Coast Electrical Contractors Ltd,Grove Ave
Tendring DC,http://statistics.data.gov.uk/id/local-authority-district/22UN,Life Opportunities,7560 - Tourism Publications,4668 - Production Expenses,04/11/2014,2116951-1,30,2100404 - Easy Tigernet,update web pages
Tendring DC,http://statistics.data.gov.uk/id/local-authority-district/22UN,Life Opportunities,7620 - Air Show,5160 - Advertising,04/11/2014,7015660-1,60,2100404 - Easy Tigernet,ABELLIO AIRSHOW ADVERT
Tendring DC,http://statistics.data.gov.uk/id/local-authority-district/22UN,Life Opportunities,8540 - Leisure Centre Clacton,2304 - Energy Costs - Electricity,18/11/2014,1061629-1,7506.34,2105146 - EDF Energy 1 Ltd,OCTOBER
Tendring DC,http://statistics.data.gov.uk/id/local-authority-district/22UN,Life Opportunities,1880 - Office Accommodation Expenses,2304 - Energy Costs - Electricity,18/11/2014,1061630-1,5335.21,2105146 - EDF Energy 1 Ltd,ELECTRICITY OCT 14
Tendring DC,http://statistics.data.gov.uk/id/local-authority-district/22UN,Life Opportunities,6160 - Princes Theatre,2304 - Energy Costs - Electricity,18/11/2014,1061630-2,592.8,2105146 - EDF Energy 1 Ltd,ELECTRICITY OCT 14
Tendring DC,http://statistics.data.gov.uk/id/local-authority-district/22UN,Life Opportunities,8510 - Dovercourt Swimming Pool & All Weather Facilities,2304 - Energy Costs - Electricity,18/11/2014,7015885-1,3406.35,2105146 - EDF Energy 1 Ltd,OCT EDF DSP
Tendring DC,http://statistics.data.gov.uk/id/local-authority-district/22UN,Life Opportunities,6740 - Careline,4040 - Equipment & Tools,18/11/2014,7015923-1,524.95,2110770 - Electromaster Telecommunications Ltd,PLANTRONIC CS520/A BINAURAL H/S 84692 - 02 SAVI
Tendring DC,http://statistics.data.gov.uk/id/local-authority-district/22UN,Life Opportunities,5140 - Homelessness,4680 - Bed & Breakfast Accommodation,18/11/2014,2117055-1,1470,2105123 - Esplanade Hotel,J Davis 8/9/14 - 27/10/14
Tendring DC,http://statistics.data.gov.uk/id/local-authority-district/22UN,Life Opportunities,1230 - Strategic Housing & Needs Management,5490 - TDC Contribution to Gypsy Traveller Housing Needs,25/11/2014,7016117-1,7181,2100498 - Essex County Council,2014/15 COUNTYWIDE TRAVELLER UNIT
Tendring DC,http://statistics.data.gov.uk/id/local-authority-district/22UN,Life Opportunities,6480 - Emergency Planning,4040 - Equipment & Tools,04/11/2014,7015546-1,230,2108768 - Essex County Fire & Rescue Service,ESSEX RESILIENCE FORUM
Tendring DC,http://statistics.data.gov.uk/id/local-authority-district/22UN,Life Opportunities,5860 - Manningtree Sports Centre,4040 - Equipment & Tools,18/11/2014,2117079-1,148.5,2105226 - Essex Inflatables,Pipa Test - Bouncy Castle
Tendring DC,http://statistics.data.gov.uk/id/local-authority-district/22UN,Life Opportunities,5820 - Harwich Sports Centre,2100 - Building Repairs,18/11/2014,7015995-1,343.5,2105226 - Essex Inflatables,INFLATABLE REPAIR & PIPA TEST
Tendring DC,http://statistics.data.gov.uk/id/local-authority-district/22UN,Life Opportunities,5480 - HRA - Repair & Maintenance,2060 - Fire Fighting Equipment Repairs,25/11/2014,1061763-1,52.65,2100531 - Euro-Fire Ltd,SPENDELLS HOUSE
Tendring DC,http://statistics.data.gov.uk/id/local-authority-district/22UN,Life Opportunities,5860 - Manningtree Sports Centre,4400 - Maintenance Under Service Agreements,04/11/2014,2116937-1,259.26,2100531 - Euro-Fire Ltd,fire extinguisher service
Tendring DC,http://statistics.data.gov.uk/id/local-authority-district/22UN,Life Opportunities,6160 - Princes Theatre,4622 - Hired Services - Artistes and Production Companies,11/11/2014,7015713-1,14209.17,2114475 - Fiery Light 2010 Ltd,PEPPA PIG
Tendring DC,http://statistics.data.gov.uk/id/local-authority-district/22UN,Life Opportunities,5480 - HRA - Repair & Maintenance,2058 - Fire Alarms Repairs,25/11/2014,1061783-1,50,2108583 - Firesite,ST MARYS COURT
Tendring DC,http://statistics.data.gov.uk/id/local-authority-district/22UN,Life Opportunities,5480 - HRA - Repair & Maintenance,2058 - Fire Alarms Repairs,25/11/2014,1061784-1,140,2108583 - Firesite,1-24 MAYFLOWER HOUSE
Tendring DC,http://statistics.data.gov.uk/id/local-authority-district/22UN,Life Opportunities,5480 - HRA - Repair & Maintenance,2058 - Fire Alarms Repairs,25/11/2014,1061785-1,50,2108583 - Firesite,1-29 CROOKED ELMS
Tendring DC,http://statistics.data.gov.uk/id/local-authority-district/22UN,Life Opportunities,5480 - HRA - Repair & Maintenance,2058 - Fire Alarms Repairs,04/11/2014,2116914-1,245,REDACTED PERSONAL DATA,REDACTED PERSONAL DATA
Tendring DC,http://statistics.data.gov.uk/id/local-authority-district/22UN,Life Opportunities,5480 - HRA - Repair & Maintenance,2057 - Fire Alarms Servicing,04/11/2014,2116916-1,135,REDACTED PERSONAL DATA,REDACTED PERSONAL DATA
Tendring DC,http://statistics.data.gov.uk/id/local-authority-district/22UN,Life Opportunities,5480 - HRA - Repair & Maintenance,2058 - Fire Alarms Repairs,25/11/2014,7016063-1,80,2108583 - Firesite,1 - 31 MEAD HOUSE
Tendring DC,http://statistics.data.gov.uk/id/local-authority-district/22UN,Life Opportunities,7600 - Tourist Information Centres,9356 - Commission Sales,11/11/2014,7015804-1,3745,2103743 - First Essex Buses Ltd,FIRST ESSEX BUSES OCT 14
Tendring DC,http://statistics.data.gov.uk/id/local-authority-district/22UN,Life Opportunities,7600 - Tourist Information Centres,9356 - Commission Sales,11/11/2014,7015804-2,-374.5,2103743 - First Essex Buses Ltd,FIRST ESSEX BUSES OCT 14
Tendring DC,http://statistics.data.gov.uk/id/local-authority-district/22UN,Life Opportunities,5480 - HRA - Repair & Maintenance,2018 - Other Responsive Repairs,04/11/2014,2116954-1,40,REDACTED PERSONAL DATA,REDACTED PERSONAL DATA
Tendring DC,http://statistics.data.gov.uk/id/local-authority-district/22UN,Life Opportunities,H920 - Disabled Facilities Grants,C400 - Grant payments,25/11/2014,1061800-1,795.09,REDACTED PERSONAL DATA,REDACTED PERSONAL DATA
Tendring DC,http://statistics.data.gov.uk/id/local-authority-district/22UN,Life Opportunities,H920 - Disabled Facilities Grants,C400 - Grant payments,18/11/2014,2117008-1,7000,REDACTED PERSONAL DATA,REDACTED PERSONAL DATA
Tendring DC,http://statistics.data.gov.uk/id/local-authority-district/22UN,Life Opportunities,H920 - Disabled Facilities Grants,C400 - Grant payments,18/11/2014,2117009-1,6798.01,REDACTED PERSONAL DATA,REDACTED PERSONAL DATA
Tendring DC,http://statistics.data.gov.uk/id/local-authority-district/22UN,Life Opportunities,5880 - Management Of Sport & Leisure Facilities,2100 - Building Repairs,11/11/2014,1061600-1,740,REDACTED PERSONAL DATA,REDACTED PERSONAL DATA
Tendring DC,http://statistics.data.gov.uk/id/local-authority-district/22UN,Life Opportunities,H920 - Disabled Facilities Grants,C400 - Grant payments,18/11/2014,2117007-1,1402.8,REDACTED PERSONAL DATA,REDACTED PERSONAL DATA
Tendring DC,http://statistics.data.gov.uk/id/local-authority-district/22UN,Life Opportunities,H920 - Disabled Facilities Grants,C400 - Grant payments,04/11/2014,7015614-1,4147.4,REDACTED PERSONAL DATA,REDACTED PERSONAL DATA
Tendring DC,http://statistics.data.gov.uk/id/local-authority-district/22UN,Life Opportunities,H920 - Disabled Facilities Grants,C400 - Grant payments,11/11/2014,7015800-1,4000,REDACTED PERSONAL DATA,REDACTED PERSONAL DATA
Tendring DC,http://statistics.data.gov.uk/id/local-authority-district/22UN,Life Opportunities,8540 - Leisure Centre Clacton,2100 - Building Repairs,18/11/2014,1061638-1,189,2100546 - GCS Alarms,FIRE ALARM CHECK
Tendring DC,http://statistics.data.gov.uk/id/local-authority-district/22UN,Life Opportunities,8520 - Frinton & Walton Swimming Pool,2100 - Building Repairs,18/11/2014,7015895-1,60,2100546 - GCS Alarms,FWSP - GCS ALARMS
Tendring DC,http://statistics.data.gov.uk/id/local-authority-district/22UN,Life Opportunities,5480 - HRA - Repair & Maintenance,2018 - Other Responsive Repairs,11/11/2014,1061524-1,88.9,REDACTED PERSONAL DATA,REDACTED PERSONAL DATA
Tendring DC,http://statistics.data.gov.uk/id/local-authority-district/22UN,Life Opportunities,5480 - HRA - Repair & Maintenance,2018 - Other Responsive Repairs,18/11/2014,7015898-1,68,REDACTED PERSONAL DATA,REDACTED PERSONAL DATA
Tendring DC,http://statistics.data.gov.uk/id/local-authority-district/22UN,Life Opportunities,5480 - HRA - Repair & Maintenance,2018 - Other Responsive Repairs,25/11/2014,7016127-1,85,REDACTED PERSONAL DATA,REDACTED PERSONAL DATA
Tendring DC,http://statistics.data.gov.uk/id/local-authority-district/22UN,Life Opportunities,1880 - Office Accommodation Expenses,2100 - Building Repairs,04/11/2014,2116952-1,462,2114482 - Generated Power Services Ltd,REPAIR GENERATOR 92 pier avenue
Tendring DC,http://statistics.data.gov.uk/id/local-authority-district/22UN,Life Opportunities,H710 - Selected Improvements,C200 - Main Contractor,11/11/2014,7015745-1,140,REDACTED PERSONAL DATA,REDACTED PERSONAL DATA
Tendring DC,http://statistics.data.gov.uk/id/local-authority-district/22UN,Life Opportunities,5880 - Management Of Sport & Leisure Facilities,4597 - Hired Services - Payments to Contractors,04/11/2014,1061514-1,151108.3,2114081 - Gipping Construction Ltd,DOVERCOURT POOL UPGRADE
Tendring DC,http://statistics.data.gov.uk/id/local-authority-district/22UN,Life Opportunities,5880 - Management Of Sport & Leisure Facilities,5166 - Marketing and Promotion,18/11/2014,7015956-1,899.13,2114201 - Global Radio Services Ltd,ADVERT ON HEART RADIO
Tendring DC,http://statistics.data.gov.uk/id/local-authority-district/22UN,Life Opportunities,5240 - HRA - Managing Tenancies,5242 - Tenant Relations,11/11/2014,1061570-1,10,REDACTED PERSONAL DATA,REDACTED PERSONAL DATA
Tendring DC,http://statistics.data.gov.uk/id/local-authority-district/22UN,Life Opportunities,7000 - CCTV,4400 - Maintenance Under Service Agreements,11/11/2014,1061532-1,75,2114444 - Green IT Disposal Ltd,DISPOSAL OF EQUIPMENT
Tendring DC,http://statistics.data.gov.uk/id/local-authority-district/22UN,Life Opportunities,6160 - Princes Theatre,4105 - Bar/Catering Expenses,18/11/2014,2117082-1,620.9,2112641 - Greene King Brewing and Retailing Ltd,Bar Supplies
Tendring DC,http://statistics.data.gov.uk/id/local-authority-district/22UN,Life Opportunities,6160 - Princes Theatre,4105 - Bar/Catering Expenses,11/11/2014,7015722-1,17.59,2112641 - Greene King Brewing and Retailing Ltd,INTEREST FOR LATE PAYMENT
Tendring DC,http://statistics.data.gov.uk/id/local-authority-district/22UN,Life Opportunities,6160 - Princes Theatre,4105 - Bar/Catering Expenses,11/11/2014,7015835-1,282.93,2112641 - Greene King Brewing and Retailing Ltd,BEVERAGES FOR PRINCES THEATRE
Tendring DC,http://statistics.data.gov.uk/id/local-authority-district/22UN,Life Opportunities,5480 - HRA - Repair & Maintenance,2017 - Mechanical Equipment /Extract Fans,11/11/2014,1061523-1,70,2106272 - Greenleaf Pest Control Services Ltd,TANNER CLOSE
Tendring DC,http://statistics.data.gov.uk/id/local-authority-district/22UN,Life Opportunities,8540 - Leisure Centre Clacton,2100 - Building Repairs,18/11/2014,1061648-1,261.25,2114427 - Greenworks Controlled Environments Ltd,MENERGA REPAIRS
Tendring DC,http://statistics.data.gov.uk/id/local-authority-district/22UN,Life Opportunities,5140 - Homelessness,4680 - Bed & Breakfast Accommodation,04/11/2014,2116955-1,140,REDACTED PERSONAL DATA,REDACTED PERSONAL DATA
Tendring DC,http://statistics.data.gov.uk/id/local-authority-district/22UN,Life Opportunities,5140 - Homelessness,4680 - Bed & Breakfast Accommodation,04/11/2014,2116956-1,300,REDACTED PERSONAL DATA,REDACTED PERSONAL DATA
Tendring DC,http://statistics.data.gov.uk/id/local-authority-district/22UN,Life Opportunities,5140 - Homelessness,4680 - Bed & Breakfast Accommodation,18/11/2014,2117047-1,350,2113018 - Grosvenor House Hotel,K Milton 27/10/14 - 2/11/14
Tendring DC,http://statistics.data.gov.uk/id/local-authority-district/22UN,Life Opportunities,5140 - Homelessness,4680 - Bed & Breakfast Accommodation,18/11/2014,2117048-1,350,2113018 - Grosvenor House Hotel,K Milton 3/11/14 - 9/11/14
Tendring DC,http://statistics.data.gov.uk/id/local-authority-district/22UN,Life Opportunities,5140 - Homelessness,4680 - Bed & Breakfast Accommodation,25/11/2014,7016124-1,350,REDACTED PERSONAL DATA,REDACTED PERSONAL DATA
Tendring DC,http://statistics.data.gov.uk/id/local-authority-district/22UN,Life Opportunities,"1580 - Benefits, Revenues and Customer Contact SU",4462 - Bailiffs and Tracing Agent Fees re debt recovery,04/11/2014,2116966-1,138.31,2113197 - Hambury Tilmond Ltd,vat on fees collected ct 843
Tendring DC,http://statistics.data.gov.uk/id/local-authority-district/22UN,Life Opportunities,"1580 - Benefits, Revenues and Customer Contact SU",4462 - Bailiffs and Tracing Agent Fees re debt recovery,04/11/2014,2116966-2,-138.31,2113197 - Hambury Tilmond Ltd,vat on fees collected ct 843
Tendring DC,http://statistics.data.gov.uk/id/local-authority-district/22UN,Life Opportunities,H860 - Disabled Adaptations,C200 - Main Contractor,11/11/2014,1061556-1,6055.75,REDACTED PERSONAL DATA,REDACTED PERSONAL DATA
Tendring DC,http://statistics.data.gov.uk/id/local-authority-district/22UN,Life Opportunities,5820 - Harwich Sports Centre,2308 - Energy Costs - Gas (Including LPG),11/11/2014,1061534-1,613.15,2102507 - Harwich and Dovercourt High School,HDHS RECHARGES
Tendring DC,http://statistics.data.gov.uk/id/local-authority-district/22UN,Life Opportunities,5820 - Harwich Sports Centre,2510 - Water Services - Unmetered,11/11/2014,1061534-2,284.07,2102507 - Harwich and Dovercourt High School,HDHS RECHARGES
Tendring DC,http://statistics.data.gov.uk/id/local-authority-district/22UN,Life Opportunities,5820 - Harwich Sports Centre,2410 - Non Domestic Rates,11/11/2014,1061534-3,1450.02,2102507 - Harwich and Dovercourt High School,HDHS RECHARGES
Tendring DC,http://statistics.data.gov.uk/id/local-authority-district/22UN,Life Opportunities,5820 - Harwich Sports Centre,4597 - Hired Services - Payments to Contractors,11/11/2014,1061534-4,140.79,2102507 - Harwich and Dovercourt High School,HDHS RECHARGES
Tendring DC,http://statistics.data.gov.uk/id/local-authority-district/22UN,Life Opportunities,5240 - HRA - Managing Tenancies,5242 - Tenant Relations,18/11/2014,2117031-1,12,2100604 - Harwich Taxis,Transport 15/10/14
Tendring DC,http://statistics.data.gov.uk/id/local-authority-district/22UN,Life Opportunities,5240 - HRA - Managing Tenancies,5242 - Tenant Relations,18/11/2014,2117032-1,44,2100604 - Harwich Taxis,Transport 28/10/14
Tendring DC,http://statistics.data.gov.uk/id/local-authority-district/22UN,Life Opportunities,5140 - Homelessness,4683 - Other Homelessness Expenses,25/11/2014,1061802-1,500,REDACTED PERSONAL DATA,REDACTED PERSONAL DATA
Tendring DC,http://statistics.data.gov.uk/id/local-authority-district/22UN,Life Opportunities,1242 - Corporate Director (Life Opportunities),1710 - Training - Central Department Budget,25/11/2014,7016131-1,225,2108862 - Hbinfo Ltd,UC TRAINING 2.12.14 IN
Tendring DC,http://statistics.data.gov.uk/id/local-authority-district/22UN,Life Opportunities,5240 - HRA - Managing Tenancies,5249 - Housing ASB Expenses,25/11/2014,7016179-1,20,2100661 - HMCTS,COSTS FOR WARRANT OF ENTRY APPLICATION
Tendring DC,http://statistics.data.gov.uk/id/local-authority-district/22UN,Life Opportunities,9900 - General Fund Balance Sheet,B382 - Rechargeable Works - Other,04/11/2014,2116960-1,845,REDACTED PERSONAL DATA,REDACTED PERSONAL DATA
Tendring DC,http://statistics.data.gov.uk/id/local-authority-district/22UN,Life Opportunities,5820 - Harwich Sports Centre,2100 - Building Repairs,11/11/2014,7015698-1,55,2111080 - Homecraft Contracts Electrical Ltd,LIGHT FITTING DEFECTIVE
Tendring DC,http://statistics.data.gov.uk/id/local-authority-district/22UN,Life Opportunities,8510 - Dovercourt Swimming Pool & All Weather Facilities,2100 - Building Repairs,25/11/2014,1061762-1,80,2101848 - Homecraft Contracts Ltd,DOVERCOURT POOL-REPAIR
Tendring DC,http://statistics.data.gov.uk/id/local-authority-district/22UN,Life Opportunities,5820 - Harwich Sports Centre,2100 - Building Repairs,25/11/2014,1061771-1,97,2101848 - Homecraft Contracts Ltd,GEN REPAIRS
Tendring DC,http://statistics.data.gov.uk/id/local-authority-district/22UN,Life Opportunities,5820 - Harwich Sports Centre,2100 - Building Repairs,04/11/2014,7015575-1,66,2101848 - Homecraft Contracts Ltd,FIRE DOOR REPAIRS
Tendring DC,http://statistics.data.gov.uk/id/local-authority-district/22UN,Life Opportunities,8540 - Leisure Centre Clacton,2100 - Building Repairs,18/11/2014,7015987-1,230,2101848 - Homecraft Contracts Ltd,SPA DOOR REPAIR
Tendring DC,http://statistics.data.gov.uk/id/local-authority-district/22UN,Life Opportunities,8510 - Dovercourt Swimming Pool & All Weather Facilities,2100 - Building Repairs,04/11/2014,7015557-1,6.66,2100677 - Homecraft DIY Ltd,DOVERCOURT POOL - REPAIRS
Tendring DC,http://statistics.data.gov.uk/id/local-authority-district/22UN,Life Opportunities,8510 - Dovercourt Swimming Pool & All Weather Facilities,2100 - Building Repairs,04/11/2014,7015558-1,66.25,2100677 - Homecraft DIY Ltd,DOVERCOURT POOL - ROPE
Tendring DC,http://statistics.data.gov.uk/id/local-authority-district/22UN,Life Opportunities,5480 - HRA - Repair & Maintenance,2014 - Decoration Allowances,18/11/2014,2117028-1,323.41,2109778 - ICI Contract Direct,Oct-14
Tendring DC,http://statistics.data.gov.uk/id/local-authority-district/22UN,Life Opportunities,6160 - Princes Theatre,4040 - Equipment & Tools,04/11/2014,2116967-1,4037.05,2113683 - Illuminate Design,lighting for theatre for panto
Tendring DC,http://statistics.data.gov.uk/id/local-authority-district/22UN,Life Opportunities,6355 - Community Activity Network,4597 - Hired Services - Payments to Contractors,11/11/2014,1061538-1,670,2106677 - Inclusion Ventures,SPORTIVATE BOSING BASICS
Tendring DC,http://statistics.data.gov.uk/id/local-authority-district/22UN,Life Opportunities,H805 - Major Refurbishment of Heating,C200 - Main Contractor,18/11/2014,2117046-1,478.5,2108761 - Ingleton Wood,Belmans Court
Tendring DC,http://statistics.data.gov.uk/id/local-authority-district/22UN,Life Opportunities,C149 - Dovercourt Swimming Pool - redevelopment,C200 - Main Contractor,18/11/2014,2117049-1,2923.33,2108761 - Ingleton Wood,Application 13
Tendring DC,http://statistics.data.gov.uk/id/local-authority-district/22UN,Life Opportunities,1880 - Office Accommodation Expenses,4666 - Hygiene Services,25/11/2014,7016113-1,15.74,2104976 - Initial Washroom Solutions,INITIAL 28.11 TO 27.12.14
Tendring DC,http://statistics.data.gov.uk/id/local-authority-district/22UN,Life Opportunities,1860 - Depots General,4666 - Hygiene Services,25/11/2014,7016113-2,7.87,2104976 - Initial Washroom Solutions,INITIAL 28.11 TO 27.12.14
Tendring DC,http://statistics.data.gov.uk/id/local-authority-district/22UN,Life Opportunities,1880 - Office Accommodation Expenses,4666 - Hygiene Services,25/11/2014,7016113-3,15.74,2104976 - Initial Washroom Solutions,INITIAL 28.11 TO 27.12.14
Tendring DC,http://statistics.data.gov.uk/id/local-authority-district/22UN,Life Opportunities,1880 - Office Accommodation Expenses,4666 - Hygiene Services,25/11/2014,7016113-4,91.6,2104976 - Initial Washroom Solutions,INITIAL 28.11 TO 27.12.14
Tendring DC,http://statistics.data.gov.uk/id/local-authority-district/22UN,Life Opportunities,4820 - Public Conveniences,4080 - Materials & Consumables,25/11/2014,7016113-5,108.84,2104976 - Initial Washroom Solutions,INITIAL 28.11 TO 27.12.14
Tendring DC,http://statistics.data.gov.uk/id/local-authority-district/22UN,Life Opportunities,1880 - Office Accommodation Expenses,4666 - Hygiene Services,25/11/2014,7016113-6,7.87,2104976 - Initial Washroom Solutions,INITIAL 28.11 TO 27.12.14
Tendring DC,http://statistics.data.gov.uk/id/local-authority-district/22UN,Life Opportunities,1242 - Corporate Director (Life Opportunities),1710 - Training - Central Department Budget,04/11/2014,2116905-1,555.45,2107348 - Institute of Swimming,x19 cpd course 29/11/14
Tendring DC,http://statistics.data.gov.uk/id/local-authority-district/22UN,Life Opportunities,5880 - Management Of Sport & Leisure Facilities,5166 - Marketing and Promotion,18/11/2014,7015959-1,90,2113575 - Intelligent Texting,INTEXT LICENCE NOVEMBER
Tendring DC,http://statistics.data.gov.uk/id/local-authority-district/22UN,Life Opportunities,5820 - Harwich Sports Centre,4400 - Maintenance Under Service Agreements,04/11/2014,7015534-1,67.54,2113083 - Interserve FS (UK) Ltd,WATERSAFE CONTRACT
Tendring DC,http://statistics.data.gov.uk/id/local-authority-district/22UN,Life Opportunities,1880 - Office Accommodation Expenses,4448 - Confidential Waste,18/11/2014,7015914-1,94,2110936 - IPPlus (UK) Ltd,SACK COLLECTION WEELEY
Tendring DC,http://statistics.data.gov.uk/id/local-authority-district/22UN,Life Opportunities,1880 - Office Accommodation Expenses,4448 - Confidential Waste,18/11/2014,7015914-2,94,2110936 - IPPlus (UK) Ltd,SACK COLLECTION WEELEY
Tendring DC,http://statistics.data.gov.uk/id/local-authority-district/22UN,Life Opportunities,8520 - Frinton & Walton Swimming Pool,2904 - Premises Licensing - Other,25/11/2014,1061778-1,322.5,2100724 - IQL UK Ltd,FWSP-IQL UK LTD
Tendring DC,http://statistics.data.gov.uk/id/local-authority-district/22UN,Life Opportunities,8540 - Leisure Centre Clacton,4000 - Furniture,04/11/2014,2116946-1,217.88,2100755 - J P Lennard Ltd,pool equipment
Tendring DC,http://statistics.data.gov.uk/id/local-authority-district/22UN,Life Opportunities,8540 - Leisure Centre Clacton,4000 - Furniture,11/11/2014,7015699-1,131.22,2100755 - J P Lennard Ltd,FOOTBALLS ETC
Tendring DC,http://statistics.data.gov.uk/id/local-authority-district/22UN,Life Opportunities,5860 - Manningtree Sports Centre,4040 - Equipment & Tools,11/11/2014,7015700-1,113.3,2100755 - J P Lennard Ltd,10 X INDOOR FOOTBALLS
Tendring DC,http://statistics.data.gov.uk/id/local-authority-district/22UN,Life Opportunities,8540 - Leisure Centre Clacton,4000 - Furniture,18/11/2014,7015983-1,96.55,2100755 - J P Lennard Ltd,HAIR DRYER
Tendring DC,http://statistics.data.gov.uk/id/local-authority-district/22UN,Life Opportunities,8520 - Frinton & Walton Swimming Pool,5300 - Resaleable Items,18/11/2014,7016013-1,97.9,2100755 - J P Lennard Ltd,FWSP - JPL
Tendring DC,http://statistics.data.gov.uk/id/local-authority-district/22UN,Life Opportunities,8520 - Frinton & Walton Swimming Pool,5311 - General Provisions - Vending,18/11/2014,2117072-1,202.1,2109088 - JC Vending Services,FWSP - J C Vending
Tendring DC,http://statistics.data.gov.uk/id/local-authority-district/22UN,Life Opportunities,5240 - HRA - Managing Tenancies,5242 - Tenant Relations,11/11/2014,1061563-1,10,REDACTED PERSONAL DATA,REDACTED PERSONAL DATA
Tendring DC,http://statistics.data.gov.uk/id/local-authority-district/22UN,Life Opportunities,H860 - Disabled Adaptations,C200 - Main Contractor,11/11/2014,1061553-1,1036,REDACTED PERSONAL DATA,REDACTED PERSONAL DATA
Tendring DC,http://statistics.data.gov.uk/id/local-authority-district/22UN,Life Opportunities,H860 - Disabled Adaptations,C200 - Main Contractor,11/11/2014,1061553-2,1889,REDACTED PERSONAL DATA,REDACTED PERSONAL DATA
Tendring DC,http://statistics.data.gov.uk/id/local-authority-district/22UN,Life Opportunities,1880 - Office Accommodation Expenses,2100 - Building Repairs,18/11/2014,1061665-1,24,2111266 - JW Plumbing and Heating,LEAK IN TOILETS
Tendring DC,http://statistics.data.gov.uk/id/local-authority-district/22UN,Life Opportunities,1880 - Office Accommodation Expenses,2100 - Building Repairs,18/11/2014,1061665-2,6,2111266 - JW Plumbing and Heating,LEAK IN TOILETS
Tendring DC,http://statistics.data.gov.uk/id/local-authority-district/22UN,Life Opportunities,1880 - Office Accommodation Expenses,2100 - Building Repairs,18/11/2014,1061666-1,80,2111266 - JW Plumbing and Heating,UNBLOCK URINALS WEELEY
Tendring DC,http://statistics.data.gov.uk/id/local-authority-district/22UN,Life Opportunities,1880 - Office Accommodation Expenses,2100 - Building Repairs,18/11/2014,1061666-2,32,2111266 - JW Plumbing and Heating,UNBLOCK URINALS WEELEY
Tendring DC,http://statistics.data.gov.uk/id/local-authority-district/22UN,Life Opportunities,1880 - Office Accommodation Expenses,2100 - Building Repairs,18/11/2014,1061670-1,66.67,2100758 - K A Hockley Ltd,GLAZING REPAIR TOWN HALL
Tendring DC,http://statistics.data.gov.uk/id/local-authority-district/22UN,Life Opportunities,6160 - Princes Theatre,4622 - Hired Services - Artistes and Production Companies,01/11/2014,7015880-1,1750,2114408 - Keith Ball (Kenny Ball Jnr),KENNY BALL JUNIOR
Tendring DC,http://statistics.data.gov.uk/id/local-authority-district/22UN,Life Opportunities,6160 - Princes Theatre,4622 - Hired Services - Artistes and Production Companies,04/11/2014,7015559-1,9635.85,2100789 - Ken Dodd,KEN DODD
Tendring DC,http://statistics.data.gov.uk/id/local-authority-district/22UN,Life Opportunities,1880 - Office Accommodation Expenses,2100 - Building Repairs,11/11/2014,7015828-1,81.96,2100890 - Kirby Locks Ltd,SUPPLY & FIT / KEYS & LOCKS HARWICH CASH OFFICE
Tendring DC,http://statistics.data.gov.uk/id/local-authority-district/22UN,Life Opportunities,1880 - Office Accommodation Expenses,2100 - Building Repairs,11/11/2014,7015829-1,137.3,2100890 - Kirby Locks Ltd,SUPPLY & FIT LOCKS POST BOX TOWN HALL
Tendring DC,http://statistics.data.gov.uk/id/local-authority-district/22UN,Life Opportunities,5480 - HRA - Repair & Maintenance,2071 - Electric Installation Testing,25/11/2014,1061817-1,1107.1,2113799 - Kirkman & Jourdain Ltd,TEST + INSPECT + UPGRADE 9 NO OF PROPERTIES AND BELMANS CRT
Tendring DC,http://statistics.data.gov.uk/id/local-authority-district/22UN,Life Opportunities,5480 - HRA - Repair & Maintenance,2072 - Planned Partial Refurbishment To Electrical Instal,25/11/2014,1061817-2,5055.26,2113799 - Kirkman & Jourdain Ltd,TEST + INSPECT + UPGRADE 9 NO OF PROPERTIES AND BELMANS CRT
Tendring DC,http://statistics.data.gov.uk/id/local-authority-district/22UN,Life Opportunities,H810 - Electrical Re-wiring,C200 - Main Contractor,25/11/2014,1061817-3,7979.75,2113799 - Kirkman & Jourdain Ltd,TEST + INSPECT + UPGRADE 9 NO OF PROPERTIES AND BELMANS CRT
Tendring DC,http://statistics.data.gov.uk/id/local-authority-district/22UN,Life Opportunities,8540 - Leisure Centre Clacton,4597 - Hired Services - Payments to Contractors,18/11/2014,1061641-1,200,2100851 - KO-SHEEN Contract Cleaning Ltd,W/E 25/10/14
Tendring DC,http://statistics.data.gov.uk/id/local-authority-district/22UN,Life Opportunities,8540 - Leisure Centre Clacton,4597 - Hired Services - Payments to Contractors,18/11/2014,1061642-1,243.75,2100851 - KO-SHEEN Contract Cleaning Ltd,W/E 1/11/14
Tendring DC,http://statistics.data.gov.uk/id/local-authority-district/22UN,Life Opportunities,5860 - Manningtree Sports Centre,4601 - Hired services - Cleaning,25/11/2014,1061774-1,63.75,2100851 - KO-SHEEN Contract Cleaning Ltd,CLEANING 20TH-24TH OCT 14
Tendring DC,http://statistics.data.gov.uk/id/local-authority-district/22UN,Life Opportunities,8540 - Leisure Centre Clacton,4597 - Hired Services - Payments to Contractors,04/11/2014,2116944-1,293.75,2100851 - KO-SHEEN Contract Cleaning Ltd,w/e 4/10/14
Tendring DC,http://statistics.data.gov.uk/id/local-authority-district/22UN,Life Opportunities,5360 - HRA - Sheltered Units,4601 - Hired services - Cleaning,04/11/2014,2116957-1,425,2100851 - KO-SHEEN Contract Cleaning Ltd,cleaning 6/10 to 10/10/14
Tendring DC,http://statistics.data.gov.uk/id/local-authority-district/22UN,Life Opportunities,5360 - HRA - Sheltered Units,4601 - Hired services - Cleaning,04/11/2014,2116958-1,425,2100851 - KO-SHEEN Contract Cleaning Ltd,cleaning 13/10 to 17/10/14
Tendring DC,http://statistics.data.gov.uk/id/local-authority-district/22UN,Life Opportunities,5360 - HRA - Sheltered Units,4601 - Hired services - Cleaning,18/11/2014,2117029-1,425,2100851 - KO-SHEEN Contract Cleaning Ltd,Cleaning 27/10 - 31/10/14
Tendring DC,http://statistics.data.gov.uk/id/local-authority-district/22UN,Life Opportunities,5360 - HRA - Sheltered Units,4601 - Hired services - Cleaning,18/11/2014,2117030-1,425,2100851 - KO-SHEEN Contract Cleaning Ltd,Cleaning 20/10 - 24/10
Tendring DC,http://statistics.data.gov.uk/id/local-authority-district/22UN,Life Opportunities,5360 - HRA - Sheltered Units,4601 - Hired services - Cleaning,18/11/2014,2117056-1,588.88,2100851 - KO-SHEEN Contract Cleaning Ltd,Belmans Court Oct 14
Tendring DC,http://statistics.data.gov.uk/id/local-authority-district/22UN,Life Opportunities,5860 - Manningtree Sports Centre,4601 - Hired services - Cleaning,04/11/2014,7015540-1,63.75,2100851 - KO-SHEEN Contract Cleaning Ltd,CLEANING X 7.5 HRS
Tendring DC,http://statistics.data.gov.uk/id/local-authority-district/22UN,Life Opportunities,8540 - Leisure Centre Clacton,4597 - Hired Services - Payments to Contractors,11/11/2014,7015701-1,200,2100851 - KO-SHEEN Contract Cleaning Ltd,W.E. 11.10.14
Tendring DC,http://statistics.data.gov.uk/id/local-authority-district/22UN,Life Opportunities,8540 - Leisure Centre Clacton,4597 - Hired Services - Payments to Contractors,11/11/2014,7015702-1,200,2100851 - KO-SHEEN Contract Cleaning Ltd,W.E. 18.10.14
Tendring DC,http://statistics.data.gov.uk/id/local-authority-district/22UN,Life Opportunities,5860 - Manningtree Sports Centre,4601 - Hired services - Cleaning,11/11/2014,7015703-1,63.75,2100851 - KO-SHEEN Contract Cleaning Ltd,CONTRACT CLEANING 13TH - 17TH 2014
Tendring DC,http://statistics.data.gov.uk/id/local-authority-district/22UN,Life Opportunities,5860 - Manningtree Sports Centre,4601 - Hired services - Cleaning,11/11/2014,7015704-1,51,2100851 - KO-SHEEN Contract Cleaning Ltd,CONTRACT CLEANING 7-10TH OCT 14
Tendring DC,http://statistics.data.gov.uk/id/local-authority-district/22UN,Life Opportunities,5360 - HRA - Sheltered Units,4601 - Hired services - Cleaning,25/11/2014,7016046-1,425,2100851 - KO-SHEEN Contract Cleaning Ltd,CLEANING 3.11.14 - 7.11.14
Tendring DC,http://statistics.data.gov.uk/id/local-authority-district/22UN,Life Opportunities,"1580 - Benefits, Revenues and Customer Contact SU",4466 - Land Registry Fees,25/11/2014,7016133-1,568.5,2113091 - Land Registry Commercial Services,CHANGE OWNERSHIP OCT 14
Tendring DC,http://statistics.data.gov.uk/id/local-authority-district/22UN,Life Opportunities,7520 - Tourism Publicity Marketing Promotion,5160 - Advertising,18/11/2014,2117059-1,375,2108803 - Landor Travel Publications Ltd,Promo of Essex Coast Oct 14
Tendring DC,http://statistics.data.gov.uk/id/local-authority-district/22UN,Life Opportunities,5480 - HRA - Repair & Maintenance,2020 - Fixed Plant repairs,04/11/2014,7015576-1,620,REDACTED PERSONAL DATA,REDACTED PERSONAL DATA
Tendring DC,http://statistics.data.gov.uk/id/local-authority-district/22UN,Life Opportunities,5480 - HRA - Repair & Maintenance,2018 - Other Responsive Repairs,18/11/2014,7015900-1,280,REDACTED PERSONAL DATA,REDACTED PERSONAL DATA
Tendring DC,http://statistics.data.gov.uk/id/local-authority-district/22UN,Life Opportunities,5480 - HRA - Repair & Maintenance,2018 - Other Responsive Repairs,18/11/2014,7015901-1,480,REDACTED PERSONAL DATA,REDACTED PERSONAL DATA
Tendring DC,http://statistics.data.gov.uk/id/local-authority-district/22UN,Life Opportunities,5480 - HRA - Repair & Maintenance,2018 - Other Responsive Repairs,18/11/2014,7016017-1,2140,REDACTED PERSONAL DATA,REDACTED PERSONAL DATA
Tendring DC,http://statistics.data.gov.uk/id/local-authority-district/22UN,Life Opportunities,"1580 - Benefits, Revenues and Customer Contact SU",4459 - External Legal Advice,18/11/2014,7015877-1,635.5,2111904 - Lester Aldridge LLP,PROFESSIONAL CHARGES
Tendring DC,http://statistics.data.gov.uk/id/local-authority-district/22UN,Life Opportunities,"1580 - Benefits, Revenues and Customer Contact SU",4459 - External Legal Advice,18/11/2014,7015877-2,356,2111904 - Lester Aldridge LLP,PROFESSIONAL CHARGES
Tendring DC,http://statistics.data.gov.uk/id/local-authority-district/22UN,Life Opportunities,8540 - Leisure Centre Clacton,9283 - Memberships - DD,25/11/2014,1061805-1,32.5,REDACTED PERSONAL DATA,REDACTED PERSONAL DATA
Tendring DC,http://statistics.data.gov.uk/id/local-authority-district/22UN,Life Opportunities,8540 - Leisure Centre Clacton,5160 - Advertising,25/11/2014,7016094-1,328,2107277 - Look 5 Ltd,2 FPC AD 5 & 6 DEC
Tendring DC,http://statistics.data.gov.uk/id/local-authority-district/22UN,Life Opportunities,1230 - Strategic Housing & Needs Management,3302 - Car/Cycle Allowances - Officers,04/11/2014,7015601-1,30.5,2113693 - Luke Tappenden,MILEAGE FOR LUKE TAPPENDEN - CAREER TRACK
Tendring DC,http://statistics.data.gov.uk/id/local-authority-district/22UN,Life Opportunities,8540 - Leisure Centre Clacton,5500 - Miscellaneous Expenses,25/11/2014,7016087-1,99,2111940 - M Frost & Associates Ltd,D E C RENEWAL
Tendring DC,http://statistics.data.gov.uk/id/local-authority-district/22UN,Life Opportunities,8540 - Leisure Centre Clacton,9287 - Leisure Centre Facilities - Hall Hire & Bookings,04/11/2014,7015602-1,12.58,2114422 - M.S.S. Clacton Branch,MSS REFUND RE CANCELLED BOOKING
Tendring DC,http://statistics.data.gov.uk/id/local-authority-district/22UN,Life Opportunities,6160 - Princes Theatre,4105 - Bar/Catering Expenses,11/11/2014,7015714-1,87.6,2105052 - Maddisons,1/2 PINT TUMBERS PRINCES THEATRE
Tendring DC,http://statistics.data.gov.uk/id/local-authority-district/22UN,Life Opportunities,5220 - HRA - Policy & Management,5253 - HRA Health & Safety Expenses,18/11/2014,7015910-1,103.75,2113780 - Mainman Supplies Ltd,DR MARTEN SHOES & SHELL JACKET
Tendring DC,http://statistics.data.gov.uk/id/local-authority-district/22UN,Life Opportunities,5220 - HRA - Policy & Management,5253 - HRA Health & Safety Expenses,18/11/2014,7015912-1,67.5,2113780 - Mainman Supplies Ltd,"DICKIES SHOES SIZE 9, 10"
Tendring DC,http://statistics.data.gov.uk/id/local-authority-district/22UN,Life Opportunities,5220 - HRA - Policy & Management,5253 - HRA Health & Safety Expenses,18/11/2014,7015920-1,28.28,2113780 - Mainman Supplies Ltd,LINED RIGGER BOOT 5
Tendring DC,http://statistics.data.gov.uk/id/local-authority-district/22UN,Life Opportunities,5220 - HRA - Policy & Management,5253 - HRA Health & Safety Expenses,25/11/2014,7016130-1,21.45,2113780 - Mainman Supplies Ltd,ILLINOIS BLACK / CHARCOAL 3 IN 1
Tendring DC,http://statistics.data.gov.uk/id/local-authority-district/22UN,Life Opportunities,5860 - Manningtree Sports Centre,2308 - Energy Costs - Gas (Including LPG),25/11/2014,1061776-1,1234.6,2105903 - Manningtree High School,RECHARGES 1/3/14-31/8/14
Tendring DC,http://statistics.data.gov.uk/id/local-authority-district/22UN,Life Opportunities,5860 - Manningtree Sports Centre,2410 - Non Domestic Rates,25/11/2014,1061776-2,1886.16,2105903 - Manningtree High School,RECHARGES 1/3/14-31/8/14
Tendring DC,http://statistics.data.gov.uk/id/local-authority-district/22UN,Life Opportunities,5860 - Manningtree Sports Centre,2510 - Water Services - Unmetered,25/11/2014,1061776-3,795.61,2105903 - Manningtree High School,RECHARGES 1/3/14-31/8/14
Tendring DC,http://statistics.data.gov.uk/id/local-authority-district/22UN,Life Opportunities,5860 - Manningtree Sports Centre,2804 - Premises Insurance - General,25/11/2014,1061776-4,749.84,2105903 - Manningtree High School,RECHARGES 1/3/14-31/8/14
Tendring DC,http://statistics.data.gov.uk/id/local-authority-district/22UN,Life Opportunities,5240 - HRA - Managing Tenancies,5242 - Tenant Relations,11/11/2014,7015738-1,296,REDACTED PERSONAL DATA,REDACTED PERSONAL DATA
Tendring DC,http://statistics.data.gov.uk/id/local-authority-district/22UN,Life Opportunities,H815 - Re-roofing,C200 - Main Contractor,18/11/2014,1061672-1,925,REDACTED PERSONAL DATA,REDACTED PERSONAL DATA
Tendring DC,http://statistics.data.gov.uk/id/local-authority-district/22UN,Life Opportunities,6740 - Careline,5160 - Advertising,18/11/2014,7015963-1,85,2111922 - Mansion House Publishing (UK) Ltd,Nov-14
Tendring DC,http://statistics.data.gov.uk/id/local-authority-district/22UN,Life Opportunities,5240 - HRA - Managing Tenancies,6625 - Tenants Compensation Scheme,18/11/2014,2117023-1,250,REDACTED PERSONAL DATA,REDACTED PERSONAL DATA
Tendring DC,http://statistics.data.gov.uk/id/local-authority-district/22UN,Life Opportunities,H920 - Disabled Facilities Grants,C400 - Grant payments,11/11/2014,7015799-1,3823.5,REDACTED PERSONAL DATA,REDACTED PERSONAL DATA
Tendring DC,http://statistics.data.gov.uk/id/local-authority-district/22UN,Life Opportunities,6160 - Princes Theatre,4622 - Hired Services - Artistes and Production Companies,11/11/2014,7015716-1,4277.7,2108028 - Masters Entertainment Corporation Ltd,THE RAT PACK 13.10.2014
Tendring DC,http://statistics.data.gov.uk/id/local-authority-district/22UN,Life Opportunities,8510 - Dovercourt Swimming Pool & All Weather Facilities,2100 - Building Repairs,04/11/2014,7015541-1,55.7,2101791 - Medlock Electrical,DOVERCOURT POOL - BULBS
Tendring DC,http://statistics.data.gov.uk/id/local-authority-district/22UN,Life Opportunities,6160 - Princes Theatre,5160 - Advertising,18/11/2014,7015882-1,210,2102946 - Mellow 1557 Ltd,PEPPA PIG GIVEAWAY
Tendring DC,http://statistics.data.gov.uk/id/local-authority-district/22UN,Life Opportunities,5240 - HRA - Managing Tenancies,5242 - Tenant Relations,11/11/2014,1061564-1,10,REDACTED PERSONAL DATA,REDACTED PERSONAL DATA
Tendring DC,http://statistics.data.gov.uk/id/local-authority-district/22UN,Life Opportunities,8540 - Leisure Centre Clacton,4400 - Maintenance Under Service Agreements,18/11/2014,7015990-1,66.2,2104791 - Mobile Mini Uk Ltd,22.10.14 - 18.11.14
Tendring DC,http://statistics.data.gov.uk/id/local-authority-district/22UN,Life Opportunities,5140 - Homelessness,4683 - Other Homelessness Expenses,25/11/2014,1061803-1,245,REDACTED PERSONAL DATA,REDACTED PERSONAL DATA
Tendring DC,http://statistics.data.gov.uk/id/local-authority-district/22UN,Life Opportunities,6160 - Princes Theatre,4622 - Hired Services - Artistes and Production Companies,11/11/2014,7015712-1,1894.5,2106879 - Morningside Management Ltd,BON JOVI
Tendring DC,http://statistics.data.gov.uk/id/local-authority-district/22UN,Life Opportunities,8540 - Leisure Centre Clacton,5311 - General Provisions - Vending,18/11/2014,1061636-1,75.48,2113825 - Morvend Ltd,VENDING SUPPLIES
Tendring DC,http://statistics.data.gov.uk/id/local-authority-district/22UN,Life Opportunities,8540 - Leisure Centre Clacton,5311 - General Provisions - Vending,18/11/2014,1061636-2,8.21,2113825 - Morvend Ltd,VENDING SUPPLIES
Tendring DC,http://statistics.data.gov.uk/id/local-authority-district/22UN,Life Opportunities,8540 - Leisure Centre Clacton,5311 - General Provisions - Vending,25/11/2014,7016079-1,109.84,2113825 - Morvend Ltd,VENDING SUPPLIES
Tendring DC,http://statistics.data.gov.uk/id/local-authority-district/22UN,Life Opportunities,8540 - Leisure Centre Clacton,5311 - General Provisions - Vending,25/11/2014,7016079-2,137.84,2113825 - Morvend Ltd,VENDING SUPPLIES
Tendring DC,http://statistics.data.gov.uk/id/local-authority-district/22UN,Life Opportunities,6740 - Careline,9050 - Careline Income - General,25/11/2014,7016176-1,12.4,REDACTED PERSONAL DATA,REDACTED PERSONAL DATA
Tendring DC,http://statistics.data.gov.uk/id/local-authority-district/22UN,Life Opportunities,H920 - Disabled Facilities Grants,C400 - Grant payments,25/11/2014,1061799-1,2792.08,REDACTED PERSONAL DATA,REDACTED PERSONAL DATA
Tendring DC,http://statistics.data.gov.uk/id/local-authority-district/22UN,Life Opportunities,5240 - HRA - Managing Tenancies,6625 - Tenants Compensation Scheme,04/11/2014,7015607-1,1.5,REDACTED PERSONAL DATA,REDACTED PERSONAL DATA
Tendring DC,http://statistics.data.gov.uk/id/local-authority-district/22UN,Life Opportunities,9920 - HRA Balance Sheet,B860 - Housing Rents - Cash,11/11/2014,7015789-1,586.96,REDACTED PERSONAL DATA,REDACTED PERSONAL DATA
Tendring DC,http://statistics.data.gov.uk/id/local-authority-district/22UN,Life Opportunities,9920 - HRA Balance Sheet,B860 - Housing Rents - Cash,11/11/2014,7015790-1,38.4,REDACTED PERSONAL DATA,REDACTED PERSONAL DATA
Tendring DC,http://statistics.data.gov.uk/id/local-authority-district/22UN,Life Opportunities,"1580 - Benefits, Revenues and Customer Contact SU",4459 - External Legal Advice,18/11/2014,7015996-1,3000,2112220 - Mr James Findlay QC,LOCAL COUNCIL TAX SCHEME
Tendring DC,http://statistics.data.gov.uk/id/local-authority-district/22UN,Life Opportunities,9920 - HRA Balance Sheet,B860 - Housing Rents - Cash,11/11/2014,7015792-1,332.75,REDACTED PERSONAL DATA,REDACTED PERSONAL DATA
Tendring DC,http://statistics.data.gov.uk/id/local-authority-district/22UN,Life Opportunities,9920 - HRA Balance Sheet,B860 - Housing Rents - Cash,18/11/2014,1061691-1,744.01,REDACTED PERSONAL DATA,REDACTED PERSONAL DATA
Tendring DC,http://statistics.data.gov.uk/id/local-authority-district/22UN,Life Opportunities,1242 - Corporate Director (Life Opportunities),1710 - Training - Central Department Budget,18/11/2014,2117024-1,288,REDACTED PERSONAL DATA,REDACTED PERSONAL DATA
Tendring DC,http://statistics.data.gov.uk/id/local-authority-district/22UN,Life Opportunities,9920 - HRA Balance Sheet,B860 - Housing Rents - Cash,18/11/2014,1061690-1,235.84,REDACTED PERSONAL DATA,REDACTED PERSONAL DATA
Tendring DC,http://statistics.data.gov.uk/id/local-authority-district/22UN,Life Opportunities,5240 - HRA - Managing Tenancies,5242 - Tenant Relations,11/11/2014,1061566-1,10,REDACTED PERSONAL DATA,REDACTED PERSONAL DATA
Tendring DC,http://statistics.data.gov.uk/id/local-authority-district/22UN,Life Opportunities,8540 - Leisure Centre Clacton,9284 - Memberships - Cash,18/11/2014,2117025-1,14.16,REDACTED PERSONAL DATA,REDACTED PERSONAL DATA
Tendring DC,http://statistics.data.gov.uk/id/local-authority-district/22UN,Life Opportunities,9920 - HRA Balance Sheet,B860 - Housing Rents - Cash,11/11/2014,7015787-1,1537.28,REDACTED PERSONAL DATA,REDACTED PERSONAL DATA
Tendring DC,http://statistics.data.gov.uk/id/local-authority-district/22UN,Life Opportunities,5240 - HRA - Managing Tenancies,6625 - Tenants Compensation Scheme,04/11/2014,7015608-1,2.06,REDACTED PERSONAL DATA,REDACTED PERSONAL DATA
Tendring DC,http://statistics.data.gov.uk/id/local-authority-district/22UN,Life Opportunities,9920 - HRA Balance Sheet,B860 - Housing Rents - Cash,11/11/2014,7015791-1,93.69,REDACTED PERSONAL DATA,REDACTED PERSONAL DATA
Tendring DC,http://statistics.data.gov.uk/id/local-authority-district/22UN,Life Opportunities,6740 - Careline,9050 - Careline Income - General,25/11/2014,7016177-1,9.92,REDACTED PERSONAL DATA,REDACTED PERSONAL DATA
Tendring DC,http://statistics.data.gov.uk/id/local-authority-district/22UN,Life Opportunities,9920 - HRA Balance Sheet,B860 - Housing Rents - Cash,11/11/2014,7015794-1,6.04,REDACTED PERSONAL DATA,REDACTED PERSONAL DATA
Tendring DC,http://statistics.data.gov.uk/id/local-authority-district/22UN,Life Opportunities,9920 - HRA Balance Sheet,B860 - Housing Rents - Cash,25/11/2014,7016174-1,280.66,REDACTED PERSONAL DATA,REDACTED PERSONAL DATA
Tendring DC,http://statistics.data.gov.uk/id/local-authority-district/22UN,Life Opportunities,H920 - Disabled Facilities Grants,C400 - Grant payments,18/11/2014,2117018-1,100,REDACTED PERSONAL DATA,REDACTED PERSONAL DATA
Tendring DC,http://statistics.data.gov.uk/id/local-authority-district/22UN,Life Opportunities,9920 - HRA Balance Sheet,B860 - Housing Rents - Cash,18/11/2014,1061689-1,91.33,REDACTED PERSONAL DATA,REDACTED PERSONAL DATA
Tendring DC,http://statistics.data.gov.uk/id/local-authority-district/22UN,Life Opportunities,6740 - Careline,9050 - Careline Income - General,25/11/2014,7016178-1,9.92,REDACTED PERSONAL DATA,REDACTED PERSONAL DATA
Tendring DC,http://statistics.data.gov.uk/id/local-authority-district/22UN,Life Opportunities,9920 - HRA Balance Sheet,B860 - Housing Rents - Cash,25/11/2014,7016175-1,54.01,REDACTED PERSONAL DATA,REDACTED PERSONAL DATA
Tendring DC,http://statistics.data.gov.uk/id/local-authority-district/22UN,Life Opportunities,6740 - Careline,9050 - Careline Income - General,04/11/2014,7015609-1,80.78,REDACTED PERSONAL DATA,REDACTED PERSONAL DATA
Tendring DC,http://statistics.data.gov.uk/id/local-authority-district/22UN,Life Opportunities,9920 - HRA Balance Sheet,B860 - Housing Rents - Cash,11/11/2014,7015788-1,19.2,REDACTED PERSONAL DATA,REDACTED PERSONAL DATA
Tendring DC,http://statistics.data.gov.uk/id/local-authority-district/22UN,Life Opportunities,9920 - HRA Balance Sheet,B860 - Housing Rents - Cash,11/11/2014,7015793-1,244,REDACTED PERSONAL DATA,REDACTED PERSONAL DATA
Tendring DC,http://statistics.data.gov.uk/id/local-authority-district/22UN,Life Opportunities,5240 - HRA - Managing Tenancies,5242 - Tenant Relations,11/11/2014,1061571-1,10,REDACTED PERSONAL DATA,REDACTED PERSONAL DATA
Tendring DC,http://statistics.data.gov.uk/id/local-authority-district/22UN,Life Opportunities,9920 - HRA Balance Sheet,B860 - Housing Rents - Cash,18/11/2014,1061688-1,168.61,REDACTED PERSONAL DATA,REDACTED PERSONAL DATA
Tendring DC,http://statistics.data.gov.uk/id/local-authority-district/22UN,Life Opportunities,9920 - HRA Balance Sheet,B860 - Housing Rents - Cash,04/11/2014,7015606-1,200,REDACTED PERSONAL DATA,REDACTED PERSONAL DATA
Tendring DC,http://statistics.data.gov.uk/id/local-authority-district/22UN,Life Opportunities,7000 - CCTV,4400 - Maintenance Under Service Agreements,18/11/2014,1061631-1,233,2100967 - N Rudelhoff,SEAFRONT CAMERA FAULT
Tendring DC,http://statistics.data.gov.uk/id/local-authority-district/22UN,Life Opportunities,1240 - Commercial Management,3311 - Travelling Career Track,11/11/2014,1061581-1,60,REDACTED PERSONAL DATA,REDACTED PERSONAL DATA
Tendring DC,http://statistics.data.gov.uk/id/local-authority-district/22UN,Life Opportunities,7600 - Tourist Information Centres,9356 - Commission Sales,11/11/2014,7015836-1,698.9,2110032 - National Express Ltd,NATIONAL EXPRESS OCT 14
Tendring DC,http://statistics.data.gov.uk/id/local-authority-district/22UN,Life Opportunities,7600 - Tourist Information Centres,9356 - Commission Sales,11/11/2014,7015836-2,-59.63,2110032 - National Express Ltd,NATIONAL EXPRESS OCT 14
Tendring DC,http://statistics.data.gov.uk/id/local-authority-district/22UN,Life Opportunities,H920 - Disabled Facilities Grants,C400 - Grant payments,04/11/2014,7015612-1,1542,REDACTED PERSONAL DATA,REDACTED PERSONAL DATA
Tendring DC,http://statistics.data.gov.uk/id/local-authority-district/22UN,Life Opportunities,"1580 - Benefits, Revenues and Customer Contact SU",4300 - Printing & Stationery,11/11/2014,7015723-1,221.88,2100939 - Neopost Limited,SEALING FLUID
Tendring DC,http://statistics.data.gov.uk/id/local-authority-district/22UN,Life Opportunities,6160 - Princes Theatre,5160 - Advertising,25/11/2014,1061681-1,-250,2113536 - Newsquest Media Group,13/8/14 EVENING GAZETTE CREDIT
Tendring DC,http://statistics.data.gov.uk/id/local-authority-district/22UN,Life Opportunities,6160 - Princes Theatre,5160 - Advertising,04/11/2014,7015545-1,84.3,2113536 - Newsquest Media Group,GAZETTE 16.10.14
Tendring DC,http://statistics.data.gov.uk/id/local-authority-district/22UN,Life Opportunities,6160 - Princes Theatre,5160 - Advertising,25/11/2014,7015881-1,220,2113536 - Newsquest Media Group,CLACTON & FRINTON GAZETTE 30/10
Tendring DC,http://statistics.data.gov.uk/id/local-authority-district/22UN,Life Opportunities,6160 - Princes Theatre,5160 - Advertising,25/11/2014,7016139-1,84.3,2113536 - Newsquest Media Group,CLACTON GAZETTE 6.11.14
Tendring DC,http://statistics.data.gov.uk/id/local-authority-district/22UN,Life Opportunities,5140 - Homelessness,4683 - Other Homelessness Expenses,25/11/2014,1061807-1,550,REDACTED PERSONAL DATA,REDACTED PERSONAL DATA
Tendring DC,http://statistics.data.gov.uk/id/local-authority-district/22UN,Life Opportunities,5140 - Homelessness,4683 - Other Homelessness Expenses,18/11/2014,2117057-1,35,2107920 - NowMedical,October Medical Advice
Tendring DC,http://statistics.data.gov.uk/id/local-authority-district/22UN,Life Opportunities,5360 - HRA - Sheltered Units,2304 - Energy Costs - Electricity,25/11/2014,7016129-1,87.54,2103812 - Npower Limited,GUEST ROOM 20 CROOKED
Tendring DC,http://statistics.data.gov.uk/id/local-authority-district/22UN,Life Opportunities,5360 - HRA - Sheltered Units,2702 - Window Cleaning,11/11/2014,7015739-1,1350,2102096 - Nu-Life Cleaning,APRIL - JUN 14 WINDOW CLEANING
Tendring DC,http://statistics.data.gov.uk/id/local-authority-district/22UN,Life Opportunities,5360 - HRA - Sheltered Units,2702 - Window Cleaning,11/11/2014,7015740-1,166.67,2102096 - Nu-Life Cleaning,APRIL - JUN 14 LITTER PICKING
Tendring DC,http://statistics.data.gov.uk/id/local-authority-district/22UN,Life Opportunities,1880 - Office Accommodation Expenses,2100 - Building Repairs,18/11/2014,7015906-1,125,2102096 - Nu-Life Cleaning,DEEP CLEAN CHAIR PIER AVE
Tendring DC,http://statistics.data.gov.uk/id/local-authority-district/22UN,Life Opportunities,1880 - Office Accommodation Expenses,2702 - Window Cleaning,18/11/2014,7015907-1,1100,2102096 - Nu-Life Cleaning,CARRYOUT ROUTINE WINDOW CLEANING
Tendring DC,http://statistics.data.gov.uk/id/local-authority-district/22UN,Life Opportunities,1880 - Office Accommodation Expenses,2100 - Building Repairs,18/11/2014,7015908-1,60,2102096 - Nu-Life Cleaning,WINDOW CLEANING BARNES HOUSE
Tendring DC,http://statistics.data.gov.uk/id/local-authority-district/22UN,Life Opportunities,1880 - Office Accommodation Expenses,2100 - Building Repairs,18/11/2014,7015909-1,150,2102096 - Nu-Life Cleaning,PRESSURE WASHING TOWN HALL
Tendring DC,http://statistics.data.gov.uk/id/local-authority-district/22UN,Life Opportunities,1880 - Office Accommodation Expenses,2702 - Window Cleaning,18/11/2014,7015917-1,550,2102096 - Nu-Life Cleaning,CARRYOUT INTERNAL WINDOW CLEANING
Tendring DC,http://statistics.data.gov.uk/id/local-authority-district/22UN,Life Opportunities,1880 - Office Accommodation Expenses,2100 - Building Repairs,18/11/2014,7015918-1,85,2102096 - Nu-Life Cleaning,"SANITISE & CLEAN BOILER HOUSE, TOWN HALL"
Tendring DC,http://statistics.data.gov.uk/id/local-authority-district/22UN,Life Opportunities,5360 - HRA - Sheltered Units,2702 - Window Cleaning,25/11/2014,7016122-1,200,2102096 - Nu-Life Cleaning,JULY - SEPT 14 LITTER PICKING
Tendring DC,http://statistics.data.gov.uk/id/local-authority-district/22UN,Life Opportunities,5360 - HRA - Sheltered Units,2702 - Window Cleaning,25/11/2014,7016123-1,1350,2102096 - Nu-Life Cleaning,JULY - SEPT 14 WINDOW CLEANING
Tendring DC,http://statistics.data.gov.uk/id/local-authority-district/22UN,Life Opportunities,8510 - Dovercourt Swimming Pool & All Weather Facilities,4400 - Maintenance Under Service Agreements,04/11/2014,2116942-1,41.07,2100281 - OCS Group UK Ltd,dovercourt pool - bins
Tendring DC,http://statistics.data.gov.uk/id/local-authority-district/22UN,Life Opportunities,5140 - Homelessness,4683 - Other Homelessness Expenses,11/11/2014,1061572-1,272,REDACTED PERSONAL DATA,REDACTED PERSONAL DATA
Tendring DC,http://statistics.data.gov.uk/id/local-authority-district/22UN,Life Opportunities,H920 - Disabled Facilities Grants,C400 - Grant payments,18/11/2014,1061683-1,5153,REDACTED PERSONAL DATA,REDACTED PERSONAL DATA
Tendring DC,http://statistics.data.gov.uk/id/local-authority-district/22UN,Life Opportunities,7600 - Tourist Information Centres,9356 - Commission Sales,04/11/2014,7015603-1,17.55,2114432 - Orchestras Live,LULLABY CONCERT TICKET SALES
Tendring DC,http://statistics.data.gov.uk/id/local-authority-district/22UN,Life Opportunities,8520 - Frinton & Walton Swimming Pool,5311 - General Provisions - Vending,11/11/2014,1061589-1,25.64,2101083 - Osgood Smith,FWSP-OSGOOD SMITH
Tendring DC,http://statistics.data.gov.uk/id/local-authority-district/22UN,Life Opportunities,5820 - Harwich Sports Centre,5311 - General Provisions - Vending,11/11/2014,1061590-1,54.05,2101083 - Osgood Smith,CANTEEN GOODS
Tendring DC,http://statistics.data.gov.uk/id/local-authority-district/22UN,Life Opportunities,5820 - Harwich Sports Centre,5311 - General Provisions - Vending,18/11/2014,1061634-1,22.22,2101083 - Osgood Smith,CANTEEN GOODS
Tendring DC,http://statistics.data.gov.uk/id/local-authority-district/22UN,Life Opportunities,8520 - Frinton & Walton Swimming Pool,5196 - Credit Card Charges,25/11/2014,1061779-1,87.58,2101083 - Osgood Smith,FWSP-OSGOOD SMITH
Tendring DC,http://statistics.data.gov.uk/id/local-authority-district/22UN,Life Opportunities,5820 - Harwich Sports Centre,5311 - General Provisions - Vending,25/11/2014,1061780-1,51.46,2101083 - Osgood Smith,CANTEEN GOODS
Tendring DC,http://statistics.data.gov.uk/id/local-authority-district/22UN,Life Opportunities,5860 - Manningtree Sports Centre,5311 - General Provisions - Vending,04/11/2014,2116938-1,41.56,2101083 - Osgood Smith,vending supplies
Tendring DC,http://statistics.data.gov.uk/id/local-authority-district/22UN,Life Opportunities,8540 - Leisure Centre Clacton,5311 - General Provisions - Vending,04/11/2014,2116945-1,485.22,2101083 - Osgood Smith,vending supplies
Tendring DC,http://statistics.data.gov.uk/id/local-authority-district/22UN,Life Opportunities,5820 - Harwich Sports Centre,5311 - General Provisions - Vending,04/11/2014,7015533-1,27.78,2101083 - Osgood Smith,CANTEEN GOODS
Tendring DC,http://statistics.data.gov.uk/id/local-authority-district/22UN,Life Opportunities,6160 - Princes Theatre,5306 - Confectionary,04/11/2014,7015640-1,207.64,2101083 - Osgood Smith,CONFECTIONARY FOR THEATRE
Tendring DC,http://statistics.data.gov.uk/id/local-authority-district/22UN,Life Opportunities,6160 - Princes Theatre,5306 - Confectionary,04/11/2014,7015640-2,8.02,2101083 - Osgood Smith,CONFECTIONARY FOR THEATRE
Tendring DC,http://statistics.data.gov.uk/id/local-authority-district/22UN,Life Opportunities,8540 - Leisure Centre Clacton,5311 - General Provisions - Vending,11/11/2014,7015692-1,211.27,2101083 - Osgood Smith,VENDING SUPPLIES
Tendring DC,http://statistics.data.gov.uk/id/local-authority-district/22UN,Life Opportunities,8540 - Leisure Centre Clacton,5311 - General Provisions - Vending,11/11/2014,7015693-1,954.96,2101083 - Osgood Smith,VENDING SUPPLIES
Tendring DC,http://statistics.data.gov.uk/id/local-authority-district/22UN,Life Opportunities,8540 - Leisure Centre Clacton,5311 - General Provisions - Vending,11/11/2014,7015693-2,72,2101083 - Osgood Smith,VENDING SUPPLIES
Tendring DC,http://statistics.data.gov.uk/id/local-authority-district/22UN,Life Opportunities,8520 - Frinton & Walton Swimming Pool,5311 - General Provisions - Vending,11/11/2014,7015694-1,233.92,2101083 - Osgood Smith,FWSP - OSGOOD SMITH
Tendring DC,http://statistics.data.gov.uk/id/local-authority-district/22UN,Life Opportunities,5860 - Manningtree Sports Centre,5311 - General Provisions - Vending,11/11/2014,7015695-1,160.08,2101083 - Osgood Smith,VENDING SUPPLIES
Tendring DC,http://statistics.data.gov.uk/id/local-authority-district/22UN,Life Opportunities,6160 - Princes Theatre,5306 - Confectionary,11/11/2014,7015715-1,165.56,2101083 - Osgood Smith,CONFECTIONARY FOR PRINCES THEATRE
Tendring DC,http://statistics.data.gov.uk/id/local-authority-district/22UN,Life Opportunities,8520 - Frinton & Walton Swimming Pool,5311 - General Provisions - Vending,18/11/2014,7015888-1,27.66,2101083 - Osgood Smith,FWSP - OSGOOD SMITH
Tendring DC,http://statistics.data.gov.uk/id/local-authority-district/22UN,Life Opportunities,5280 - HRA - Unapportionable Central Overheads Contribution,5311 - General Provisions - Vending,18/11/2014,7015894-1,27.52,2101083 - Osgood Smith,CANTEEN GOODS
Tendring DC,http://statistics.data.gov.uk/id/local-authority-district/22UN,Life Opportunities,5800 - Brightlingsea Sports Centre,5300 - Resaleable Items,18/11/2014,7015960-1,144.79,2101083 - Osgood Smith,OSGOOD SMITH
Tendring DC,http://statistics.data.gov.uk/id/local-authority-district/22UN,Life Opportunities,5860 - Manningtree Sports Centre,5311 - General Provisions - Vending,18/11/2014,7015978-1,2.89,2101083 - Osgood Smith,VENDING SUPPLIES
Tendring DC,http://statistics.data.gov.uk/id/local-authority-district/22UN,Life Opportunities,8540 - Leisure Centre Clacton,5311 - General Provisions - Vending,18/11/2014,7015988-1,241.59,2101083 - Osgood Smith,VENDING SUPPLIES
Tendring DC,http://statistics.data.gov.uk/id/local-authority-district/22UN,Life Opportunities,5860 - Manningtree Sports Centre,5311 - General Provisions - Vending,25/11/2014,7016064-1,12.89,2101083 - Osgood Smith,VENDING SUPPLIERS
Tendring DC,http://statistics.data.gov.uk/id/local-authority-district/22UN,Life Opportunities,5860 - Manningtree Sports Centre,5311 - General Provisions - Vending,25/11/2014,7016065-1,98.79,2101083 - Osgood Smith,VENDING SUPPLIERS
Tendring DC,http://statistics.data.gov.uk/id/local-authority-district/22UN,Life Opportunities,8540 - Leisure Centre Clacton,5311 - General Provisions - Vending,25/11/2014,7016082-1,550.16,2101083 - Osgood Smith,VENDING SUPPLIES
Tendring DC,http://statistics.data.gov.uk/id/local-authority-district/22UN,Life Opportunities,8540 - Leisure Centre Clacton,5311 - General Provisions - Vending,25/11/2014,7016082-2,110.15,2101083 - Osgood Smith,VENDING SUPPLIES
Tendring DC,http://statistics.data.gov.uk/id/local-authority-district/22UN,Life Opportunities,8540 - Leisure Centre Clacton,5311 - General Provisions - Vending,25/11/2014,7016083-1,36.9,2101083 - Osgood Smith,VENDING SUPPLIES
Tendring DC,http://statistics.data.gov.uk/id/local-authority-district/22UN,Life Opportunities,8540 - Leisure Centre Clacton,5311 - General Provisions - Vending,25/11/2014,7016084-1,132.28,2101083 - Osgood Smith,VENDING SUPPLIES
Tendring DC,http://statistics.data.gov.uk/id/local-authority-district/22UN,Life Opportunities,5860 - Manningtree Sports Centre,5311 - General Provisions - Vending,25/11/2014,7016151-1,12.89,2101083 - Osgood Smith,VENDING SUPPLIES
Tendring DC,http://statistics.data.gov.uk/id/local-authority-district/22UN,Life Opportunities,5860 - Manningtree Sports Centre,5311 - General Provisions - Vending,25/11/2014,7016152-1,88.62,2101083 - Osgood Smith,VENDING SUPPLIES
Tendring DC,http://statistics.data.gov.uk/id/local-authority-district/22UN,Life Opportunities,8520 - Frinton & Walton Swimming Pool,5311 - General Provisions - Vending,25/11/2014,7016153-1,45.61,2101083 - Osgood Smith,FWSP - OSGOOD SMITH
Tendring DC,http://statistics.data.gov.uk/id/local-authority-district/22UN,Life Opportunities,5480 - HRA - Repair & Maintenance,2077 - Gas Service Contract  Servicing/Testing (Large Sca,11/11/2014,1061609-1,2960.98,2113206 - P&R Installation Company Ltd,MECHANICAL SERVICES CONTRACT (LSB)
Tendring DC,http://statistics.data.gov.uk/id/local-authority-district/22UN,Life Opportunities,5480 - HRA - Repair & Maintenance,2078 - Gas Service Contract Other Refurbishment/Repairs (,11/11/2014,1061609-2,2748.24,2113206 - P&R Installation Company Ltd,MECHANICAL SERVICES CONTRACT (LSB)
Tendring DC,http://statistics.data.gov.uk/id/local-authority-district/22UN,Life Opportunities,5240 - HRA - Managing Tenancies,5242 - Tenant Relations,11/11/2014,1061562-1,10,REDACTED PERSONAL DATA,REDACTED PERSONAL DATA
Tendring DC,http://statistics.data.gov.uk/id/local-authority-district/22UN,Life Opportunities,5480 - HRA - Repair & Maintenance,2017 - Mechanical Equipment /Extract Fans,18/11/2014,1061660-1,620,REDACTED PERSONAL DATA,REDACTED PERSONAL DATA
Tendring DC,http://statistics.data.gov.uk/id/local-authority-district/22UN,Life Opportunities,5480 - HRA - Repair & Maintenance,2017 - Mechanical Equipment /Extract Fans,18/11/2014,1061660-2,477,REDACTED PERSONAL DATA,REDACTED PERSONAL DATA
Tendring DC,http://statistics.data.gov.uk/id/local-authority-district/22UN,Life Opportunities,5480 - HRA - Repair & Maintenance,2017 - Mechanical Equipment /Extract Fans,18/11/2014,1061661-1,170,REDACTED PERSONAL DATA,REDACTED PERSONAL DATA
Tendring DC,http://statistics.data.gov.uk/id/local-authority-district/22UN,Life Opportunities,5480 - HRA - Repair & Maintenance,2017 - Mechanical Equipment /Extract Fans,18/11/2014,1061661-2,130,REDACTED PERSONAL DATA,REDACTED PERSONAL DATA
Tendring DC,http://statistics.data.gov.uk/id/local-authority-district/22UN,Life Opportunities,5480 - HRA - Repair & Maintenance,2017 - Mechanical Equipment /Extract Fans,18/11/2014,1061662-1,480,REDACTED PERSONAL DATA,REDACTED PERSONAL DATA
Tendring DC,http://statistics.data.gov.uk/id/local-authority-district/22UN,Life Opportunities,5480 - HRA - Repair & Maintenance,2017 - Mechanical Equipment /Extract Fans,18/11/2014,1061662-2,384,REDACTED PERSONAL DATA,REDACTED PERSONAL DATA
Tendring DC,http://statistics.data.gov.uk/id/local-authority-district/22UN,Life Opportunities,5480 - HRA - Repair & Maintenance,2017 - Mechanical Equipment /Extract Fans,18/11/2014,1061663-1,1060,REDACTED PERSONAL DATA,REDACTED PERSONAL DATA
Tendring DC,http://statistics.data.gov.uk/id/local-authority-district/22UN,Life Opportunities,5480 - HRA - Repair & Maintenance,2017 - Mechanical Equipment /Extract Fans,18/11/2014,1061663-2,692,REDACTED PERSONAL DATA,REDACTED PERSONAL DATA
Tendring DC,http://statistics.data.gov.uk/id/local-authority-district/22UN,Life Opportunities,5480 - HRA - Repair & Maintenance,2017 - Mechanical Equipment /Extract Fans,25/11/2014,1061731-1,290,REDACTED PERSONAL DATA,REDACTED PERSONAL DATA
Tendring DC,http://statistics.data.gov.uk/id/local-authority-district/22UN,Life Opportunities,5480 - HRA - Repair & Maintenance,2017 - Mechanical Equipment /Extract Fans,25/11/2014,1061731-2,254,REDACTED PERSONAL DATA,REDACTED PERSONAL DATA
Tendring DC,http://statistics.data.gov.uk/id/local-authority-district/22UN,Life Opportunities,5480 - HRA - Repair & Maintenance,2017 - Mechanical Equipment /Extract Fans,25/11/2014,1061732-1,365,REDACTED PERSONAL DATA,REDACTED PERSONAL DATA
Tendring DC,http://statistics.data.gov.uk/id/local-authority-district/22UN,Life Opportunities,5480 - HRA - Repair & Maintenance,2017 - Mechanical Equipment /Extract Fans,25/11/2014,1061732-2,170,REDACTED PERSONAL DATA,REDACTED PERSONAL DATA
Tendring DC,http://statistics.data.gov.uk/id/local-authority-district/22UN,Life Opportunities,5480 - HRA - Repair & Maintenance,2017 - Mechanical Equipment /Extract Fans,25/11/2014,1061733-1,1480,REDACTED PERSONAL DATA,REDACTED PERSONAL DATA
Tendring DC,http://statistics.data.gov.uk/id/local-authority-district/22UN,Life Opportunities,5480 - HRA - Repair & Maintenance,2017 - Mechanical Equipment /Extract Fans,25/11/2014,1061733-2,860,REDACTED PERSONAL DATA,REDACTED PERSONAL DATA
Tendring DC,http://statistics.data.gov.uk/id/local-authority-district/22UN,Life Opportunities,5480 - HRA - Repair & Maintenance,2017 - Mechanical Equipment /Extract Fans,25/11/2014,1061734-1,154,REDACTED PERSONAL DATA,REDACTED PERSONAL DATA
Tendring DC,http://statistics.data.gov.uk/id/local-authority-district/22UN,Life Opportunities,5480 - HRA - Repair & Maintenance,2017 - Mechanical Equipment /Extract Fans,25/11/2014,1061734-2,120,REDACTED PERSONAL DATA,REDACTED PERSONAL DATA
Tendring DC,http://statistics.data.gov.uk/id/local-authority-district/22UN,Life Opportunities,5480 - HRA - Repair & Maintenance,2017 - Mechanical Equipment /Extract Fans,04/11/2014,2116987-1,520,REDACTED PERSONAL DATA,REDACTED PERSONAL DATA
Tendring DC,http://statistics.data.gov.uk/id/local-authority-district/22UN,Life Opportunities,5480 - HRA - Repair & Maintenance,2017 - Mechanical Equipment /Extract Fans,04/11/2014,2116987-2,435,REDACTED PERSONAL DATA,REDACTED PERSONAL DATA
Tendring DC,http://statistics.data.gov.uk/id/local-authority-district/22UN,Life Opportunities,5480 - HRA - Repair & Maintenance,2017 - Mechanical Equipment /Extract Fans,04/11/2014,2116988-1,120,REDACTED PERSONAL DATA,REDACTED PERSONAL DATA
Tendring DC,http://statistics.data.gov.uk/id/local-authority-district/22UN,Life Opportunities,5480 - HRA - Repair & Maintenance,2017 - Mechanical Equipment /Extract Fans,04/11/2014,2116988-2,198,REDACTED PERSONAL DATA,REDACTED PERSONAL DATA
Tendring DC,http://statistics.data.gov.uk/id/local-authority-district/22UN,Life Opportunities,6355 - Community Activity Network,4597 - Hired Services - Payments to Contractors,25/11/2014,7016085-1,20,2114012 - Peppermint Dance Centre,ST DANCE OCT HALF TERM
Tendring DC,http://statistics.data.gov.uk/id/local-authority-district/22UN,Life Opportunities,5880 - Management Of Sport & Leisure Facilities,5166 - Marketing and Promotion,18/11/2014,7015957-1,200,2101097 - Peter Lockyer Advertising Ltd,AD ARTWORK LEISURE TIME
Tendring DC,http://statistics.data.gov.uk/id/local-authority-district/22UN,Life Opportunities,5880 - Management Of Sport & Leisure Facilities,5166 - Marketing and Promotion,18/11/2014,7015958-1,150,2101097 - Peter Lockyer Advertising Ltd,AD ARTWORK HARWICH GUIDE
Tendring DC,http://statistics.data.gov.uk/id/local-authority-district/22UN,Life Opportunities,5880 - Management Of Sport & Leisure Facilities,5166 - Marketing and Promotion,18/11/2014,7015993-1,250,2101097 - Peter Lockyer Advertising Ltd,AD ARTWORK RE DSP
Tendring DC,http://statistics.data.gov.uk/id/local-authority-district/22UN,Life Opportunities,5420 - HRA - Communal Cleaning,2706 - Communal Areas Cleaning Expenses,04/11/2014,2116959-1,3521.58,2107884 - Pinnacle Essex,sept 2014 cleaning
Tendring DC,http://statistics.data.gov.uk/id/local-authority-district/22UN,Life Opportunities,5880 - Management Of Sport & Leisure Facilities,5166 - Marketing and Promotion,25/11/2014,7016081-1,495,2113700 - PJR Communications Ltd,AD LEISURETIME WINTER
Tendring DC,http://statistics.data.gov.uk/id/local-authority-district/22UN,Life Opportunities,5480 - HRA - Repair & Maintenance,2090 - Fencing,04/11/2014,2116910-1,150.05,REDACTED PERSONAL DATA,REDACTED PERSONAL DATA
Tendring DC,http://statistics.data.gov.uk/id/local-authority-district/22UN,Life Opportunities,5480 - HRA - Repair & Maintenance,2001 - Responsive Maintenance - Concrete And Other Extern,04/11/2014,2116910-2,78,REDACTED PERSONAL DATA,REDACTED PERSONAL DATA
Tendring DC,http://statistics.data.gov.uk/id/local-authority-district/22UN,Life Opportunities,5480 - HRA - Repair & Maintenance,2090 - Fencing,04/11/2014,2116911-1,143,REDACTED PERSONAL DATA,REDACTED PERSONAL DATA
Tendring DC,http://statistics.data.gov.uk/id/local-authority-district/22UN,Life Opportunities,5480 - HRA - Repair & Maintenance,2090 - Fencing,04/11/2014,2116912-1,139.76,REDACTED PERSONAL DATA,REDACTED PERSONAL DATA
Tendring DC,http://statistics.data.gov.uk/id/local-authority-district/22UN,Life Opportunities,5480 - HRA - Repair & Maintenance,2090 - Fencing,18/11/2014,7015905-1,1549.7,REDACTED PERSONAL DATA,REDACTED PERSONAL DATA
Tendring DC,http://statistics.data.gov.uk/id/local-authority-district/22UN,Life Opportunities,6160 - Princes Theatre,4622 - Hired Services - Artistes and Production Companies,11/11/2014,7015727-1,9293.44,2111649 - Polka Dot Pantomimes,JACK & THE BEANSTALK 3RD PAYMENT
Tendring DC,http://statistics.data.gov.uk/id/local-authority-district/22UN,Life Opportunities,H920 - Disabled Facilities Grants,C400 - Grant payments,04/11/2014,7015611-1,4057.53,REDACTED PERSONAL DATA,REDACTED PERSONAL DATA
Tendring DC,http://statistics.data.gov.uk/id/local-authority-district/22UN,Life Opportunities,"1580 - Benefits, Revenues and Customer Contact SU",4462 - Bailiffs and Tracing Agent Fees re debt recovery,25/11/2014,7016134-1,519,2114137 - Premier Locate Ltd,TRACING SERVICES
Tendring DC,http://statistics.data.gov.uk/id/local-authority-district/22UN,Life Opportunities,5480 - HRA - Repair & Maintenance,2012 - Responsive Maintenance - Clearance And Cleaning,11/11/2014,7015742-1,100,REDACTED PERSONAL DATA,REDACTED PERSONAL DATA
Tendring DC,http://statistics.data.gov.uk/id/local-authority-district/22UN,Life Opportunities,5480 - HRA - Repair & Maintenance,2012 - Responsive Maintenance - Clearance And Cleaning,11/11/2014,7015743-1,95,REDACTED PERSONAL DATA,REDACTED PERSONAL DATA
Tendring DC,http://statistics.data.gov.uk/id/local-authority-district/22UN,Life Opportunities,5480 - HRA - Repair & Maintenance,2012 - Responsive Maintenance - Clearance And Cleaning,11/11/2014,7015744-1,100,REDACTED PERSONAL DATA,REDACTED PERSONAL DATA
Tendring DC,http://statistics.data.gov.uk/id/local-authority-district/22UN,Life Opportunities,6160 - Princes Theatre,5160 - Advertising,04/11/2014,7015544-1,198.4,2107459 - Prospector,LEAFLET DISTRIBUTION OCT 14
Tendring DC,http://statistics.data.gov.uk/id/local-authority-district/22UN,Life Opportunities,8510 - Dovercourt Swimming Pool & All Weather Facilities,4597 - Hired Services - Payments to Contractors,18/11/2014,7016015-1,29,2112909 - Public Health England,WATER CHECKS
Tendring DC,http://statistics.data.gov.uk/id/local-authority-district/22UN,Life Opportunities,8520 - Frinton & Walton Swimming Pool,4597 - Hired Services - Payments to Contractors,18/11/2014,7016015-2,29,2112909 - Public Health England,WATER CHECKS
Tendring DC,http://statistics.data.gov.uk/id/local-authority-district/22UN,Life Opportunities,8540 - Leisure Centre Clacton,4597 - Hired Services - Payments to Contractors,18/11/2014,7016015-3,58,2112909 - Public Health England,WATER CHECKS
Tendring DC,http://statistics.data.gov.uk/id/local-authority-district/22UN,Life Opportunities,1880 - Office Accommodation Expenses,4000 - Furniture,18/11/2014,2117044-1,1745.12,2113149 - Quality Office Supplies Ltd,Furniture for Town Hall
Tendring DC,http://statistics.data.gov.uk/id/local-authority-district/22UN,Life Opportunities,1880 - Office Accommodation Expenses,4000 - Furniture,04/11/2014,7015543-1,74.95,REDACTED PERSONAL DATA,REDACTED PERSONAL DATA
Tendring DC,http://statistics.data.gov.uk/id/local-authority-district/22UN,Life Opportunities,5800 - Brightlingsea Sports Centre,4000 - Furniture,18/11/2014,7015890-1,10,2113149 - Quality Office Supplies Ltd,QUALIFTY OFFICE SUPPLIES - CHAIR GLIDERS
Tendring DC,http://statistics.data.gov.uk/id/local-authority-district/22UN,Life Opportunities,8540 - Leisure Centre Clacton,4597 - Hired Services - Payments to Contractors,18/11/2014,1061637-1,1320,2103109 - Richard Jackson PLC,FLOOR IMPACT DAMAGE SURVEY
Tendring DC,http://statistics.data.gov.uk/id/local-authority-district/22UN,Life Opportunities,8520 - Frinton & Walton Swimming Pool,4400 - Maintenance Under Service Agreements,11/11/2014,1061592-1,109.69,2101090 - Ricoh UK Ltd,FWSP-RICOH
Tendring DC,http://statistics.data.gov.uk/id/local-authority-district/22UN,Life Opportunities,"1580 - Benefits, Revenues and Customer Contact SU",4350 - Photocopier Hire,04/11/2014,7015551-1,129.1,2101090 - Ricoh UK Ltd,B/W CLICK CHARGE & RENT M5583500665
Tendring DC,http://statistics.data.gov.uk/id/local-authority-district/22UN,Life Opportunities,8540 - Leisure Centre Clacton,5300 - Resaleable Items,04/11/2014,2116947-1,49.5,2101127 - RLSS UK Enterprises Ltd,rookie awards
Tendring DC,http://statistics.data.gov.uk/id/local-authority-district/22UN,Life Opportunities,5480 - HRA - Repair & Maintenance,2013 - Responsive Maintenance - Agreed Fixed Price And Da,18/11/2014,1061673-1,2585,REDACTED PERSONAL DATA,REDACTED PERSONAL DATA
Tendring DC,http://statistics.data.gov.uk/id/local-authority-district/22UN,Life Opportunities,5480 - HRA - Repair & Maintenance,2013 - Responsive Maintenance - Agreed Fixed Price And Da,18/11/2014,1061674-1,2260,REDACTED PERSONAL DATA,REDACTED PERSONAL DATA
Tendring DC,http://statistics.data.gov.uk/id/local-authority-district/22UN,Life Opportunities,5480 - HRA - Repair & Maintenance,2013 - Responsive Maintenance - Agreed Fixed Price And Da,18/11/2014,1061675-1,2710,REDACTED PERSONAL DATA,REDACTED PERSONAL DATA
Tendring DC,http://statistics.data.gov.uk/id/local-authority-district/22UN,Life Opportunities,5480 - HRA - Repair & Maintenance,2013 - Responsive Maintenance - Agreed Fixed Price And Da,18/11/2014,1061676-1,2785,REDACTED PERSONAL DATA,REDACTED PERSONAL DATA
Tendring DC,http://statistics.data.gov.uk/id/local-authority-district/22UN,Life Opportunities,5480 - HRA - Repair & Maintenance,2000 - Responsive Maintenance - Miscellaneous,18/11/2014,1061718-1,92640.01,2101187 - Roalco Limited,ROALCO
Tendring DC,http://statistics.data.gov.uk/id/local-authority-district/22UN,Life Opportunities,H706 - Kitchen & Bathroom Replacement,C200 - Main Contractor,25/11/2014,1061738-1,7821.63,REDACTED PERSONAL DATA,REDACTED PERSONAL DATA
Tendring DC,http://statistics.data.gov.uk/id/local-authority-district/22UN,Life Opportunities,H706 - Kitchen & Bathroom Replacement,C200 - Main Contractor,25/11/2014,1061739-1,3333.16,REDACTED PERSONAL DATA,REDACTED PERSONAL DATA
Tendring DC,http://statistics.data.gov.uk/id/local-authority-district/22UN,Life Opportunities,H710 - Selected Improvements,C200 - Main Contractor,25/11/2014,1061740-1,2875,REDACTED PERSONAL DATA,REDACTED PERSONAL DATA
Tendring DC,http://statistics.data.gov.uk/id/local-authority-district/22UN,Life Opportunities,5480 - HRA - Repair & Maintenance,2000 - Responsive Maintenance - Miscellaneous,25/11/2014,1061816-1,45235.45,2101187 - Roalco Limited,EXTERNAL DECS TERM CONTRACT
Tendring DC,http://statistics.data.gov.uk/id/local-authority-district/22UN,Life Opportunities,5480 - HRA - Repair & Maintenance,2000 - Responsive Maintenance - Miscellaneous,25/11/2014,1061816-2,16736.1,2101187 - Roalco Limited,EXTERNAL DECS TERM CONTRACT
Tendring DC,http://statistics.data.gov.uk/id/local-authority-district/22UN,Life Opportunities,1880 - Office Accommodation Expenses,2100 - Building Repairs,04/11/2014,2116989-1,2023.9,2101187 - Roalco Limited,External Decs Town Hall
Tendring DC,http://statistics.data.gov.uk/id/local-authority-district/22UN,Life Opportunities,H706 - Kitchen & Bathroom Replacement,C200 - Main Contractor,04/11/2014,2116999-1,3410,REDACTED PERSONAL DATA,REDACTED PERSONAL DATA
Tendring DC,http://statistics.data.gov.uk/id/local-authority-district/22UN,Life Opportunities,5480 - HRA - Repair & Maintenance,2013 - Responsive Maintenance - Agreed Fixed Price And Da,04/11/2014,2116999-2,200,REDACTED PERSONAL DATA,REDACTED PERSONAL DATA
Tendring DC,http://statistics.data.gov.uk/id/local-authority-district/22UN,Life Opportunities,1880 - Office Accommodation Expenses,2100 - Building Repairs,04/11/2014,7015577-1,159.5,2101187 - Roalco Limited,REPAIR EXTERNAL DOOR TOWN HALL
Tendring DC,http://statistics.data.gov.uk/id/local-authority-district/22UN,Life Opportunities,H800 - Structural Repairs,C200 - Main Contractor,18/11/2014,1061669-1,6790,REDACTED PERSONAL DATA,REDACTED PERSONAL DATA
Tendring DC,http://statistics.data.gov.uk/id/local-authority-district/22UN,Life Opportunities,9900 - General Fund Balance Sheet,B332 - Other Public Corporations Debtors/Prepayments,25/11/2014,1061815-1,3673.48,REDACTED PERSONAL DATA,REDACTED PERSONAL DATA
Tendring DC,http://statistics.data.gov.uk/id/local-authority-district/22UN,Life Opportunities,9900 - General Fund Balance Sheet,B382 - Rechargeable Works - Other,04/11/2014,2116996-1,17.1,REDACTED PERSONAL DATA,REDACTED PERSONAL DATA
Tendring DC,http://statistics.data.gov.uk/id/local-authority-district/22UN,Life Opportunities,5240 - HRA - Managing Tenancies,5242 - Tenant Relations,11/11/2014,1061567-1,10,REDACTED PERSONAL DATA,REDACTED PERSONAL DATA
Tendring DC,http://statistics.data.gov.uk/id/local-authority-district/22UN,Life Opportunities,5240 - HRA - Managing Tenancies,5242 - Tenant Relations,11/11/2014,1061542-1,3,2101139 - Royal Mail Group Ltd,POST INLAND SEP-OCT 14
Tendring DC,http://statistics.data.gov.uk/id/local-authority-district/22UN,Life Opportunities,6740 - Careline,4700 - Postage,04/11/2014,2116899-1,17.13,2101139 - Royal Mail Group Ltd,sept 14 postage
Tendring DC,http://statistics.data.gov.uk/id/local-authority-district/22UN,Life Opportunities,"1580 - Benefits, Revenues and Customer Contact SU",4700 - Postage,04/11/2014,2116965-1,705.65,2101139 - Royal Mail Group Ltd,outgoing post 13/10 to 17/10
Tendring DC,http://statistics.data.gov.uk/id/local-authority-district/22UN,Life Opportunities,5260 - HRA - Rent Collection And Accounting,4700 - Postage,04/11/2014,2116965-2,151.18,2101139 - Royal Mail Group Ltd,outgoing post 13/10 to 17/10
Tendring DC,http://statistics.data.gov.uk/id/local-authority-district/22UN,Life Opportunities,6160 - Princes Theatre,4700 - Postage,04/11/2014,2116965-3,154.27,2101139 - Royal Mail Group Ltd,outgoing post 13/10 to 17/10
Tendring DC,http://statistics.data.gov.uk/id/local-authority-district/22UN,Life Opportunities,"1580 - Benefits, Revenues and Customer Contact SU",4700 - Postage,11/11/2014,7015729-1,1464.85,2101139 - Royal Mail Group Ltd,OUTGOING POST OCT 14
Tendring DC,http://statistics.data.gov.uk/id/local-authority-district/22UN,Life Opportunities,6160 - Princes Theatre,4700 - Postage,11/11/2014,7015729-2,50.58,2101139 - Royal Mail Group Ltd,OUTGOING POST OCT 14
Tendring DC,http://statistics.data.gov.uk/id/local-authority-district/22UN,Life Opportunities,5260 - HRA - Rent Collection And Accounting,4700 - Postage,11/11/2014,7015729-3,3.28,2101139 - Royal Mail Group Ltd,OUTGOING POST OCT 14
Tendring DC,http://statistics.data.gov.uk/id/local-authority-district/22UN,Life Opportunities,"1580 - Benefits, Revenues and Customer Contact SU",4700 - Postage,18/11/2014,7015921-1,859.31,2101139 - Royal Mail Group Ltd,OUTGOING POST OCT 14
Tendring DC,http://statistics.data.gov.uk/id/local-authority-district/22UN,Life Opportunities,5240 - HRA - Managing Tenancies,4312 - Tenancy Stationery,18/11/2014,7015921-2,25.85,2101139 - Royal Mail Group Ltd,OUTGOING POST OCT 14
Tendring DC,http://statistics.data.gov.uk/id/local-authority-district/22UN,Life Opportunities,5260 - HRA - Rent Collection And Accounting,4700 - Postage,18/11/2014,7015921-3,13.5,2101139 - Royal Mail Group Ltd,OUTGOING POST OCT 14
Tendring DC,http://statistics.data.gov.uk/id/local-authority-district/22UN,Life Opportunities,6740 - Careline,4700 - Postage,18/11/2014,7015921-4,118.02,2101139 - Royal Mail Group Ltd,OUTGOING POST OCT 14
Tendring DC,http://statistics.data.gov.uk/id/local-authority-district/22UN,Life Opportunities,6740 - Careline,4700 - Postage,25/11/2014,7016044-1,90,2101139 - Royal Mail Group Ltd,RESPONSE SERVICE LICENCE
Tendring DC,http://statistics.data.gov.uk/id/local-authority-district/22UN,Life Opportunities,"1580 - Benefits, Revenues and Customer Contact SU",4700 - Postage,25/11/2014,7016135-1,1093.79,2101139 - Royal Mail Group Ltd,OUTGOING POST NOV 14
Tendring DC,http://statistics.data.gov.uk/id/local-authority-district/22UN,Life Opportunities,6160 - Princes Theatre,4700 - Postage,25/11/2014,7016135-2,52.83,2101139 - Royal Mail Group Ltd,OUTGOING POST NOV 14
Tendring DC,http://statistics.data.gov.uk/id/local-authority-district/22UN,Life Opportunities,5260 - HRA - Rent Collection And Accounting,4700 - Postage,25/11/2014,7016135-3,67.15,2101139 - Royal Mail Group Ltd,OUTGOING POST NOV 14
Tendring DC,http://statistics.data.gov.uk/id/local-authority-district/22UN,Life Opportunities,8540 - Leisure Centre Clacton,2100 - Building Repairs,18/11/2014,1061643-1,173.5,2109169 - S J Leisure Contractors Ltd,SAUNA/STEAM ROOM REPAIRS
Tendring DC,http://statistics.data.gov.uk/id/local-authority-district/22UN,Life Opportunities,8540 - Leisure Centre Clacton,4400 - Maintenance Under Service Agreements,18/11/2014,7015981-1,195,2109169 - S J Leisure Contractors Ltd,SAUNA/SAUNARIOUM/STEAM RM SERVICE
Tendring DC,http://statistics.data.gov.uk/id/local-authority-district/22UN,Life Opportunities,8540 - Leisure Centre Clacton,2100 - Building Repairs,18/11/2014,7015982-1,180,2109169 - S J Leisure Contractors Ltd,SAUNA REPAIRS
Tendring DC,http://statistics.data.gov.uk/id/local-authority-district/22UN,Life Opportunities,H860 - Disabled Adaptations,C200 - Main Contractor,18/11/2014,1061715-1,2000,REDACTED PERSONAL DATA,REDACTED PERSONAL DATA
Tendring DC,http://statistics.data.gov.uk/id/local-authority-district/22UN,Life Opportunities,H860 - Disabled Adaptations,C200 - Main Contractor,18/11/2014,1061715-2,7500,REDACTED PERSONAL DATA,REDACTED PERSONAL DATA
Tendring DC,http://statistics.data.gov.uk/id/local-authority-district/22UN,Life Opportunities,5480 - HRA - Repair & Maintenance,2088 - Disabled Adaptations,25/11/2014,1061737-1,800,REDACTED PERSONAL DATA,REDACTED PERSONAL DATA
Tendring DC,http://statistics.data.gov.uk/id/local-authority-district/22UN,Life Opportunities,5480 - HRA - Repair & Maintenance,2088 - Disabled Adaptations,25/11/2014,1061737-2,229.53,REDACTED PERSONAL DATA,REDACTED PERSONAL DATA
